{"text_format":"3","workbook":"xlsx","n_sheets":12,"sheets":["Présentation de l'outil","Terre et action humaine","Vivant","Corps et Santé","bilan compétences","Bilan C4_5ème","Bilan C4_4ème","Sauvegarde Organisation bilan","Bilan C4_3ème","Listes déroulantes","AFC et Compétences","Représentations graphiques"],"not_rendered":{"charts":4,"external_links":1,"defined_names":37},"read":"whole","date_system":"1900"}

{"sheet":"Présentation de l'outil","index":0,"n_rows":21,"n_cols":4,"rows_kept":21,"merged":[[0,1,1,3],[3,1,3,3],[7,2,7,3],[8,2,8,3],[9,2,9,3],[10,2,10,3],[11,2,11,3],[12,2,12,3],[13,2,13,3],[14,2,14,3],[15,1,15,3],[16,1,16,3],[18,2,18,3]]}
[null,"Support de travail pour envisager une programmation équilibrée\ndu programme de SVT au cours du cycle 4 :"]
[]
[]
[null,"Ce document est organisé en onglets : \n - Cet onglet qui présente le document ;\n - Un onglet par thématique du programme de SVT sur le Cycle 4 :"]
[null,null,"Thématique 1 :","La planète Terre, l’environnement et l’action humaine"]
[null,null,"Thématique 2 :","Le vivant et son évolution"]
[null,null,"Thématique 3 :","Le corps humain et la santé "]
[null,null,"Chaque onglet thématique permet :"]
[null,null," - D'envisager une organisation des attendus de fin de cycle (menu déroulant proposé) dans le calendrier annuel (en mettant le numéro de la semaine envisagée) et en fonction de l'année du cycle.\nNéanmoins, chaque thématique ne comporte que 36 lignes afin de limiter les activités à envisager (soit 12 lignes pour une année scolaire)"]
[null,null," - D'envisager la nature des activités (menu déroulant proposé) pour chaque attendu de fin de cycle à traiter (il peut être choisi plusieurs fois);"]
[null,null," - D'indiquer les titres des activités envisagées et/ou les titres des parties si cela vous parait pertinent ;"]
[null,null," - De choisir les compétences que les activités envisagées permettent de développer chez les élèves  (menu déroulant proposé) ;"]
[null,null," - D'envisager le type d'évaluations associées aux activités (menu déroulant proposé) ;"]
[null,null," - D'avoir un récapitulatif du nombre de fois qu'une compétence serait abordée (travaillée et évaluée) au cours d'une thématique (par année et sur l'ensemble du cycle);"]
[null,null," - D'avoir un récapitulatif du nombre de fois qu'une compétence serait évaluée et le type d'évaluation envisagée (évaluation diagnostique, formative, sommative, auto-évaluation ou aucune) au cours d'une thématique  (par année et sur l'ensemble du cycle)."]
[null," - Un onglet \"bilan compétences\" offrant une vision sur le cycle complet, et par année scolaire, des compétences qui sont envisagées sur les trois thématiques."]
[null," - Trois onglets \"Bilan C4_...\" permettant d'obtenir une vision synthétique de l'organisation envisagée d'une année scolaire du cycle 4 (présentant les semaines, les attendus de fin de cycle, le type d'activité envisagée, les titres proposés et les évaluations potentielles)"]
[]
[null,"2019-2020","Document de travail co-construit en 2019-2020 par les IA-IPR et les formateurs de SVT de l'académie de Nantes et se poursuivant :"]
[null,"contact :","Maxime.Bigan@ac-nantes.fr"]
[null,null,"Marion.Rilhac@ac-montpellier.fr"]

{"sheet":"Terre et action humaine","index":1,"n_rows":60,"n_cols":26,"rows_kept":60,"merged":[[0,0,1,4],[1,5,1,7],[1,8,1,10],[1,11,1,13],[1,14,1,22],[1,23,1,25],[2,0,2,4],[2,5,2,7],[2,8,2,10],[2,11,2,13],[2,14,2,22],[2,23,2,25],[3,0,4,0],[3,1,4,1],[3,2,4,2],[3,3,3,4],[3,5,3,6],[3,7,4,7],[3,8,3,9],[3,10,4,10],[3,11,3,12],[3,13,4,13],[3,14,3,15],[3,16,4,16],[3,17,3,18],[3,19,4,19],[3,20,3,21],[3,22,4,22],[3,23,3,24],[3,25,4,25],[4,5,4,6],[4,8,4,9],[4,11,4,12],[4,14,4,15],[4,17,4,18],[4,20,4,21],[4,23,4,24],[5,0,5,25],[18,0,18,25],[31,0,31,25],[45,2,48,3],[50,2,59,3]]}
["Support de travail pour envisager une programmation de la thématique  de SVT du Cycle 4 :\nLa planète Terre, l’environnement et l’action humaine",{"$nulls":4},"ED =","évaluation diagnostique",null,"EF =","évaluation formative",null,"ES = ","évaluation sommative"]
[{"$nulls":5},"Domaine 1 du socle :",null,null,"Domaine 2 du socle :",null,null,"Domaine 3 du socle :",null,null,"Domaine 4 du socle :",{"$nulls":8},"Domaine 5 du socle :"]
["point de vigilance : Les compétences énoncées gagneraient à ne pas être travaillées pour elles-mêmes mais activées au sein des trois thématiques du programme de SVT.",{"$nulls":4},"Pratiquer des langages pour penser et communiquer",null,null,"Les méthodes et les outils pour apprendre",null,null,"Formation de la personne et du citoyen",null,null,"Les systèmes techniques et naturels",{"$nulls":8},"Représentation du monde et activité humaine"]
["semaine","Attendus de fin de cycle","Compétences associées aux connaissances de la thématique","Activités",null,"compétences du programme de SVT ",null,"évaluation","compétences du programme de SVT",null,"évaluation","compétences du programme de SVT ",null,"évaluation","compétences du programme de SVT",null,"évaluation","compétences du programme de SVT ",null,"évaluation","compétences du programme de SVT ",null,"évaluation","compétences du programme de SVT ",null,"évaluation"]
[{"$nulls":3},"nature de l'activité","Titre de l'activité et/ou\nTitre de la partie\nRemarques ou \"Autre à définir\"","Pratiquer des langages (qualitatif) / Utiliser des outils numériques",null,null,"Utiliser des outils et mobiliser des méthodes pour apprendre / Utiliser des outils numériques",null,null,"Adopter un comportement éthique et responsable",null,null,"Pratiquer des démarches\nscientifiques et technologiques / Pratiquer des langages (pertinence, cohérence…)",null,null,"Concevoir, créer, réaliser",null,null,"Utiliser des outils numériques",null,null,"Se situer dans l'espace et dans le temps"]
[" Première année du cycle : 5ème …"]
{"$rows_empty":12}
[" Deuxième année du cycle : 4ème ... "]
{"$rows_empty":12}
["Troisième année du cycle : 3ème ... "]
{"$rows_empty":13}
[null,null,"nombre de fois que la compétence est travaillée à travers cette thématique,par année et sur le cycle :",null,"5ème",{"$f":"COUNTA((F$7:G$18))","v":0},null,null,{"$f":"COUNTA((I$7:J$18))","v":0},null,null,{"$f":"COUNTA((L$7:M$18))","v":0},null,null,{"$f":"COUNTA((O$7:P$18))","v":0},null,null,{"$f":"COUNTA((R$7:S$18))","v":0},null,null,{"$f":"COUNTA((U$7:V$18))","v":0},null,null,{"$f":"COUNTA((X$7:Y$18))","v":0}]
[{"$nulls":4},"4ème",{"$f":"COUNTA((F$20:G$31))","v":0},null,null,{"$f":"COUNTA((I$20:J$31))","v":0},null,null,{"$f":"COUNTA((L$20:M$31))","v":0},null,null,{"$f":"COUNTA((O$20:P$31))","v":0},null,null,{"$f":"COUNTA((R$20:S$31))","v":0},null,null,{"$f":"COUNTA((U$20:V$31))","v":0},null,null,{"$f":"COUNTA((X$20:Y$31))","v":0}]
[{"$nulls":4},"3ème",{"$f":"COUNTA((F$33:G$44))","v":0},null,null,{"$f":"COUNTA((I$33:J$44))","v":0},null,null,{"$f":"COUNTA((L$33:M$44))","v":0},null,null,{"$f":"COUNTA((O$33:P$44))","v":0},null,null,{"$f":"COUNTA((R$33:S$44))","v":0},null,null,{"$f":"COUNTA((U$33:V$44))","v":0},null,null,{"$f":"COUNTA((X$33:Y$44))","v":0}]
[{"$nulls":4},"total cycle",{"$f":"COUNTA((F$7:G$44))","v":0},null,null,{"$f":"COUNTA((I$7:J$44))","v":0},null,null,{"$f":"COUNTA((L$7:M$44))","v":0},null,null,{"$f":"COUNTA((O$7:P$44))","v":0},null,null,{"$f":"COUNTA((R$7:S$44))","v":0},null,null,{"$f":"COUNTA((U$7:V$44))","v":0},null,null,{"$f":"COUNTA((X$7:Y$44))","v":0}]
[]
[null,null,"nombre de fois que la compétence est évaluée à travers cette thématique, par année et sur le cycle :",null,null,"ED :","EF : ",null,"ED :","EF : ",null,"ED :","EF : ",null,"ED :","EF : ",null,"ED :","EF : ",null,"ED :","EF : ",null,"ED :","EF : "]
[{"$nulls":4},"5ème",{"$f":"COUNTIF(H$7:H$18,\"ED\")","v":0},{"$f":"COUNTIF(H$7:H$18,\"EF\")","v":0},null,{"$f":"COUNTIF(K$7:K$18,\"ED\")","v":0},{"$f":"COUNTIF(K$7:K$18,\"EF\")","v":0},null,{"$f":"COUNTIF(N$7:N$18,\"ED\")","v":0},{"$f":"COUNTIF(N$7:N$18,\"EF\")","v":0},null,{"$f":"COUNTIF(Q$7:Q$18,\"ED\")","v":0},{"$f":"COUNTIF(Q$7:Q$18,\"EF\")","v":0},null,{"$f":"COUNTIF(T$7:T$18,\"ED\")","v":0},{"$f":"COUNTIF(T$7:T$18,\"EF\")","v":0},null,{"$f":"COUNTIF(W$7:W$18,\"ED\")","v":0},{"$f":"COUNTIF(W$7:W$18,\"EF\")","v":0},null,{"$f":"COUNTIF(Z$7:Z$18,\"ED\")","v":0},{"$f":"COUNTIF(Z$7:Z$18,\"EF\")","v":0}]
[{"$nulls":4},"4ème",{"$f":"COUNTIF(H$20:H$31,\"ED\")","v":0},{"$f":"COUNTIF(H$20:H$31,\"EF\")","v":0},null,{"$f":"COUNTIF(K$20:K$31,\"ED\")","v":0},{"$f":"COUNTIF(K$20:K$31,\"EF\")","v":0},null,{"$f":"COUNTIF(N$20:N$31,\"ED\")","v":0},{"$f":"COUNTIF(N$20:N$31,\"EF\")","v":0},null,{"$f":"COUNTIF(Q$20:Q$31,\"ED\")","v":0},{"$f":"COUNTIF(Q$20:Q$31,\"EF\")","v":0},null,{"$f":"COUNTIF(T$20:T$31,\"ED\")","v":0},{"$f":"COUNTIF(T$20:T$31,\"EF\")","v":0},null,{"$f":"COUNTIF(W$20:W$31,\"ED\")","v":0},{"$f":"COUNTIF(W$20:W$31,\"EF\")","v":0},null,{"$f":"COUNTIF(Z$20:Z$31,\"ED\")","v":0},{"$f":"COUNTIF(Z$20:Z$31,\"EF\")","v":0}]
[{"$nulls":4},"3ème",{"$f":"COUNTIF(H$33:H$44,\"ED\")","v":0},{"$f":"COUNTIF(H$33:$H44,\"EF\")","v":0},null,{"$f":"COUNTIF(K$33:K$44,\"ED\")","v":0},{"$f":"COUNTIF($H$33:K44,\"EF\")","v":0},null,{"$f":"COUNTIF(N$33:N$44,\"ED\")","v":0},{"$f":"COUNTIF($H$33:N44,\"EF\")","v":0},null,{"$f":"COUNTIF(Q$33:Q$44,\"ED\")","v":0},{"$f":"COUNTIF($H$33:Q44,\"EF\")","v":0},null,{"$f":"COUNTIF(T$33:T$44,\"ED\")","v":0},{"$f":"COUNTIF($H$33:T44,\"EF\")","v":0},null,{"$f":"COUNTIF(W$33:W$44,\"ED\")","v":0},{"$f":"COUNTIF($H$33:W44,\"EF\")","v":0},null,{"$f":"COUNTIF(Z$33:Z$44,\"ED\")","v":0},{"$f":"COUNTIF($Z$33:Z44,\"EF\")","v":0}]
[{"$nulls":4},"total cycle",{"$f":"COUNTIF(H7:H44,\"ED\")","v":0},{"$f":"COUNTIF(H7:H44,\"EF\")","v":0},null,{"$f":"COUNTIF(K7:K44,\"ED\")","v":0},{"$f":"COUNTIF(K7:K44,\"EF\")","v":0},null,{"$f":"COUNTIF(N7:N44,\"ED\")","v":0},{"$f":"COUNTIF(N7:N44,\"EF\")","v":0},null,{"$f":"COUNTIF(Q7:Q44,\"ED\")","v":0},{"$f":"COUNTIF(Q7:Q44,\"EF\")","v":0},null,{"$f":"COUNTIF(T7:T44,\"ED\")","v":0},{"$f":"COUNTIF(T7:T44,\"EF\")","v":0},null,{"$f":"COUNTIF(W7:W44,\"ED\")","v":0},{"$f":"COUNTIF(W7:W44,\"EF\")","v":0},null,{"$f":"COUNTIF(Z7:Z44,\"ED\")","v":0},{"$f":"COUNTIF(Z7:Z44,\"EF\")","v":0}]
[{"$nulls":5},"ES : ","auto-évaluation : ",null,"ES : ","auto-évaluation : ",null,"ES : ","auto-évaluation : ",null,"ES : ","auto-évaluation : ",null,"ES : ","auto-évaluation : ",null,"ES : ","auto-évaluation : ",null,"ES : ","auto-évaluation : "]
[{"$nulls":4},"5ème",{"$f":"COUNTIF(H$7:H$18,\"ES\")","v":0},{"$f":"COUNTIF(H$7:H$18,\"auto-évaluation\")","v":0},null,{"$f":"COUNTIF(K$7:K$18,\"ES\")","v":0},{"$f":"COUNTIF(K$7:K$18,\"auto-évaluation\")","v":0},null,{"$f":"COUNTIF(N$7:N$18,\"ES\")","v":0},{"$f":"COUNTIF(N$7:N$18,\"auto-évaluation\")","v":0},null,{"$f":"COUNTIF(Q$7:Q$18,\"ES\")","v":0},{"$f":"COUNTIF(Q$7:Q$18,\"auto-évaluation\")","v":0},null,{"$f":"COUNTIF(T$7:T$18,\"ES\")","v":0},{"$f":"COUNTIF(T$7:T$18,\"auto-évaluation\")","v":0},null,{"$f":"COUNTIF(W$7:W$18,\"ES\")","v":0},{"$f":"COUNTIF(W$7:W$18,\"auto-évaluation\")","v":0},null,{"$f":"COUNTIF(Z$7:Z$18,\"ES\")","v":0},{"$f":"COUNTIF(Z$7:Z$18,\"auto-évaluation\")","v":0}]
[{"$nulls":4},"4ème",{"$f":"COUNTIF(H$20:H$31,\"ES\")","v":0},{"$f":"COUNTIF(H$20:H$31,\"auto-évaluation\")","v":0},null,{"$f":"COUNTIF(K$20:K$31,\"ES\")","v":0},{"$f":"COUNTIF(K$20:K$31,\"auto-évaluation\")","v":0},null,{"$f":"COUNTIF(N$20:N$31,\"ES\")","v":0},{"$f":"COUNTIF(N$20:N$31,\"auto-évaluation\")","v":0},null,{"$f":"COUNTIF(Q$20:Q$31,\"ES\")","v":0},{"$f":"COUNTIF(Q$20:Q$31,\"auto-évaluation\")","v":0},null,{"$f":"COUNTIF(T$20:T$31,\"ES\")","v":0},{"$f":"COUNTIF(T$20:T$31,\"auto-évaluation\")","v":0},null,{"$f":"COUNTIF(W$20:W$31,\"ES\")","v":0},{"$f":"COUNTIF(W$20:W$31,\"auto-évaluation\")","v":0},null,{"$f":"COUNTIF(Z$20:Z$31,\"ES\")","v":0},{"$f":"COUNTIF(Z$20:Z$31,\"auto-évaluation\")","v":0}]
[{"$nulls":4},"3ème",{"$f":"COUNTIF(H$33:H$44,\"ES\")","v":0},{"$f":"COUNTIF(H33:H44,\"auto-évaluation\")","v":0},null,{"$f":"COUNTIF(K$33:K$44,\"ES\")","v":0},{"$f":"COUNTIF(K33:K44,\"auto-évaluation\")","v":0},null,{"$f":"COUNTIF(N$33:N$44,\"ES\")","v":0},{"$f":"COUNTIF(N33:N44,\"auto-évaluation\")","v":0},null,{"$f":"COUNTIF(Q$33:Q$44,\"ES\")","v":0},{"$f":"COUNTIF(Q33:Q44,\"auto-évaluation\")","v":0},null,{"$f":"COUNTIF(T$33:T$44,\"ES\")","v":0},{"$f":"COUNTIF(T33:T44,\"auto-évaluation\")","v":0},null,{"$f":"COUNTIF(W$33:W$44,\"ES\")","v":0},{"$f":"COUNTIF(W33:W44,\"auto-évaluation\")","v":0},null,{"$f":"COUNTIF(Z$33:Z$44,\"ES\")","v":0},{"$f":"COUNTIF(Z33:Z44,\"auto-évaluation\")","v":0}]
[{"$nulls":4},"total cycle",{"$f":"COUNTIF(H7:H44,\"ES\")","v":0},{"$f":"COUNTIF(H7:H44,\"auto-évaluation\")","v":0},null,{"$f":"COUNTIF(K7:K44,\"ES\")","v":0},{"$f":"COUNTIF(K7:K44,\"auto-évaluation\")","v":0},null,{"$f":"COUNTIF(N7:N44,\"ES\")","v":0},{"$f":"COUNTIF(N7:N44,\"auto-évaluation\")","v":0},null,{"$f":"COUNTIF(Q7:Q44,\"ES\")","v":0},{"$f":"COUNTIF(Q7:Q44,\"auto-évaluation\")","v":0},null,{"$f":"COUNTIF(T7:T44,\"ES\")","v":0},{"$f":"COUNTIF(T7:T44,\"auto-évaluation\")","v":0},null,{"$f":"COUNTIF(W7:W44,\"ES\")","v":0},{"$f":"COUNTIF(W7:W44,\"auto-évaluation\")","v":0},null,{"$f":"COUNTIF(Z7:Z44,\"ES\")","v":0},{"$f":"COUNTIF(Z7:Z44,\"auto-évaluation\")","v":0}]

{"sheet":"Vivant","index":2,"n_rows":60,"n_cols":26,"rows_kept":60,"merged":[[0,0,1,4],[1,5,1,7],[1,8,1,10],[1,11,1,13],[1,14,1,22],[1,23,1,25],[2,0,2,4],[2,5,2,7],[2,8,2,10],[2,11,2,13],[2,14,2,22],[2,23,2,25],[3,0,4,0],[3,1,4,1],[3,2,4,2],[3,3,3,4],[3,5,3,6],[3,7,4,7],[3,8,3,9],[3,10,4,10],[3,11,3,12],[3,13,4,13],[3,14,3,15],[3,16,4,16],[3,17,3,18],[3,19,4,19],[3,20,3,21],[3,22,4,22],[3,23,3,24],[3,25,4,25],[4,5,4,6],[4,8,4,9],[4,11,4,12],[4,14,4,15],[4,17,4,18],[4,20,4,21],[4,23,4,24],[5,0,5,25],[18,0,18,25],[31,0,31,25],[45,1,48,3],[50,1,59,3]]}
["Support de travail pour envisager une programmation de la thématique  de SVT du Cycle 4 :\nLe vivant et son évolution",{"$nulls":4},"ED =","évaluation diagnostique",null,"EF =","évaluation formative",null,"ES = ","évaluation sommative"]
[{"$nulls":5},"Domaine 1 du socle :",null,null,"Domaine 2 du socle :",null,null,"Domaine 3 du socle :",null,null,"Domaine 4 du socle :",{"$nulls":8},"Domaine 5 du socle :"]
["point de vigilance : Les compétences énoncées gagneraient à ne pas être travaillées pour elles-mêmes mais activées au sein des trois thématiques du programme de SVT.",{"$nulls":4},"Pratiquer des langages pour penser et communiquer",null,null,"Les méthodes et les outils pour apprendre",null,null,"Formation de la personne et du citoyen",null,null,"Les systèmes techniques et naturels",{"$nulls":8},"Représentation du monde et activité humaine"]
["semaine","Attendus de fin de cycle","Compétences associées aux connaissances de la thématique","Activités",null,"compétences du programme de SVT ",null,"évaluation","compétences du programme de SVT",null,"évaluation","compétences du programme de SVT ",null,"évaluation","compétences du programme de SVT",null,"évaluation","compétences du programme de SVT ",null,"évaluation","compétences du programme de SVT ",null,"évaluation","compétences du programme de SVT ",null,"évaluation"]
[{"$nulls":3},"nature de l'activité","Titre de l'activité et/ou\nTitre de la partie\nRemarques ou \"Autre à définir\"","Pratiquer des langages (qualitatif) / Utiliser des outils numériques",null,null,"Utiliser des outils et mobiliser des méthodes pour apprendre / Utiliser des outils numériques",null,null,"Adopter un comportement éthique et responsable",null,null,"Pratiquer des démarches\nscientifiques et technologiques / Pratiquer des langages (pertinence, cohérence…)",null,null,"Concevoir, créer, réaliser",null,null,"Utiliser des outils numériques",null,null,"Se situer dans l'espace et dans le temps"]
[" Première année du cycle : 5ème ..."]
{"$rows_empty":12}
[" Deuxième année du cycle : 4ème ... "]
{"$rows_empty":12}
["Troisième année du cycle : 3ème ... "]
{"$rows_empty":13}
[null,"nombre de fois que la compétence est travaillée à travers cette thématique,par année et sur le cycle :",null,null,"5ème",{"$f":"COUNTA((F$7:G$18))","v":0},null,null,{"$f":"COUNTA((I$7:J$18))","v":0},null,null,{"$f":"COUNTA((L$7:M$18))","v":0},null,null,{"$f":"COUNTA((O$7:P$18))","v":0},null,null,{"$f":"COUNTA((R$7:S$18))","v":0},null,null,{"$f":"COUNTA((U$7:V$18))","v":0},null,null,{"$f":"COUNTA((X$7:Y$18))","v":0}]
[{"$nulls":4},"4ème",{"$f":"COUNTA((F$20:G$31))","v":0},null,null,{"$f":"COUNTA((I$20:J$31))","v":0},null,null,{"$f":"COUNTA((L$20:M$31))","v":0},null,null,{"$f":"COUNTA((O$20:P$31))","v":0},null,null,{"$f":"COUNTA((R$20:S$31))","v":0},null,null,{"$f":"COUNTA((U$20:V$31))","v":0},null,null,{"$f":"COUNTA((X$20:Y$31))","v":0}]
[{"$nulls":4},"3ème",{"$f":"COUNTA((F$33:G$44))","v":0},null,null,{"$f":"COUNTA((I$33:J$44))","v":0},null,null,{"$f":"COUNTA((L$33:M$44))","v":0},null,null,{"$f":"COUNTA((O$33:P$44))","v":0},null,null,{"$f":"COUNTA((R$33:S$44))","v":0},null,null,{"$f":"COUNTA((U$33:V$44))","v":0},null,null,{"$f":"COUNTA((X$33:Y$44))","v":0}]
[{"$nulls":4},"total cycle",{"$f":"COUNTA((F$7:G$44))","v":0},null,null,{"$f":"COUNTA((I$7:J$44))","v":0},null,null,{"$f":"COUNTA((L$7:M$44))","v":0},null,null,{"$f":"COUNTA((O$7:P$44))","v":0},null,null,{"$f":"COUNTA((R$7:S$44))","v":0},null,null,{"$f":"COUNTA((U$7:V$44))","v":0},null,null,{"$f":"COUNTA((X$7:Y$44))","v":0}]
[]
[null,"nombre de fois que la compétence est évaluée à travers cette thématique, par année et sur le cycle :",{"$nulls":3},"ED :","EF : ",null,"ED :","EF : ",null,"ED :","EF : ",null,"ED :","EF : ",null,"ED :","EF : ",null,"ED :","EF : ",null,"ED :","EF : "]
[{"$nulls":4},"5ème",{"$f":"COUNTIF(H$7:H$18,\"ED\")","v":0},{"$f":"COUNTIF(H$7:H$18,\"EF\")","v":0},null,{"$f":"COUNTIF(K$7:K$18,\"ED\")","v":0},{"$f":"COUNTIF(K$7:K$18,\"EF\")","v":0},null,{"$f":"COUNTIF(N$7:N$18,\"ED\")","v":0},{"$f":"COUNTIF(N$7:N$18,\"EF\")","v":0},null,{"$f":"COUNTIF(Q$7:Q$18,\"ED\")","v":0},{"$f":"COUNTIF(Q$7:Q$18,\"EF\")","v":0},null,{"$f":"COUNTIF(T$7:T$18,\"ED\")","v":0},{"$f":"COUNTIF(T$7:T$18,\"EF\")","v":0},null,{"$f":"COUNTIF(W$7:W$18,\"ED\")","v":0},{"$f":"COUNTIF(W$7:W$18,\"EF\")","v":0},null,{"$f":"COUNTIF(Z$7:Z$18,\"ED\")","v":0},{"$f":"COUNTIF(Z$7:Z$18,\"EF\")","v":0}]
[{"$nulls":4},"4ème",{"$f":"COUNTIF(H$20:H$31,\"ED\")","v":0},{"$f":"COUNTIF(H$20:H$31,\"EF\")","v":0},null,{"$f":"COUNTIF(K$20:K$31,\"ED\")","v":0},{"$f":"COUNTIF(K$20:K$31,\"EF\")","v":0},null,{"$f":"COUNTIF(N$20:N$31,\"ED\")","v":0},{"$f":"COUNTIF(N$20:N$31,\"EF\")","v":0},null,{"$f":"COUNTIF(Q$20:Q$31,\"ED\")","v":0},{"$f":"COUNTIF(Q$20:Q$31,\"EF\")","v":0},null,{"$f":"COUNTIF(T$20:T$31,\"ED\")","v":0},{"$f":"COUNTIF(T$20:T$31,\"EF\")","v":0},null,{"$f":"COUNTIF(W$20:W$31,\"ED\")","v":0},{"$f":"COUNTIF(W$20:W$31,\"EF\")","v":0},null,{"$f":"COUNTIF(Z$20:Z$31,\"ED\")","v":0},{"$f":"COUNTIF(Z$20:Z$31,\"EF\")","v":0}]
[{"$nulls":4},"3ème",{"$f":"COUNTIF(H$33:H$44,\"ED\")","v":0},{"$f":"COUNTIF(H$33:$H44,\"EF\")","v":0},null,{"$f":"COUNTIF(K$33:K$44,\"ED\")","v":0},{"$f":"COUNTIF($H$33:K44,\"EF\")","v":0},null,{"$f":"COUNTIF(N$33:N$44,\"ED\")","v":0},{"$f":"COUNTIF($H$33:N44,\"EF\")","v":0},null,{"$f":"COUNTIF(Q$33:Q$44,\"ED\")","v":0},{"$f":"COUNTIF($H$33:Q44,\"EF\")","v":0},null,{"$f":"COUNTIF(T$33:T$44,\"ED\")","v":0},{"$f":"COUNTIF($H$33:T44,\"EF\")","v":0},null,{"$f":"COUNTIF(W$33:W$44,\"ED\")","v":0},{"$f":"COUNTIF($H$33:W44,\"EF\")","v":0},null,{"$f":"COUNTIF(Z$33:Z$44,\"ED\")","v":0},{"$f":"COUNTIF($Z$33:Z44,\"EF\")","v":0}]
[{"$nulls":4},"total cycle",{"$f":"COUNTIF(H7:H44,\"ED\")","v":0},{"$f":"COUNTIF(H7:H44,\"EF\")","v":0},null,{"$f":"COUNTIF(K7:K44,\"ED\")","v":0},{"$f":"COUNTIF(K7:K44,\"EF\")","v":0},null,{"$f":"COUNTIF(N7:N44,\"ED\")","v":0},{"$f":"COUNTIF(N7:N44,\"EF\")","v":0},null,{"$f":"COUNTIF(Q7:Q44,\"ED\")","v":0},{"$f":"COUNTIF(Q7:Q44,\"EF\")","v":0},null,{"$f":"COUNTIF(T7:T44,\"ED\")","v":0},{"$f":"COUNTIF(T7:T44,\"EF\")","v":0},null,{"$f":"COUNTIF(W7:W44,\"ED\")","v":0},{"$f":"COUNTIF(W7:W44,\"EF\")","v":0},null,{"$f":"COUNTIF(Z7:Z44,\"ED\")","v":0},{"$f":"COUNTIF(Z7:Z44,\"EF\")","v":0}]
[{"$nulls":5},"ES : ","auto-évaluation : ",null,"ES : ","auto-évaluation : ",null,"ES : ","auto-évaluation : ",null,"ES : ","auto-évaluation : ",null,"ES : ","auto-évaluation : ",null,"ES : ","auto-évaluation : ",null,"ES : ","auto-évaluation : "]
[{"$nulls":4},"5ème",{"$f":"COUNTIF(H$7:H$18,\"ES\")","v":0},{"$f":"COUNTIF(H$7:H$18,\"auto-évaluation\")","v":0},null,{"$f":"COUNTIF(K$7:K$18,\"ES\")","v":0},{"$f":"COUNTIF(K$7:K$18,\"auto-évaluation\")","v":0},null,{"$f":"COUNTIF(N$7:N$18,\"ES\")","v":0},{"$f":"COUNTIF(N$7:N$18,\"auto-évaluation\")","v":0},null,{"$f":"COUNTIF(Q$7:Q$18,\"ES\")","v":0},{"$f":"COUNTIF(Q$7:Q$18,\"auto-évaluation\")","v":0},null,{"$f":"COUNTIF(T$7:T$18,\"ES\")","v":0},{"$f":"COUNTIF(T$7:T$18,\"auto-évaluation\")","v":0},null,{"$f":"COUNTIF(W$7:W$18,\"ES\")","v":0},{"$f":"COUNTIF(W$7:W$18,\"auto-évaluation\")","v":0},null,{"$f":"COUNTIF(Z$7:Z$18,\"ES\")","v":0},{"$f":"COUNTIF(Z$7:Z$18,\"auto-évaluation\")","v":0}]
[{"$nulls":4},"4ème",{"$f":"COUNTIF(H$20:H$31,\"ES\")","v":0},{"$f":"COUNTIF(H$20:H$31,\"auto-évaluation\")","v":0},null,{"$f":"COUNTIF(K$20:K$31,\"ES\")","v":0},{"$f":"COUNTIF(K$20:K$31,\"auto-évaluation\")","v":0},null,{"$f":"COUNTIF(N$20:N$31,\"ES\")","v":0},{"$f":"COUNTIF(N$20:N$31,\"auto-évaluation\")","v":0},null,{"$f":"COUNTIF(Q$20:Q$31,\"ES\")","v":0},{"$f":"COUNTIF(Q$20:Q$31,\"auto-évaluation\")","v":0},null,{"$f":"COUNTIF(T$20:T$31,\"ES\")","v":0},{"$f":"COUNTIF(T$20:T$31,\"auto-évaluation\")","v":0},null,{"$f":"COUNTIF(W$20:W$31,\"ES\")","v":0},{"$f":"COUNTIF(W$20:W$31,\"auto-évaluation\")","v":0},null,{"$f":"COUNTIF(Z$20:Z$31,\"ES\")","v":0},{"$f":"COUNTIF(Z$20:Z$31,\"auto-évaluation\")","v":0}]
[{"$nulls":4},"3ème",{"$f":"COUNTIF(H$33:H$44,\"ES\")","v":0},{"$f":"COUNTIF(H33:H44,\"auto-évaluation\")","v":0},null,{"$f":"COUNTIF(K$33:K$44,\"ES\")","v":0},{"$f":"COUNTIF(K33:K44,\"auto-évaluation\")","v":0},null,{"$f":"COUNTIF(N$33:N$44,\"ES\")","v":0},{"$f":"COUNTIF(N33:N44,\"auto-évaluation\")","v":0},null,{"$f":"COUNTIF(Q$33:Q$44,\"ES\")","v":0},{"$f":"COUNTIF(Q33:Q44,\"auto-évaluation\")","v":0},null,{"$f":"COUNTIF(T$33:T$44,\"ES\")","v":0},{"$f":"COUNTIF(T33:T44,\"auto-évaluation\")","v":0},null,{"$f":"COUNTIF(W$33:W$44,\"ES\")","v":0},{"$f":"COUNTIF(W33:W44,\"auto-évaluation\")","v":0},null,{"$f":"COUNTIF(Z$33:Z$44,\"ES\")","v":0},{"$f":"COUNTIF(Z33:Z44,\"auto-évaluation\")","v":0}]
[{"$nulls":4},"total cycle",{"$f":"COUNTIF(H7:H44,\"ES\")","v":0},{"$f":"COUNTIF(H7:H44,\"auto-évaluation\")","v":0},null,{"$f":"COUNTIF(K7:K44,\"ES\")","v":0},{"$f":"COUNTIF(K7:K44,\"auto-évaluation\")","v":0},null,{"$f":"COUNTIF(N7:N44,\"ES\")","v":0},{"$f":"COUNTIF(N7:N44,\"auto-évaluation\")","v":0},null,{"$f":"COUNTIF(Q7:Q44,\"ES\")","v":0},{"$f":"COUNTIF(Q7:Q44,\"auto-évaluation\")","v":0},null,{"$f":"COUNTIF(T7:T44,\"ES\")","v":0},{"$f":"COUNTIF(T7:T44,\"auto-évaluation\")","v":0},null,{"$f":"COUNTIF(W7:W44,\"ES\")","v":0},{"$f":"COUNTIF(W7:W44,\"auto-évaluation\")","v":0},null,{"$f":"COUNTIF(Z7:Z44,\"ES\")","v":0},{"$f":"COUNTIF(Z7:Z44,\"auto-évaluation\")","v":0}]

{"sheet":"Corps et Santé","index":3,"n_rows":60,"n_cols":26,"rows_kept":60,"merged":[[0,0,1,4],[1,5,1,7],[1,8,1,10],[1,11,1,13],[1,14,1,22],[1,23,1,25],[2,0,2,4],[2,5,2,7],[2,8,2,10],[2,11,2,13],[2,14,2,22],[2,23,2,25],[3,0,4,0],[3,1,4,1],[3,2,4,2],[3,3,3,4],[3,5,3,6],[3,7,4,7],[3,8,3,9],[3,10,4,10],[3,11,3,12],[3,13,4,13],[3,14,3,15],[3,16,4,16],[3,17,3,18],[3,19,4,19],[3,20,3,21],[3,22,4,22],[3,23,3,24],[3,25,4,25],[4,5,4,6],[4,8,4,9],[4,11,4,12],[4,14,4,15],[4,17,4,18],[4,20,4,21],[4,23,4,24],[5,0,5,25],[18,0,18,25],[31,0,31,25],[45,1,48,3],[50,1,59,3]]}
["Support de travail pour envisager une programmation de la thématique  de SVT du Cycle 4 :\nLe corps humain et la santé ",{"$nulls":4},"ED =","évaluation diagnostique",null,"EF =","évaluation formative",null,"ES = ","évaluation sommative"]
[{"$nulls":5},"Domaine 1 du socle :",null,null,"Domaine 2 du socle :",null,null,"Domaine 3 du socle :",null,null,"Domaine 4 du socle :",{"$nulls":8},"Domaine 5 du socle :"]
["point de vigilance : Les compétences énoncées gagneraient à ne pas être travaillées pour elles-mêmes mais activées au sein des trois thématiques du programme de SVT.",{"$nulls":4},"Pratiquer des langages pour penser et communiquer",null,null,"Les méthodes et les outils pour apprendre",null,null,"Formation de la personne et du citoyen",null,null,"Les systèmes techniques et naturels",{"$nulls":8},"Représentation du monde et activité humaine"]
["semaine","Attendus de fin de cycle","Compétences associées aux connaissances de la thématique","Activités",null,"compétences du programme de SVT ",null,"évaluation","compétences du programme de SVT",null,"évaluation","compétences du programme de SVT ",null,"évaluation","compétences du programme de SVT",null,"évaluation","compétences du programme de SVT ",null,"évaluation","compétences du programme de SVT ",null,"évaluation","compétences du programme de SVT ",null,"évaluation"]
[{"$nulls":3},"nature de l'activité","Titre de l'activité et/ou\nTitre de la partie\nRemarques ou \"Autre à définir\"","Pratiquer des langages (qualitatif) / Utiliser des outils numériques",null,null,"Utiliser des outils et mobiliser des méthodes pour apprendre / Utiliser des outils numériques",null,null,"Adopter un comportement éthique et responsable",null,null,"Pratiquer des démarches\nscientifiques et technologiques / Pratiquer des langages (pertinence, cohérence…)",null,null,"Concevoir, créer, réaliser",null,null,"Utiliser des outils numériques",null,null,"Se situer dans l'espace et dans le temps"]
[" Première année du cycle : 5ème ..."]
{"$rows_empty":12}
[" Deuxième année du cycle : 4ème ... "]
{"$rows_empty":12}
["Troisième année du cycle : 3ème ... "]
{"$rows_empty":13}
[null,"nombre de fois que la compétence est travaillée à travers cette thématique,par année et sur le cycle :",null,null,"5ème",{"$f":"COUNTA((F$7:G$18))","v":0},null,null,{"$f":"COUNTA((I$7:J$18))","v":0},null,null,{"$f":"COUNTA((L$7:M$18))","v":0},null,null,{"$f":"COUNTA((O$7:P$18))","v":0},null,null,{"$f":"COUNTA((R$7:S$18))","v":0},null,null,{"$f":"COUNTA((U$7:V$18))","v":0},null,null,{"$f":"COUNTA((X$7:Y$18))","v":0}]
[{"$nulls":4},"4ème",{"$f":"COUNTA((F$20:G$31))","v":0},null,null,{"$f":"COUNTA((I$20:J$31))","v":0},null,null,{"$f":"COUNTA((L$20:M$31))","v":0},null,null,{"$f":"COUNTA((O$20:P$31))","v":0},null,null,{"$f":"COUNTA((R$20:S$31))","v":0},null,null,{"$f":"COUNTA((U$20:V$31))","v":0},null,null,{"$f":"COUNTA((X$20:Y$31))","v":0}]
[{"$nulls":4},"3ème",{"$f":"COUNTA((F$33:G$44))","v":0},null,null,{"$f":"COUNTA((I$33:J$44))","v":0},null,null,{"$f":"COUNTA((L$33:M$44))","v":0},null,null,{"$f":"COUNTA((O$33:P$44))","v":0},null,null,{"$f":"COUNTA((R$33:S$44))","v":0},null,null,{"$f":"COUNTA((U$33:V$44))","v":0},null,null,{"$f":"COUNTA((X$33:Y$44))","v":0}]
[{"$nulls":4},"total cycle",{"$f":"COUNTA((F$7:G$44))","v":0},null,null,{"$f":"COUNTA((I$7:J$44))","v":0},null,null,{"$f":"COUNTA((L$7:M$44))","v":0},null,null,{"$f":"COUNTA((O$7:P$44))","v":0},null,null,{"$f":"COUNTA((R$7:S$44))","v":0},null,null,{"$f":"COUNTA((U$7:V$44))","v":0},null,null,{"$f":"COUNTA((X$7:Y$44))","v":0}]
[]
[null,"nombre de fois que la compétence est évaluée à travers cette thématique, par année et sur le cycle :",{"$nulls":3},"ED :","EF : ",null,"ED :","EF : ",null,"ED :","EF : ",null,"ED :","EF : ",null,"ED :","EF : ",null,"ED :","EF : ",null,"ED :","EF : "]
[{"$nulls":4},"5ème",{"$f":"COUNTIF(H$7:H$18,\"ED\")","v":0},{"$f":"COUNTIF(H$7:H$18,\"EF\")","v":0},null,{"$f":"COUNTIF(K$7:K$18,\"ED\")","v":0},{"$f":"COUNTIF(K$7:K$18,\"EF\")","v":0},null,{"$f":"COUNTIF(N$7:N$18,\"ED\")","v":0},{"$f":"COUNTIF(N$7:N$18,\"EF\")","v":0},null,{"$f":"COUNTIF(Q$7:Q$18,\"ED\")","v":0},{"$f":"COUNTIF(Q$7:Q$18,\"EF\")","v":0},null,{"$f":"COUNTIF(T$7:T$18,\"ED\")","v":0},{"$f":"COUNTIF(T$7:T$18,\"EF\")","v":0},null,{"$f":"COUNTIF(W$7:W$18,\"ED\")","v":0},{"$f":"COUNTIF(W$7:W$18,\"EF\")","v":0},null,{"$f":"COUNTIF(Z$7:Z$18,\"ED\")","v":0},{"$f":"COUNTIF(Z$7:Z$18,\"EF\")","v":0}]
[{"$nulls":4},"4ème",{"$f":"COUNTIF(H$20:H$31,\"ED\")","v":0},{"$f":"COUNTIF(H$20:H$31,\"EF\")","v":0},null,{"$f":"COUNTIF(K$20:K$31,\"ED\")","v":0},{"$f":"COUNTIF(K$20:K$31,\"EF\")","v":0},null,{"$f":"COUNTIF(N$20:N$31,\"ED\")","v":0},{"$f":"COUNTIF(N$20:N$31,\"EF\")","v":0},null,{"$f":"COUNTIF(Q$20:Q$31,\"ED\")","v":0},{"$f":"COUNTIF(Q$20:Q$31,\"EF\")","v":0},null,{"$f":"COUNTIF(T$20:T$31,\"ED\")","v":0},{"$f":"COUNTIF(T$20:T$31,\"EF\")","v":0},null,{"$f":"COUNTIF(W$20:W$31,\"ED\")","v":0},{"$f":"COUNTIF(W$20:W$31,\"EF\")","v":0},null,{"$f":"COUNTIF(Z$20:Z$31,\"ED\")","v":0},{"$f":"COUNTIF(Z$20:Z$31,\"EF\")","v":0}]
[{"$nulls":4},"3ème",{"$f":"COUNTIF(H$33:H$44,\"ED\")","v":0},{"$f":"COUNTIF(H$33:$H44,\"EF\")","v":0},null,{"$f":"COUNTIF(K$33:K$44,\"ED\")","v":0},{"$f":"COUNTIF($H$33:K44,\"EF\")","v":0},null,{"$f":"COUNTIF(N$33:N$44,\"ED\")","v":0},{"$f":"COUNTIF($H$33:N44,\"EF\")","v":0},null,{"$f":"COUNTIF(Q$33:Q$44,\"ED\")","v":0},{"$f":"COUNTIF($H$33:Q44,\"EF\")","v":0},null,{"$f":"COUNTIF(T$33:T$44,\"ED\")","v":0},{"$f":"COUNTIF($H$33:T44,\"EF\")","v":0},null,{"$f":"COUNTIF(W$33:W$44,\"ED\")","v":0},{"$f":"COUNTIF($H$33:W44,\"EF\")","v":0},null,{"$f":"COUNTIF(Z$33:Z$44,\"ED\")","v":0},{"$f":"COUNTIF($Z$33:Z44,\"EF\")","v":0}]
[{"$nulls":4},"total cycle",{"$f":"COUNTIF(H7:H44,\"ED\")","v":0},{"$f":"COUNTIF(H7:H44,\"EF\")","v":0},null,{"$f":"COUNTIF(K7:K44,\"ED\")","v":0},{"$f":"COUNTIF(K7:K44,\"EF\")","v":0},null,{"$f":"COUNTIF(N7:N44,\"ED\")","v":0},{"$f":"COUNTIF(N7:N44,\"EF\")","v":0},null,{"$f":"COUNTIF(Q7:Q44,\"ED\")","v":0},{"$f":"COUNTIF(Q7:Q44,\"EF\")","v":0},null,{"$f":"COUNTIF(T7:T44,\"ED\")","v":0},{"$f":"COUNTIF(T7:T44,\"EF\")","v":0},null,{"$f":"COUNTIF(W7:W44,\"ED\")","v":0},{"$f":"COUNTIF(W7:W44,\"EF\")","v":0},null,{"$f":"COUNTIF(Z7:Z44,\"ED\")","v":0},{"$f":"COUNTIF(Z7:Z44,\"EF\")","v":0}]
[{"$nulls":5},"ES : ","auto-évaluation : ",null,"ES : ","auto-évaluation : ",null,"ES : ","auto-évaluation : ",null,"ES : ","auto-évaluation : ",null,"ES : ","auto-évaluation : ",null,"ES : ","auto-évaluation : ",null,"ES : ","auto-évaluation : "]
[{"$nulls":4},"5ème",{"$f":"COUNTIF(H$7:H$18,\"ES\")","v":0},{"$f":"COUNTIF(H$7:H$18,\"auto-évaluation\")","v":0},null,{"$f":"COUNTIF(K$7:K$18,\"ES\")","v":0},{"$f":"COUNTIF(K$7:K$18,\"auto-évaluation\")","v":0},null,{"$f":"COUNTIF(N$7:N$18,\"ES\")","v":0},{"$f":"COUNTIF(N$7:N$18,\"auto-évaluation\")","v":0},null,{"$f":"COUNTIF(Q$7:Q$18,\"ES\")","v":0},{"$f":"COUNTIF(Q$7:Q$18,\"auto-évaluation\")","v":0},null,{"$f":"COUNTIF(T$7:T$18,\"ES\")","v":0},{"$f":"COUNTIF(T$7:T$18,\"auto-évaluation\")","v":0},null,{"$f":"COUNTIF(W$7:W$18,\"ES\")","v":0},{"$f":"COUNTIF(W$7:W$18,\"auto-évaluation\")","v":0},null,{"$f":"COUNTIF(Z$7:Z$18,\"ES\")","v":0},{"$f":"COUNTIF(Z$7:Z$18,\"auto-évaluation\")","v":0}]
[{"$nulls":4},"4ème",{"$f":"COUNTIF(H$20:H$31,\"ES\")","v":0},{"$f":"COUNTIF(H$20:H$31,\"auto-évaluation\")","v":0},null,{"$f":"COUNTIF(K$20:K$31,\"ES\")","v":0},{"$f":"COUNTIF(K$20:K$31,\"auto-évaluation\")","v":0},null,{"$f":"COUNTIF(N$20:N$31,\"ES\")","v":0},{"$f":"COUNTIF(N$20:N$31,\"auto-évaluation\")","v":0},null,{"$f":"COUNTIF(Q$20:Q$31,\"ES\")","v":0},{"$f":"COUNTIF(Q$20:Q$31,\"auto-évaluation\")","v":0},null,{"$f":"COUNTIF(T$20:T$31,\"ES\")","v":0},{"$f":"COUNTIF(T$20:T$31,\"auto-évaluation\")","v":0},null,{"$f":"COUNTIF(W$20:W$31,\"ES\")","v":0},{"$f":"COUNTIF(W$20:W$31,\"auto-évaluation\")","v":0},null,{"$f":"COUNTIF(Z$20:Z$31,\"ES\")","v":0},{"$f":"COUNTIF(Z$20:Z$31,\"auto-évaluation\")","v":0}]
[{"$nulls":4},"3ème",{"$f":"COUNTIF(H$33:H$44,\"ES\")","v":0},{"$f":"COUNTIF(H33:H44,\"auto-évaluation\")","v":0},null,{"$f":"COUNTIF(K$33:K$44,\"ES\")","v":0},{"$f":"COUNTIF(K33:K44,\"auto-évaluation\")","v":0},null,{"$f":"COUNTIF(N$33:N$44,\"ES\")","v":0},{"$f":"COUNTIF(N33:N44,\"auto-évaluation\")","v":0},null,{"$f":"COUNTIF(Q$33:Q$44,\"ES\")","v":0},{"$f":"COUNTIF(Q33:Q44,\"auto-évaluation\")","v":0},null,{"$f":"COUNTIF(T$33:T$44,\"ES\")","v":0},{"$f":"COUNTIF(T33:T44,\"auto-évaluation\")","v":0},null,{"$f":"COUNTIF(W$33:W$44,\"ES\")","v":0},{"$f":"COUNTIF(W33:W44,\"auto-évaluation\")","v":0},null,{"$f":"COUNTIF(Z$33:Z$44,\"ES\")","v":0},{"$f":"COUNTIF(Z33:Z44,\"auto-évaluation\")","v":0}]
[{"$nulls":4},"total cycle",{"$f":"COUNTIF(H7:H44,\"ES\")","v":0},{"$f":"COUNTIF(H7:H44,\"auto-évaluation\")","v":0},null,{"$f":"COUNTIF(K7:K44,\"ES\")","v":0},{"$f":"COUNTIF(K7:K44,\"auto-évaluation\")","v":0},null,{"$f":"COUNTIF(N7:N44,\"ES\")","v":0},{"$f":"COUNTIF(N7:N44,\"auto-évaluation\")","v":0},null,{"$f":"COUNTIF(Q7:Q44,\"ES\")","v":0},{"$f":"COUNTIF(Q7:Q44,\"auto-évaluation\")","v":0},null,{"$f":"COUNTIF(T7:T44,\"ES\")","v":0},{"$f":"COUNTIF(T7:T44,\"auto-évaluation\")","v":0},null,{"$f":"COUNTIF(W7:W44,\"ES\")","v":0},{"$f":"COUNTIF(W7:W44,\"auto-évaluation\")","v":0},null,{"$f":"COUNTIF(Z7:Z44,\"ES\")","v":0},{"$f":"COUNTIF(Z7:Z44,\"auto-évaluation\")","v":0}]

{"sheet":"bilan compétences","index":4,"n_rows":55,"n_cols":16,"rows_kept":55,"merged":[[0,0,2,1],[0,2,0,13],[0,14,2,14],[0,15,2,15],[1,3,1,5],[1,7,1,9],[1,11,1,13],[3,0,8,0],[3,15,8,15],[11,0,18,0],[11,15,18,15],[21,0,25,0],[21,15,25,15],[28,0,46,0],[28,15,46,15],[49,0,53,0],[49,15,53,15]]}
["Bilan du travail par compétences\nenvisagé sur l'ensemble du Cycle 4,\net par année scolaire au cours du Cycle 4",null,"nombre total de fois que chaque compétence serait travaillée par thématique sur l'ensemble du cycle :",{"$nulls":11},"nombre total de fois que chaque compétence serait travaillée sur le cycle :","nombre total de fois que chaque domaine du socle serait travaillé sur le cycle :"]
[null,null,"Thématique 1 :","Terre et \"enjeux\"",null,null,"Thématique 2 :","Vivant et évolution",null,null,"Thématique 3 :","Corps humain …"]
[null,null,"La planète Terre, l’environnement et l’action humaine","5ème","4ème","3ème","Le vivant et son évolution","5ème","4ème","3ème","Le corps humain et la santé","5ème","4ème","3ème"]
[{"$f":"'Listes déroulantes'!E1","v":"Domaine 1 du socle : pratiquer des langages pour penser et communiquer"},{"$f":"'Listes déroulantes'!E3","v":"Communiquer à l'ORAL dans un langage scientifiquement approprié "},{"$f":"COUNTIFS('Terre et action humaine'!$F$7:$G$44,$B4)","v":0},{"$f":"COUNTIFS('Terre et action humaine'!$F$7:$G$18,$B4)","v":0},{"$f":"COUNTIFS('Terre et action humaine'!$F$20:$G$31,$B4)","v":0},{"$f":"COUNTIFS('Terre et action humaine'!$F$33:$G$44,$B4)","v":0},{"$f":"COUNTIFS(Vivant!$F$7:G$44,$B4)","v":0},{"$f":"COUNTIFS(Vivant!$F$7:H$18,$B4)","v":0},{"$f":"COUNTIFS(Vivant!$F$20:I$31,$B4)","v":0},{"$f":"COUNTIFS(Vivant!$F$33:J$44,$B4)","v":0},{"$f":"COUNTIFS('Corps et Santé'!$F$7:G$44,$B4)","v":0},{"$f":"COUNTIFS('Corps et Santé'!$F$7:H$18,$B4)","v":0},{"$f":"COUNTIFS('Corps et Santé'!$F$20:I$31,$B4)","v":0},{"$f":"COUNTIFS('Corps et Santé'!$F$33:J$44,$B4)","v":0},{"$f":"SUM(C4,G4,K4)","v":0},{"$f":"SUM(O4:O9)","v":0}]
[null,{"$f":"'Listes déroulantes'!E4","v":"Communiquer à l'ECRIT dans un langage scientifiquement approprié "},{"$f":"COUNTIFS('Terre et action humaine'!$F$7:G$44,$B5)","v":0},{"$f":"COUNTIFS('Terre et action humaine'!$F$7:H$18,$B5)","v":0},{"$f":"COUNTIFS('Terre et action humaine'!$F$20:I$31,$B5)","v":0},{"$f":"COUNTIFS('Terre et action humaine'!$F$33:J$44,$B5)","v":0},{"$f":"COUNTIFS(Vivant!$F$7:G$44,$B5)","v":0},{"$f":"COUNTIFS(Vivant!$F$7:H$18,$B5)","v":0},{"$f":"COUNTIFS(Vivant!$F$20:I$31,$B5)","v":0},{"$f":"COUNTIFS(Vivant!$F$33:J$44,$B5)","v":0},{"$f":"COUNTIFS('Corps et Santé'!$F$7:G$44,$B5)","v":0},{"$f":"COUNTIFS('Corps et Santé'!$F$7:H$18,$B5)","v":0},{"$f":"COUNTIFS('Corps et Santé'!$F$20:I$31,$B5)","v":0},{"$f":"COUNTIFS('Corps et Santé'!$F$33:J$44,$B5)","v":0},0]
[null,{"$f":"'Listes déroulantes'!E5","v":"Lire et exploiter des données présentées sous différentes formes : schémas, tableaux, graphiques, cartes heuristiques, …"},{"$f":"COUNTIFS('Terre et action humaine'!$F$7:G$44,$B6)","v":0},{"$f":"COUNTIFS('Terre et action humaine'!$F$7:H$18,$B6)","v":0},{"$f":"COUNTIFS('Terre et action humaine'!$F$20:I$31,$B6)","v":0},{"$f":"COUNTIFS('Terre et action humaine'!$F$33:J$44,$B6)","v":0},{"$f":"COUNTIFS(Vivant!$F$7:G$44,$B6)","v":0},{"$f":"COUNTIFS(Vivant!$F$7:H$18,$B6)","v":0},{"$f":"COUNTIFS(Vivant!$F$20:I$31,$B6)","v":0},{"$f":"COUNTIFS(Vivant!$F$33:J$44,$B6)","v":0},{"$f":"COUNTIFS('Corps et Santé'!$F$7:G$44,$B6)","v":0},{"$f":"COUNTIFS('Corps et Santé'!$F$7:H$18,$B6)","v":0},{"$f":"COUNTIFS('Corps et Santé'!$F$20:I$31,$B6)","v":0},{"$f":"COUNTIFS('Corps et Santé'!$F$33:J$44,$B6)","v":0},0]
[null,{"$f":"'Listes déroulantes'!E6","v":"Passer d’une représentation à une autre"},{"$f":"COUNTIFS('Terre et action humaine'!$F$7:G$44,$B7)","v":0},{"$f":"COUNTIFS('Terre et action humaine'!$F$7:H$18,$B7)","v":0},{"$f":"COUNTIFS('Terre et action humaine'!$F$20:I$31,$B7)","v":0},{"$f":"COUNTIFS('Terre et action humaine'!$F$33:J$44,$B7)","v":0},{"$f":"COUNTIFS(Vivant!$F$7:G$44,$B7)","v":0},{"$f":"COUNTIFS(Vivant!$F$7:H$18,$B7)","v":0},{"$f":"COUNTIFS(Vivant!$F$20:I$31,$B7)","v":0},{"$f":"COUNTIFS(Vivant!$F$33:J$44,$B7)","v":0},{"$f":"COUNTIFS('Corps et Santé'!$F$7:G$44,$B7)","v":0},{"$f":"COUNTIFS('Corps et Santé'!$F$7:H$18,$B7)","v":0},{"$f":"COUNTIFS('Corps et Santé'!$F$20:I$31,$B7)","v":0},{"$f":"COUNTIFS('Corps et Santé'!$F$33:J$44,$B7)","v":0},0]
[null,{"$f":"'Listes déroulantes'!E7","v":"Choisir une représentation adaptée à la situation de travail"},{"$f":"COUNTIFS('Terre et action humaine'!$F$7:G$44,$B8)","v":0},{"$f":"COUNTIFS('Terre et action humaine'!$F$7:H$18,$B8)","v":0},{"$f":"COUNTIFS('Terre et action humaine'!$F$20:I$31,$B8)","v":0},{"$f":"COUNTIFS('Terre et action humaine'!$F$33:J$44,$B8)","v":0},{"$f":"COUNTIFS(Vivant!$F$7:G$44,$B8)","v":0},{"$f":"COUNTIFS(Vivant!$F$7:H$18,$B8)","v":0},{"$f":"COUNTIFS(Vivant!$F$20:I$31,$B8)","v":0},{"$f":"COUNTIFS(Vivant!$F$33:J$44,$B8)","v":0},{"$f":"COUNTIFS('Corps et Santé'!$F$7:G$44,$B8)","v":0},{"$f":"COUNTIFS('Corps et Santé'!$F$7:H$18,$B8)","v":0},{"$f":"COUNTIFS('Corps et Santé'!$F$20:I$31,$B8)","v":0},{"$f":"COUNTIFS('Corps et Santé'!$F$33:J$44,$B8)","v":0},0]
[null,{"$f":"'Listes déroulantes'!E8","v":"Autre à définir"},{"$f":"COUNTIFS('Terre et action humaine'!$F$7:G$44,$B9)","v":0},{"$f":"COUNTIFS('Terre et action humaine'!$F$7:H$18,$B9)","v":0},{"$f":"COUNTIFS('Terre et action humaine'!$F$20:I$31,$B9)","v":0},{"$f":"COUNTIFS('Terre et action humaine'!$F$33:J$44,$B9)","v":0},{"$f":"COUNTIFS(Vivant!$F$7:G$44,$B9)","v":0},{"$f":"COUNTIFS(Vivant!$F$7:H$18,$B9)","v":0},{"$f":"COUNTIFS(Vivant!$F$20:I$31,$B9)","v":0},{"$f":"COUNTIFS(Vivant!$F$33:J$44,$B9)","v":0},{"$f":"COUNTIFS('Corps et Santé'!$F$7:G$44,$B9)","v":0},{"$f":"COUNTIFS('Corps et Santé'!$F$7:H$18,$B9)","v":0},{"$f":"COUNTIFS('Corps et Santé'!$F$20:I$31,$B9)","v":0},{"$f":"COUNTIFS('Corps et Santé'!$F$33:J$44,$B9)","v":0},0]
[null,"vérification total compétences par thématique :",{"$f":"SUM(C4:C9)","v":0},0,0,0,0,0,0,0,0,0,0,0]
[]
[{"$f":"'Listes déroulantes'!F1","v":"Domaine 2 du socle :Les méthodes et les outils pour apprendre"},{"$f":"'Listes déroulantes'!F3","v":"Organiser son travail (par ex. pour mettre en œuvre un protocole expérimental)."},{"$f":"COUNTIFS('Terre et action humaine'!$I$7:J$44,$B12)","v":0},{"$f":"COUNTIFS('Terre et action humaine'!$I$7:K$18,$B12)","v":0},{"$f":"COUNTIFS('Terre et action humaine'!$I$20:L$31,$B12)","v":0},{"$f":"COUNTIFS('Terre et action humaine'!$I$33:M$44,$B12)","v":0},{"$f":"COUNTIFS(Vivant!$I$7:J$44,$B12)","v":0},{"$f":"COUNTIFS(Vivant!$I$7:K$18,$B12)","v":0},{"$f":"COUNTIFS(Vivant!$I$20:L$31,$B12)","v":0},{"$f":"COUNTIFS(Vivant!$I$33:M$44,$B12)","v":0},{"$f":"COUNTIFS('Corps et Santé'!$I$7:J$44,$B12)","v":0},{"$f":"COUNTIFS('Corps et Santé'!$I$7:K$18,$B12)","v":0},{"$f":"COUNTIFS('Corps et Santé'!$I$20:L$31,$B12)","v":0},{"$f":"COUNTIFS('Corps et Santé'!$I$33:M$44,$B12)","v":0},{"$f":"SUM(C12,G12,K12)","v":0},{"$f":"SUM(O12:O19)","v":0}]
[null,{"$f":"'Listes déroulantes'!F4","v":"Savoir garder trace de ses recherches : à l’oral"},{"$f":"COUNTIFS('Terre et action humaine'!$I$7:J$44,$B13)","v":0},{"$f":"COUNTIFS('Terre et action humaine'!$I$7:K$18,$B13)","v":0},{"$f":"COUNTIFS('Terre et action humaine'!$I$20:L$31,$B13)","v":0},{"$f":"COUNTIFS('Terre et action humaine'!$I$33:M$44,$B13)","v":0},{"$f":"COUNTIFS(Vivant!$I$7:J$44,$B13)","v":0},{"$f":"COUNTIFS(Vivant!$I$7:K$18,$B13)","v":0},{"$f":"COUNTIFS(Vivant!$I$20:L$31,$B13)","v":0},{"$f":"COUNTIFS(Vivant!$I$33:M$44,$B13)","v":0},{"$f":"COUNTIFS('Corps et Santé'!$I$7:J$44,$B13)","v":0},{"$f":"COUNTIFS('Corps et Santé'!$I$7:K$18,$B13)","v":0},{"$f":"COUNTIFS('Corps et Santé'!$I$20:L$31,$B13)","v":0},{"$f":"COUNTIFS('Corps et Santé'!$I$33:M$44,$B13)","v":0},{"$f":"SUM(C13,G13,K13)","v":0}]
[null,{"$f":"'Listes déroulantes'!F5","v":"Savoir garder trace de ses recherches : à l’écrit"},{"$f":"COUNTIFS('Terre et action humaine'!$I$7:J$44,$B14)","v":0},{"$f":"COUNTIFS('Terre et action humaine'!$I$7:K$18,$B14)","v":0},{"$f":"COUNTIFS('Terre et action humaine'!$I$20:L$31,$B14)","v":0},{"$f":"COUNTIFS('Terre et action humaine'!$I$33:M$44,$B14)","v":0},{"$f":"COUNTIFS(Vivant!$I$7:J$44,$B14)","v":0},{"$f":"COUNTIFS(Vivant!$I$7:K$18,$B14)","v":0},{"$f":"COUNTIFS(Vivant!$I$20:L$31,$B14)","v":0},{"$f":"COUNTIFS(Vivant!$I$33:M$44,$B14)","v":0},{"$f":"COUNTIFS('Corps et Santé'!$I$7:J$44,$B14)","v":0},{"$f":"COUNTIFS('Corps et Santé'!$I$7:K$18,$B14)","v":0},{"$f":"COUNTIFS('Corps et Santé'!$I$20:L$31,$B14)","v":0},{"$f":"COUNTIFS('Corps et Santé'!$I$33:M$44,$B14)","v":0},{"$f":"SUM(C14,G14,K14)","v":0}]
[null,{"$f":"'Listes déroulantes'!F6","v":"Coopérer, collaborer"},{"$f":"COUNTIFS('Terre et action humaine'!$I$7:J$44,$B15)","v":0},{"$f":"COUNTIFS('Terre et action humaine'!$I$7:K$18,$B15)","v":0},{"$f":"COUNTIFS('Terre et action humaine'!$I$20:L$31,$B15)","v":0},{"$f":"COUNTIFS('Terre et action humaine'!$I$33:M$44,$B15)","v":0},{"$f":"COUNTIFS(Vivant!$I$7:J$44,$B15)","v":0},{"$f":"COUNTIFS(Vivant!$I$7:K$18,$B15)","v":0},{"$f":"COUNTIFS(Vivant!$I$20:L$31,$B15)","v":0},{"$f":"COUNTIFS(Vivant!$I$33:M$44,$B15)","v":0},{"$f":"COUNTIFS('Corps et Santé'!$I$7:J$44,$B15)","v":0},{"$f":"COUNTIFS('Corps et Santé'!$I$7:K$18,$B15)","v":0},{"$f":"COUNTIFS('Corps et Santé'!$I$20:L$31,$B15)","v":0},{"$f":"COUNTIFS('Corps et Santé'!$I$33:M$44,$B15)","v":0},{"$f":"SUM(C15,G15,K15)","v":0}]
[null,{"$f":"'Listes déroulantes'!F7","v":"Utiliser de façon réfléchie les outils numériques : simulation, acquisition et traitement de données"},{"$f":"COUNTIFS('Terre et action humaine'!$I$7:J$44,$B16)","v":0},{"$f":"COUNTIFS('Terre et action humaine'!$I$7:K$18,$B16)","v":0},{"$f":"COUNTIFS('Terre et action humaine'!$I$20:L$31,$B16)","v":0},{"$f":"COUNTIFS('Terre et action humaine'!$I$33:M$44,$B16)","v":0},{"$f":"COUNTIFS(Vivant!$I$7:J$44,$B16)","v":0},{"$f":"COUNTIFS(Vivant!$I$7:K$18,$B16)","v":0},{"$f":"COUNTIFS(Vivant!$I$20:L$31,$B16)","v":0},{"$f":"COUNTIFS(Vivant!$I$33:M$44,$B16)","v":0},{"$f":"COUNTIFS('Corps et Santé'!$I$7:J$44,$B16)","v":0},{"$f":"COUNTIFS('Corps et Santé'!$I$7:K$18,$B16)","v":0},{"$f":"COUNTIFS('Corps et Santé'!$I$20:L$31,$B16)","v":0},{"$f":"COUNTIFS('Corps et Santé'!$I$33:M$44,$B16)","v":0},0]
[null,{"$f":"'Listes déroulantes'!F8","v":"Conduire une recherche d’informations sur internet pertinentente (lien avec un problème scientifique, mots-clés, évaluation de la fiabilité des sources et la validité́ des résultats….) "},{"$f":"COUNTIFS('Terre et action humaine'!$I$7:J$44,$B17)","v":0},{"$f":"COUNTIFS('Terre et action humaine'!$I$7:K$18,$B17)","v":0},{"$f":"COUNTIFS('Terre et action humaine'!$I$20:L$31,$B17)","v":0},{"$f":"COUNTIFS('Terre et action humaine'!$I$33:M$44,$B17)","v":0},{"$f":"COUNTIFS(Vivant!$I$7:J$44,$B17)","v":0},{"$f":"COUNTIFS(Vivant!$I$7:K$18,$B17)","v":0},{"$f":"COUNTIFS(Vivant!$I$20:L$31,$B17)","v":0},{"$f":"COUNTIFS(Vivant!$I$33:M$44,$B17)","v":0},{"$f":"COUNTIFS('Corps et Santé'!$I$7:J$44,$B17)","v":0},{"$f":"COUNTIFS('Corps et Santé'!$I$7:K$18,$B17)","v":0},{"$f":"COUNTIFS('Corps et Santé'!$I$20:L$31,$B17)","v":0},{"$f":"COUNTIFS('Corps et Santé'!$I$33:M$44,$B17)","v":0},0]
[null,{"$f":"'Listes déroulantes'!F9","v":"Identifier des notions, des outils et des techniques, ou des modèles simples pour répondre à une consigne"},{"$f":"COUNTIFS('Terre et action humaine'!$I$7:J$44,$B18)","v":0},{"$f":"COUNTIFS('Terre et action humaine'!$I$7:K$18,$B18)","v":0},{"$f":"COUNTIFS('Terre et action humaine'!$I$20:L$31,$B18)","v":0},{"$f":"COUNTIFS('Terre et action humaine'!$I$33:M$44,$B18)","v":0},{"$f":"COUNTIFS(Vivant!$I$7:J$44,$B18)","v":0},{"$f":"COUNTIFS(Vivant!$I$7:K$18,$B18)","v":0},{"$f":"COUNTIFS(Vivant!$I$20:L$31,$B18)","v":0},{"$f":"COUNTIFS(Vivant!$I$33:M$44,$B18)","v":0},{"$f":"COUNTIFS('Corps et Santé'!$I$7:J$44,$B18)","v":0},{"$f":"COUNTIFS('Corps et Santé'!$I$7:K$18,$B18)","v":0},{"$f":"COUNTIFS('Corps et Santé'!$I$20:L$31,$B18)","v":0},{"$f":"COUNTIFS('Corps et Santé'!$I$33:M$44,$B18)","v":0},0]
[null,{"$f":"'Listes déroulantes'!F10","v":"Autre à définir"},{"$f":"COUNTIFS('Terre et action humaine'!$I$7:J$44,$B19)","v":0},{"$f":"COUNTIFS('Terre et action humaine'!$I$7:K$18,$B19)","v":0},{"$f":"COUNTIFS('Terre et action humaine'!$I$20:L$31,$B19)","v":0},{"$f":"COUNTIFS('Terre et action humaine'!$I$33:M$44,$B19)","v":0},{"$f":"COUNTIFS(Vivant!$I$7:J$44,$B19)","v":0},{"$f":"COUNTIFS(Vivant!$I$7:K$18,$B19)","v":0},{"$f":"COUNTIFS(Vivant!$I$20:L$31,$B19)","v":0},{"$f":"COUNTIFS(Vivant!$I$33:M$44,$B19)","v":0},{"$f":"COUNTIFS('Corps et Santé'!$I$7:J$44,$B19)","v":0},{"$f":"COUNTIFS('Corps et Santé'!$I$7:K$18,$B19)","v":0},{"$f":"COUNTIFS('Corps et Santé'!$I$20:L$31,$B19)","v":0},{"$f":"COUNTIFS('Corps et Santé'!$I$33:M$44,$B19)","v":0},0]
[null,"vérification total compétences par thématique :",{"$f":"SUM(C15:C19)","v":0},0,0,0,0,0,0,0,0,0,0,0]
[]
[{"$f":"'Listes déroulantes'!G1","v":"Domaine 3 du socle : Formation de la personne et du citoyen"},{"$f":"'Listes déroulantes'!G3","v":"Distinguer ce qui relève d’une croyance ou d’une idée et ce qui constitue un savoir scientifique"},{"$f":"COUNTIFS('Terre et action humaine'!$L$7:$M$44,$B22)","v":0},{"$f":"COUNTIFS('Terre et action humaine'!$L$7:$M$18,$B22)","v":0},{"$f":"COUNTIFS('Terre et action humaine'!$L$20:$M$31,$B22)","v":0},{"$f":"COUNTIFS('Terre et action humaine'!$L$33:$M$44,$B22)","v":0},{"$f":"COUNTIFS(Vivant!$L$7:$M$44,$B22)","v":0},{"$f":"COUNTIFS(Vivant!$L$7:$M$18,$B22)","v":0},{"$f":"COUNTIFS(Vivant!$L$20:$M$31,$B22)","v":0},{"$f":"COUNTIFS(Vivant!$L$33:$M$44,$B22)","v":0},{"$f":"COUNTIFS('Corps et Santé'!$L$7:$M$44,$B22)","v":0},{"$f":"COUNTIFS('Corps et Santé'!$L$7:$M$18,$B22)","v":0},{"$f":"COUNTIFS('Corps et Santé'!$L$20:$M$31,$B22)","v":0},{"$f":"COUNTIFS('Corps et Santé'!$L$33:$M$44,$B22)","v":0},{"$f":"SUM(C22,G22,K22)","v":0},{"$f":"SUM(O22:O26)","v":0}]
[null,{"$f":"'Listes déroulantes'!G4","v":"Identifier les impacts (bénéfices et nuisances) des activités humaines sur l’environnement à différentes échelles. "},{"$f":"COUNTIFS('Terre et action humaine'!$L$7:$M$44,$B23)","v":0},{"$f":"COUNTIFS('Terre et action humaine'!$L$7:$M$18,$B23)","v":0},{"$f":"COUNTIFS('Terre et action humaine'!$L$20:$M$31,$B23)","v":0},{"$f":"COUNTIFS('Terre et action humaine'!$L$33:$M$44,$B23)","v":0},{"$f":"COUNTIFS(Vivant!$L$7:$M$44,$B23)","v":0},{"$f":"COUNTIFS(Vivant!$L$7:$M$18,$B23)","v":0},{"$f":"COUNTIFS(Vivant!$L$20:$M$31,$B23)","v":0},{"$f":"COUNTIFS(Vivant!$L$33:$M$44,$B23)","v":0},{"$f":"COUNTIFS('Corps et Santé'!$L$7:$M$44,$B23)","v":0},{"$f":"COUNTIFS('Corps et Santé'!$L$7:$M$18,$B23)","v":0},{"$f":"COUNTIFS('Corps et Santé'!$L$20:$M$31,$B23)","v":0},{"$f":"COUNTIFS('Corps et Santé'!$L$33:$M$44,$B23)","v":0},{"$f":"SUM(C23,G23,K23)","v":0}]
[null,{"$f":"'Listes déroulantes'!G5","v":"Comprendre les responsabilités individuelle et collective en matière de préservation des ressources de la planète (biodiversité, ressources minérales et ressources énergétiques) et de santé. "},{"$f":"COUNTIFS('Terre et action humaine'!$L$7:$M$44,$B24)","v":0},{"$f":"COUNTIFS('Terre et action humaine'!$L$7:$M$18,$B24)","v":0},{"$f":"COUNTIFS('Terre et action humaine'!$L$20:$M$31,$B24)","v":0},{"$f":"COUNTIFS('Terre et action humaine'!$L$33:$M$44,$B24)","v":0},{"$f":"COUNTIFS(Vivant!$L$7:$M$44,$B24)","v":0},{"$f":"COUNTIFS(Vivant!$L$7:$M$18,$B24)","v":0},{"$f":"COUNTIFS(Vivant!$L$20:$M$31,$B24)","v":0},{"$f":"COUNTIFS(Vivant!$L$33:$M$44,$B24)","v":0},{"$f":"COUNTIFS('Corps et Santé'!$L$7:$M$44,$B24)","v":0},{"$f":"COUNTIFS('Corps et Santé'!$L$7:$M$18,$B24)","v":0},{"$f":"COUNTIFS('Corps et Santé'!$L$20:$M$31,$B24)","v":0},{"$f":"COUNTIFS('Corps et Santé'!$L$33:$M$44,$B24)","v":0},{"$f":"SUM(C24,G24,K24)","v":0}]
[null,{"$f":"'Listes déroulantes'!G6","v":"Participer à l’élaboration de règles de sécurité et les appliquer au laboratoire et sur le terrain."},{"$f":"COUNTIFS('Terre et action humaine'!$L$7:$M$44,$B25)","v":0},{"$f":"COUNTIFS('Terre et action humaine'!$L$7:$M$18,$B25)","v":0},{"$f":"COUNTIFS('Terre et action humaine'!$L$20:$M$31,$B25)","v":0},{"$f":"COUNTIFS('Terre et action humaine'!$L$33:$M$44,$B25)","v":0},{"$f":"COUNTIFS(Vivant!$L$7:$M$44,$B25)","v":0},{"$f":"COUNTIFS(Vivant!$L$7:$M$18,$B25)","v":0},{"$f":"COUNTIFS(Vivant!$L$20:$M$31,$B25)","v":0},{"$f":"COUNTIFS(Vivant!$L$33:$M$44,$B25)","v":0},{"$f":"COUNTIFS('Corps et Santé'!$L$7:$M$44,$B25)","v":0},{"$f":"COUNTIFS('Corps et Santé'!$L$7:$M$18,$B25)","v":0},{"$f":"COUNTIFS('Corps et Santé'!$L$20:$M$31,$B25)","v":0},{"$f":"COUNTIFS('Corps et Santé'!$L$33:$M$44,$B25)","v":0},{"$f":"SUM(C25,G25,K25)","v":0}]
[null,{"$f":"'Listes déroulantes'!G7","v":"Autre à définir"},{"$f":"COUNTIFS('Terre et action humaine'!$L$7:$M$44,$B26)","v":0},{"$f":"COUNTIFS('Terre et action humaine'!$L$7:$M$18,$B26)","v":0},{"$f":"COUNTIFS('Terre et action humaine'!$L$20:$M$31,$B26)","v":0},{"$f":"COUNTIFS('Terre et action humaine'!$L$33:$M$44,$B26)","v":0},{"$f":"COUNTIFS(Vivant!$L$7:$M$44,$B26)","v":0},{"$f":"COUNTIFS(Vivant!$L$7:$M$18,$B26)","v":0},{"$f":"COUNTIFS(Vivant!$L$20:$M$31,$B26)","v":0},{"$f":"COUNTIFS(Vivant!$L$33:$M$44,$B26)","v":0},{"$f":"COUNTIFS('Corps et Santé'!$L$7:$M$44,$B26)","v":0},{"$f":"COUNTIFS('Corps et Santé'!$L$7:$M$18,$B26)","v":0},{"$f":"COUNTIFS('Corps et Santé'!$L$20:$M$31,$B26)","v":0},{"$f":"COUNTIFS('Corps et Santé'!$L$33:$M$44,$B26)","v":0},{"$f":"SUM(C26,G26,K26)","v":0}]
[null,"vérification total compétences par thématique :",{"$f":"SUM(C22:C26)","v":0},0,0,0,0,0,0,0,0,0,0,0]
[]
[{"$f":"'Listes déroulantes'!H1","v":"Domaine 4 du socle : Les systèmes techniques et naturels"},{"$f":"'Listes déroulantes'!H3","v":"Formuler une question ou un problème scientifique."},{"$f":"COUNTIFS('Terre et action humaine'!$O$7:$P$44,$B29)","v":0},{"$f":"COUNTIFS('Terre et action humaine'!$O$7:$P$18,$B29)","v":0},{"$f":"COUNTIFS('Terre et action humaine'!$O$20:$P$31,$B29)","v":0},{"$f":"COUNTIFS('Terre et action humaine'!$O$33:$P$44,$B29)","v":0},{"$f":"COUNTIFS(Vivant!$O$7:$P$44,$B29)","v":0},{"$f":"COUNTIFS(Vivant!$O$7:$P$18,$B29)","v":0},{"$f":"COUNTIFS(Vivant!$O$20:$P$31,$B29)","v":0},{"$f":"COUNTIFS(Vivant!$O$33:$P$44,$B29)","v":0},{"$f":"COUNTIFS('Corps et Santé'!$O$7:$P$44,$B29)","v":0},{"$f":"COUNTIFS('Corps et Santé'!$O$7:$P$18,$B29)","v":0},{"$f":"COUNTIFS('Corps et Santé'!$O$20:$P$31,$B29)","v":0},{"$f":"COUNTIFS('Corps et Santé'!$O$33:$P$44,$B29)","v":0},{"$f":"SUM(C29,G29,K29)","v":0},{"$f":"SUM(O29:O47)","v":0}]
[null,{"$f":"'Listes déroulantes'!H4","v":"Proposer une ou des hypothèses pour résoudre un problème ou une question."},{"$f":"COUNTIFS('Terre et action humaine'!$O$7:$P$44,$B30)","v":0},{"$f":"COUNTIFS('Terre et action humaine'!$O$7:$P$18,$B30)","v":0},{"$f":"COUNTIFS('Terre et action humaine'!$O$20:$P$31,$B30)","v":0},{"$f":"COUNTIFS('Terre et action humaine'!$O$33:$P$44,$B30)","v":0},{"$f":"COUNTIFS(Vivant!$O$7:$P$44,$B30)","v":0},{"$f":"COUNTIFS(Vivant!$O$7:$P$18,$B30)","v":0},{"$f":"COUNTIFS(Vivant!$O$20:$P$31,$B30)","v":0},{"$f":"COUNTIFS(Vivant!$O$33:$P$44,$B30)","v":0},{"$f":"COUNTIFS('Corps et Santé'!$O$7:$P$44,$B30)","v":0},{"$f":"COUNTIFS('Corps et Santé'!$O$7:$P$18,$B30)","v":0},{"$f":"COUNTIFS('Corps et Santé'!$O$20:$P$31,$B30)","v":0},{"$f":"COUNTIFS('Corps et Santé'!$O$33:$P$44,$B30)","v":0},0]
[null,{"$f":"'Listes déroulantes'!H5","v":"Concevoir des expériences pour tester une ou des hypothèses (au lycée on parlera de stratégie)"},{"$f":"COUNTIFS('Terre et action humaine'!$O$7:$P$44,$B31)","v":0},{"$f":"COUNTIFS('Terre et action humaine'!$O$7:$P$18,$B31)","v":0},{"$f":"COUNTIFS('Terre et action humaine'!$O$20:$P$31,$B31)","v":0},{"$f":"COUNTIFS('Terre et action humaine'!$O$33:$P$44,$B31)","v":0},{"$f":"COUNTIFS(Vivant!$O$7:$P$44,$B31)","v":0},{"$f":"COUNTIFS(Vivant!$O$7:$P$18,$B31)","v":0},{"$f":"COUNTIFS(Vivant!$O$20:$P$31,$B31)","v":0},{"$f":"COUNTIFS(Vivant!$O$33:$P$44,$B31)","v":0},{"$f":"COUNTIFS('Corps et Santé'!$O$7:$P$44,$B31)","v":0},{"$f":"COUNTIFS('Corps et Santé'!$O$7:$P$18,$B31)","v":0},{"$f":"COUNTIFS('Corps et Santé'!$O$20:$P$31,$B31)","v":0},{"$f":"COUNTIFS('Corps et Santé'!$O$33:$P$44,$B31)","v":0},{"$f":"SUM(C31,G31,K31)","v":0}]
[null,{"$f":"'Listes déroulantes'!H6","v":"Utiliser des instruments d’observation, de mesures et des techniques de préparation et de collecte (afin de pratiquer des démarches et pas uniquement pour savoir \"utiliser\")"},{"$f":"COUNTIFS('Terre et action humaine'!$O$7:$P$44,$B32)","v":0},{"$f":"COUNTIFS('Terre et action humaine'!$O$7:$P$18,$B32)","v":0},{"$f":"COUNTIFS('Terre et action humaine'!$O$20:$P$31,$B32)","v":0},{"$f":"COUNTIFS('Terre et action humaine'!$O$33:$P$44,$B32)","v":0},{"$f":"COUNTIFS(Vivant!$O$7:$P$44,$B32)","v":0},{"$f":"COUNTIFS(Vivant!$O$7:$P$18,$B32)","v":0},{"$f":"COUNTIFS(Vivant!$O$20:$P$31,$B32)","v":0},{"$f":"COUNTIFS(Vivant!$O$33:$P$44,$B32)","v":0},{"$f":"COUNTIFS('Corps et Santé'!$O$7:$P$44,$B32)","v":0},{"$f":"COUNTIFS('Corps et Santé'!$O$7:$P$18,$B32)","v":0},{"$f":"COUNTIFS('Corps et Santé'!$O$20:$P$31,$B32)","v":0},{"$f":"COUNTIFS('Corps et Santé'!$O$33:$P$44,$B32)","v":0},0]
[null,{"$f":"'Listes déroulantes'!H7","v":"Interpréter des résultats et en tirer des conclusions. "},{"$f":"COUNTIFS('Terre et action humaine'!$O$7:$P$44,$B33)","v":0},{"$f":"COUNTIFS('Terre et action humaine'!$O$7:$P$18,$B33)","v":0},{"$f":"COUNTIFS('Terre et action humaine'!$O$20:$P$31,$B33)","v":0},{"$f":"COUNTIFS('Terre et action humaine'!$O$33:$P$44,$B33)","v":0},{"$f":"COUNTIFS(Vivant!$O$7:$P$44,$B33)","v":0},{"$f":"COUNTIFS(Vivant!$O$7:$P$18,$B33)","v":0},{"$f":"COUNTIFS(Vivant!$O$20:$P$31,$B33)","v":0},{"$f":"COUNTIFS(Vivant!$O$33:$P$44,$B33)","v":0},{"$f":"COUNTIFS('Corps et Santé'!$O$7:$P$44,$B33)","v":0},{"$f":"COUNTIFS('Corps et Santé'!$O$7:$P$18,$B33)","v":0},{"$f":"COUNTIFS('Corps et Santé'!$O$20:$P$31,$B33)","v":0},{"$f":"COUNTIFS('Corps et Santé'!$O$33:$P$44,$B33)","v":0},0]
[null,{"$f":"'Listes déroulantes'!H8","v":"Communiquer sur ses démarches, ses résultats et ses choix, en argumentant. (pertinence, cohérence, compéltude)"},{"$f":"COUNTIFS('Terre et action humaine'!$O$7:$P$44,$B34)","v":0},{"$f":"COUNTIFS('Terre et action humaine'!$O$7:$P$18,$B34)","v":0},{"$f":"COUNTIFS('Terre et action humaine'!$O$20:$P$31,$B34)","v":0},{"$f":"COUNTIFS('Terre et action humaine'!$O$33:$P$44,$B34)","v":0},{"$f":"COUNTIFS(Vivant!$O$7:$P$44,$B34)","v":0},{"$f":"COUNTIFS(Vivant!$O$7:$P$18,$B34)","v":0},{"$f":"COUNTIFS(Vivant!$O$20:$P$31,$B34)","v":0},{"$f":"COUNTIFS(Vivant!$O$33:$P$44,$B34)","v":0},{"$f":"COUNTIFS('Corps et Santé'!$O$7:$P$44,$B34)","v":0},{"$f":"COUNTIFS('Corps et Santé'!$O$7:$P$18,$B34)","v":0},{"$f":"COUNTIFS('Corps et Santé'!$O$20:$P$31,$B34)","v":0},{"$f":"COUNTIFS('Corps et Santé'!$O$33:$P$44,$B34)","v":0},0]
[null,{"$f":"'Listes déroulantes'!H9","v":"Identifier et choisir des notions, des outils et des techniques, ou des modèles simples pour mettre en œuvre une démarche scientifique."},{"$f":"COUNTIFS('Terre et action humaine'!$O$7:$P$44,$B35)","v":0},{"$f":"COUNTIFS('Terre et action humaine'!$O$7:$P$18,$B35)","v":0},{"$f":"COUNTIFS('Terre et action humaine'!$O$20:$P$31,$B35)","v":0},{"$f":"COUNTIFS('Terre et action humaine'!$O$33:$P$44,$B35)","v":0},{"$f":"COUNTIFS(Vivant!$O$7:$P$44,$B35)","v":0},{"$f":"COUNTIFS(Vivant!$O$7:$P$18,$B35)","v":0},{"$f":"COUNTIFS(Vivant!$O$20:$P$31,$B35)","v":0},{"$f":"COUNTIFS(Vivant!$O$33:$P$44,$B35)","v":0},{"$f":"COUNTIFS('Corps et Santé'!$O$7:$P$44,$B35)","v":0},{"$f":"COUNTIFS('Corps et Santé'!$O$7:$P$18,$B35)","v":0},{"$f":"COUNTIFS('Corps et Santé'!$O$20:$P$31,$B35)","v":0},{"$f":"COUNTIFS('Corps et Santé'!$O$33:$P$44,$B35)","v":0},0]
[null,{"$f":"'Listes déroulantes'!H10","v":"Autre à définir"},{"$f":"COUNTIFS('Terre et action humaine'!$O$7:$P$44,$B36)","v":0},{"$f":"COUNTIFS('Terre et action humaine'!$O$7:$P$18,$B36)","v":0},{"$f":"COUNTIFS('Terre et action humaine'!$O$20:$P$31,$B36)","v":0},{"$f":"COUNTIFS('Terre et action humaine'!$O$33:$P$44,$B36)","v":0},{"$f":"COUNTIFS(Vivant!$O$7:$P$44,$B36)","v":0},{"$f":"COUNTIFS(Vivant!$O$7:$P$18,$B36)","v":0},{"$f":"COUNTIFS(Vivant!$O$20:$P$31,$B36)","v":0},{"$f":"COUNTIFS(Vivant!$O$33:$P$44,$B36)","v":0},{"$f":"COUNTIFS('Corps et Santé'!$O$7:$P$44,$B36)","v":0},{"$f":"COUNTIFS('Corps et Santé'!$O$7:$P$18,$B36)","v":0},{"$f":"COUNTIFS('Corps et Santé'!$O$20:$P$31,$B36)","v":0},{"$f":"COUNTIFS('Corps et Santé'!$O$33:$P$44,$B36)","v":0},0]
[null,"vérification total compétences par thématique :",{"$f":"SUM(C31:C36)","v":0},0,0,0,0,0,0,0,0,0,0,0]
[]
[null,{"$f":"'Listes déroulantes'!I3","v":"Concevoir un protocole. "},{"$f":"COUNTIFS('Terre et action humaine'!$R$7:$S$44,$B39)","v":0},{"$f":"COUNTIFS('Terre et action humaine'!$R$7:$S$18,$B39)","v":0},{"$f":"COUNTIFS('Terre et action humaine'!$R$20:$S$31,$B39)","v":0},{"$f":"COUNTIFS('Terre et action humaine'!$R$33:$S$44,$B39)","v":0},{"$f":"COUNTIFS(Vivant!$R$7:$S$44,$B39)","v":0},{"$f":"COUNTIFS(Vivant!$R$7:$S$18,$B39)","v":0},{"$f":"COUNTIFS(Vivant!$R$20:$S$31,$B39)","v":0},{"$f":"COUNTIFS(Vivant!$R$33:$S$44,$B39)","v":0},{"$f":"COUNTIFS('Corps et Santé'!$R$7:$S$44,$B39)","v":0},{"$f":"COUNTIFS('Corps et Santé'!$R$7:$S$18,$B39)","v":0},{"$f":"COUNTIFS('Corps et Santé'!$R$20:$S$31,$B39)","v":0},{"$f":"COUNTIFS('Corps et Santé'!$R$33:$S$44,$B39)","v":0},{"$f":"SUM(C39,G39,K39)","v":0}]
[null,{"$f":"'Listes déroulantes'!I4","v":"Mettre en œuvre un protocole. "},{"$f":"COUNTIFS('Terre et action humaine'!$R$7:$S$44,$B40)","v":0},{"$f":"COUNTIFS('Terre et action humaine'!$R$7:$S$18,$B40)","v":0},{"$f":"COUNTIFS('Terre et action humaine'!$R$20:$S$31,$B40)","v":0},{"$f":"COUNTIFS('Terre et action humaine'!$R$33:$S$44,$B40)","v":0},{"$f":"COUNTIFS(Vivant!$R$7:$S$44,$B40)","v":0},{"$f":"COUNTIFS(Vivant!$R$7:$S$18,$B40)","v":0},{"$f":"COUNTIFS(Vivant!$R$20:$S$31,$B40)","v":0},{"$f":"COUNTIFS(Vivant!$R$33:$S$44,$B40)","v":0},{"$f":"COUNTIFS('Corps et Santé'!$R$7:$S$44,$B40)","v":0},{"$f":"COUNTIFS('Corps et Santé'!$R$7:$S$18,$B40)","v":0},{"$f":"COUNTIFS('Corps et Santé'!$R$20:$S$31,$B40)","v":0},{"$f":"COUNTIFS('Corps et Santé'!$R$33:$S$44,$B40)","v":0},{"$f":"SUM(C40,G40,K40)","v":0}]
[null,{"$f":"'Listes déroulantes'!I5","v":"Autre à définir"},{"$f":"COUNTIFS('Terre et action humaine'!$R$7:$S$44,$B41)","v":0},{"$f":"COUNTIFS('Terre et action humaine'!$R$7:$S$18,$B41)","v":0},{"$f":"COUNTIFS('Terre et action humaine'!$R$20:$S$31,$B41)","v":0},{"$f":"COUNTIFS('Terre et action humaine'!$R$33:$S$44,$B41)","v":0},{"$f":"COUNTIFS(Vivant!$R$7:$S$44,$B41)","v":0},{"$f":"COUNTIFS(Vivant!$R$7:$S$18,$B41)","v":0},{"$f":"COUNTIFS(Vivant!$R$20:$S$31,$B41)","v":0},{"$f":"COUNTIFS(Vivant!$R$33:$S$44,$B41)","v":0},{"$f":"COUNTIFS('Corps et Santé'!$R$7:$S$44,$B41)","v":0},{"$f":"COUNTIFS('Corps et Santé'!$R$7:$S$18,$B41)","v":0},{"$f":"COUNTIFS('Corps et Santé'!$R$20:$S$31,$B41)","v":0},{"$f":"COUNTIFS('Corps et Santé'!$R$33:$S$44,$B41)","v":0},{"$f":"SUM(C41,G41,K41)","v":0}]
[null,"vérification total compétences par thématique :",{"$f":"SUM(C39:C41)","v":0},0,0,0,0,0,0,0,0,0,0,0]
[]
[null,{"$f":"'Listes déroulantes'!J3","v":"Utiliser des logiciels d’acquisition de données"},{"$f":"COUNTIFS('Terre et action humaine'!$X$7:$Y$44,$B44)","v":0},{"$f":"COUNTIFS('Terre et action humaine'!$X$7:$Y$18,$B44)","v":0},{"$f":"COUNTIFS('Terre et action humaine'!$X$20:$Y$31,$B44)","v":0},{"$f":"COUNTIFS('Terre et action humaine'!$X$33:$Y$44,$B44)","v":0},{"$f":"COUNTIFS(Vivant!$U$7:$V$44,$B44)","v":0},{"$f":"COUNTIFS(Vivant!$U$7:$V$18,$B44)","v":0},{"$f":"COUNTIFS(Vivant!$U$20:$V$31,$B44)","v":0},{"$f":"COUNTIFS(Vivant!$U$33:$V$44,$B44)","v":0},{"$f":"COUNTIFS('Corps et Santé'!$U$7:$V$44,$B44)","v":0},{"$f":"COUNTIFS('Corps et Santé'!$U$7:$V$18,$B44)","v":0},{"$f":"COUNTIFS('Corps et Santé'!$U$20:$V$31,$B44)","v":0},{"$f":"COUNTIFS('Corps et Santé'!$U$33:$V$44,$B44)","v":0},{"$f":"SUM(C44,G44,K44)","v":0}]
[null,{"$f":"'Listes déroulantes'!J4","v":"Utiliser des logiciels de simulation"},{"$f":"COUNTIFS('Terre et action humaine'!$U$7:$V$44,$B45)","v":0},{"$f":"COUNTIFS('Terre et action humaine'!$U$7:$V$18,$B45)","v":0},{"$f":"COUNTIFS('Terre et action humaine'!$U$20:$V$31,$B45)","v":0},{"$f":"COUNTIFS('Terre et action humaine'!$U$33:$V$44,$B45)","v":0},{"$f":"COUNTIFS(Vivant!$U$7:$V$44,$B45)","v":0},{"$f":"COUNTIFS(Vivant!$U$7:$V$18,$B45)","v":0},{"$f":"COUNTIFS(Vivant!$U$20:$V$31,$B45)","v":0},{"$f":"COUNTIFS(Vivant!$U$33:$V$44,$B45)","v":0},{"$f":"COUNTIFS('Corps et Santé'!$U$7:$V$44,$B45)","v":0},{"$f":"COUNTIFS('Corps et Santé'!$U$7:$V$18,$B45)","v":0},{"$f":"COUNTIFS('Corps et Santé'!$U$20:$V$31,$B45)","v":0},{"$f":"COUNTIFS('Corps et Santé'!$U$33:$V$44,$B45)","v":0},0]
[null,{"$f":"'Listes déroulantes'!J5","v":"Utiliser des bases de données"},{"$f":"COUNTIFS('Terre et action humaine'!$U$7:$V$44,$B46)","v":0},{"$f":"COUNTIFS('Terre et action humaine'!$U$7:$V$18,$B46)","v":0},{"$f":"COUNTIFS('Terre et action humaine'!$U$20:$V$31,$B46)","v":0},{"$f":"COUNTIFS('Terre et action humaine'!$U$33:$V$44,$B46)","v":0},{"$f":"COUNTIFS(Vivant!$U$7:$V$44,$B46)","v":0},{"$f":"COUNTIFS(Vivant!$U$7:$V$18,$B46)","v":0},{"$f":"COUNTIFS(Vivant!$U$20:$V$31,$B46)","v":0},{"$f":"COUNTIFS(Vivant!$U$33:$V$44,$B46)","v":0},{"$f":"COUNTIFS('Corps et Santé'!$U$7:$V$44,$B46)","v":0},{"$f":"COUNTIFS('Corps et Santé'!$U$7:$V$18,$B46)","v":0},{"$f":"COUNTIFS('Corps et Santé'!$U$20:$V$31,$B46)","v":0},{"$f":"COUNTIFS('Corps et Santé'!$U$33:$V$44,$B46)","v":0},0]
[null,{"$f":"'Listes déroulantes'!J6","v":"Autre à définir"},{"$f":"COUNTIFS('Terre et action humaine'!$U$7:$V$44,$B47)","v":0},{"$f":"COUNTIFS('Terre et action humaine'!$U$7:$V$18,$B47)","v":0},{"$f":"COUNTIFS('Terre et action humaine'!$U$20:$V$31,$B47)","v":0},{"$f":"COUNTIFS('Terre et action humaine'!$U$33:$V$44,$B47)","v":0},{"$f":"COUNTIFS(Vivant!$U$7:$V$44,$B47)","v":0},{"$f":"COUNTIFS(Vivant!$U$7:$V$18,$B47)","v":0},{"$f":"COUNTIFS(Vivant!$U$20:$V$31,$B47)","v":0},{"$f":"COUNTIFS(Vivant!$U$33:$V$44,$B47)","v":0},{"$f":"COUNTIFS('Corps et Santé'!$U$7:$V$44,$B47)","v":0},{"$f":"COUNTIFS('Corps et Santé'!$U$7:$V$18,$B47)","v":0},{"$f":"COUNTIFS('Corps et Santé'!$U$20:$V$31,$B47)","v":0},{"$f":"COUNTIFS('Corps et Santé'!$U$33:$V$44,$B47)","v":0},0]
[null,"vérification total compétences par thématique :",{"$f":"SUM(C44:C47)","v":0},0,0,0,0,0,0,0,0,0,0,0]
[]
[{"$f":"'Listes déroulantes'!K1","v":"Domaine 5 du socle : Représentation du monde et activité humaine"},{"$f":"'Listes déroulantes'!K3","v":"Situer l’espèce humaine dans l’évolution des espèces."},{"$f":"COUNTIFS('Terre et action humaine'!$X$7:$Y$44,$B50)","v":0},{"$f":"COUNTIFS('Terre et action humaine'!$X$7:$Y$18,$B50)","v":0},{"$f":"COUNTIFS('Terre et action humaine'!$X$20:$Y$31,$B50)","v":0},{"$f":"COUNTIFS('Terre et action humaine'!$X$33:$Y$44,$B50)","v":0},{"$f":"COUNTIFS(Vivant!$U$7:$V$44,$B50)","v":0},{"$f":"COUNTIFS(Vivant!$X$7:$Y$18,$B50)","v":0},{"$f":"COUNTIFS(Vivant!$X$20:$Y$31,$B50)","v":0},{"$f":"COUNTIFS(Vivant!$X$33:$Y$44,$B50)","v":0},{"$f":"COUNTIFS('Corps et Santé'!$U$7:$V$44,$B50)","v":0},{"$f":"COUNTIFS('Corps et Santé'!$X$7:$Y$18,$B50)","v":0},{"$f":"COUNTIFS('Corps et Santé'!$X$20:$Y$31,$B50)","v":0},{"$f":"COUNTIFS('Corps et Santé'!$X$33:$Y$44,$B50)","v":0},{"$f":"SUM(C50,G50,K50)","v":0},{"$f":"SUM(O50:O54)","v":0}]
[null,{"$f":"'Listes déroulantes'!K4","v":"Appréhender différentes échelles de temps géologique et biologique (ex : histoire de la Terre ; apparition de la vie, évolution et extinction des espèces vivantes…)."},{"$f":"COUNTIFS('Terre et action humaine'!$X$7:$Y$44,$B51)","v":0},{"$f":"COUNTIFS('Terre et action humaine'!$X$7:$Y$18,$B51)","v":0},{"$f":"COUNTIFS('Terre et action humaine'!$X$20:$Y$31,$B51)","v":0},{"$f":"COUNTIFS('Terre et action humaine'!$X$33:$Y$44,$B51)","v":0},{"$f":"COUNTIFS(Vivant!$U$7:$V$44,$B51)","v":0},{"$f":"COUNTIFS(Vivant!$X$7:$Y$18,$B51)","v":0},{"$f":"COUNTIFS(Vivant!$X$20:$Y$31,$B51)","v":0},{"$f":"COUNTIFS(Vivant!$X$33:$Y$44,$B51)","v":0},{"$f":"COUNTIFS('Corps et Santé'!$U$7:$V$44,$B51)","v":0},{"$f":"COUNTIFS('Corps et Santé'!$X$7:$Y$18,$B51)","v":0},{"$f":"COUNTIFS('Corps et Santé'!$X$20:$Y$31,$B51)","v":0},{"$f":"COUNTIFS('Corps et Santé'!$X$33:$Y$44,$B51)","v":0},{"$f":"SUM(C51,G51,K51)","v":0}]
[null,{"$f":"'Listes déroulantes'!K5","v":"Appréhender différentes échelles spatiales d’un même phénomène/d’une même fonction (ex : nutrition : niveau de l’organisme, niveau des organes et niveau cellulaire)."},{"$f":"COUNTIFS('Terre et action humaine'!$X$7:$Y$44,$B52)","v":0},{"$f":"COUNTIFS('Terre et action humaine'!$X$7:$Y$18,$B52)","v":0},{"$f":"COUNTIFS('Terre et action humaine'!$X$20:$Y$31,$B52)","v":0},{"$f":"COUNTIFS('Terre et action humaine'!$X$33:$Y$44,$B52)","v":0},{"$f":"COUNTIFS(Vivant!$U$7:$V$44,$B52)","v":0},{"$f":"COUNTIFS(Vivant!$X$7:$Y$18,$B52)","v":0},{"$f":"COUNTIFS(Vivant!$X$20:$Y$31,$B52)","v":0},{"$f":"COUNTIFS(Vivant!$X$33:$Y$44,$B52)","v":0},{"$f":"COUNTIFS('Corps et Santé'!$U$7:$V$44,$B52)","v":0},{"$f":"COUNTIFS('Corps et Santé'!$X$7:$Y$18,$B52)","v":0},{"$f":"COUNTIFS('Corps et Santé'!$X$20:$Y$31,$B52)","v":0},{"$f":"COUNTIFS('Corps et Santé'!$X$33:$Y$44,$B52)","v":0},{"$f":"SUM(C52,G52,K52)","v":0}]
[null,{"$f":"'Listes déroulantes'!K6","v":"Identifier par l’histoire des sciences et des techniques comment se construit un savoir scientifique."},{"$f":"COUNTIFS('Terre et action humaine'!$X$7:$Y$44,$B53)","v":0},{"$f":"COUNTIFS('Terre et action humaine'!$X$7:$Y$18,$B53)","v":0},{"$f":"COUNTIFS('Terre et action humaine'!$X$20:$Y$31,$B53)","v":0},{"$f":"COUNTIFS('Terre et action humaine'!$X$33:$Y$44,$B53)","v":0},{"$f":"COUNTIFS(Vivant!$U$7:$V$44,$B53)","v":0},{"$f":"COUNTIFS(Vivant!$X$7:$Y$18,$B53)","v":0},{"$f":"COUNTIFS(Vivant!$X$20:$Y$31,$B53)","v":0},{"$f":"COUNTIFS(Vivant!$X$33:$Y$44,$B53)","v":0},{"$f":"COUNTIFS('Corps et Santé'!$U$7:$V$44,$B53)","v":0},{"$f":"COUNTIFS('Corps et Santé'!$X$7:$Y$18,$B53)","v":0},{"$f":"COUNTIFS('Corps et Santé'!$X$20:$Y$31,$B53)","v":0},{"$f":"COUNTIFS('Corps et Santé'!$X$33:$Y$44,$B53)","v":0},{"$f":"SUM(C53,G53,K53)","v":0}]
[null,{"$f":"'Listes déroulantes'!K7","v":"Autre à définir"},{"$f":"COUNTIFS('Terre et action humaine'!$X$7:$Y$44,$B54)","v":0},{"$f":"COUNTIFS('Terre et action humaine'!$X$7:$Y$18,$B54)","v":0},{"$f":"COUNTIFS('Terre et action humaine'!$X$20:$Y$31,$B54)","v":0},{"$f":"COUNTIFS('Terre et action humaine'!$X$33:$Y$44,$B54)","v":0},{"$f":"COUNTIFS(Vivant!$U$7:$V$44,$B54)","v":0},{"$f":"COUNTIFS(Vivant!$X$7:$Y$18,$B54)","v":0},{"$f":"COUNTIFS(Vivant!$X$20:$Y$31,$B54)","v":0},{"$f":"COUNTIFS(Vivant!$X$33:$Y$44,$B54)","v":0},{"$f":"COUNTIFS('Corps et Santé'!$U$7:$V$44,$B54)","v":0},{"$f":"COUNTIFS('Corps et Santé'!$X$7:$Y$18,$B54)","v":0},{"$f":"COUNTIFS('Corps et Santé'!$X$20:$Y$31,$B54)","v":0},{"$f":"COUNTIFS('Corps et Santé'!$X$33:$Y$44,$B54)","v":0},{"$f":"SUM(C54,G54,K54)","v":0}]
[null,"vérification total compétences par thématique :",{"$f":"SUM(C50:C54)","v":0},0,0,0,0,0,0,0,0,0,0,0]

{"sheet":"Bilan C4_5ème","index":5,"n_rows":77,"n_cols":12,"rows_kept":77,"merged":[[0,0,2,4],[1,5,2,5],[1,6,2,6],[1,7,2,7],[1,8,2,10],[1,11,2,11],[3,3,3,4],[3,5,4,5],[3,6,4,6],[3,7,4,7],[3,8,4,8],[3,9,4,9],[3,10,4,10],[3,11,4,11]]}
["Organisation Bilan du travail envisagé sur la première année scolaire du Cycle 4 en SVT : 5ème"]
[{"$nulls":5},{"$f":"'Listes déroulantes'!E1","v":"Domaine 1 du socle : pratiquer des langages pour penser et communiquer"},{"$f":"'Listes déroulantes'!F1","v":"Domaine 2 du socle :Les méthodes et les outils pour apprendre"},{"$f":"'Listes déroulantes'!G1","v":"Domaine 3 du socle : Formation de la personne et du citoyen"},{"$f":"'Listes déroulantes'!H1","v":"Domaine 4 du socle : Les systèmes techniques et naturels"},null,null,{"$f":"'Listes déroulantes'!K1","v":"Domaine 5 du socle : Représentation du monde et activité humaine"}]
[]
[{"$nulls":3},"Activités",null,{"$f":"'Listes déroulantes'!E2","v":"Pratiquer des langages (qualitatif) / Utiliser des outils numériques"},{"$f":"'Listes déroulantes'!F2","v":"Utiliser des outils et mobiliser des méthodes pour apprendre / Utiliser des outils numériques"},{"$f":"'Listes déroulantes'!G2","v":"Adopter un comportement éthique et responsable"},{"$f":"'Listes déroulantes'!H2","v":"Pratiquer des démarches\nscientifiques et technologiques / Pratiquer des langages (pertinence, cohérence…)"},{"$f":"'Listes déroulantes'!I2","v":"Concevoir, créer, réaliser"},{"$f":"'Listes déroulantes'!J2","v":"Utiliser des outils numériques"},{"$f":"'Listes déroulantes'!K2","v":"Se situer dans l'espace et dans le temps"}]
["semaine","Attendus de fin de cycle","Compétences associées aux connaissances de la thématique","nature de l'activité","Titre de l'activité et/ou\nTitre de la partie\nRemarques ou \"Autre à définir\""]
[{"$f":"'Terre et action humaine'!A7","v":0},{"$f":"'Terre et action humaine'!B7","v":0},{"$f":"'Terre et action humaine'!C7","v":0},{"$f":"'Terre et action humaine'!D7","v":0},{"$f":"'Terre et action humaine'!E7","v":0},{"$f":"'Terre et action humaine'!H7","v":0},{"$f":"'Terre et action humaine'!K7","v":0},{"$f":"'Terre et action humaine'!N7","v":0},{"$f":"'Terre et action humaine'!Q7","v":0},{"$f":"'Terre et action humaine'!T7","v":0},{"$f":"'Terre et action humaine'!W7","v":0},{"$f":"'Terre et action humaine'!Z7","v":0}]
[{"$f":"'Terre et action humaine'!A8","v":0},{"$f":"'Terre et action humaine'!B8","v":0},{"$f":"'Terre et action humaine'!C8","v":0},{"$f":"'Terre et action humaine'!D8","v":0},{"$f":"'Terre et action humaine'!E8","v":0},{"$f":"'Terre et action humaine'!H8","v":0},{"$f":"'Terre et action humaine'!K8","v":0},{"$f":"'Terre et action humaine'!N8","v":0},{"$f":"'Terre et action humaine'!Q8","v":0},{"$f":"'Terre et action humaine'!T8","v":0},{"$f":"'Terre et action humaine'!W8","v":0},{"$f":"'Terre et action humaine'!Z8","v":0}]
[{"$f":"'Terre et action humaine'!A9","v":0},{"$f":"'Terre et action humaine'!B9","v":0},{"$f":"'Terre et action humaine'!C9","v":0},{"$f":"'Terre et action humaine'!D9","v":0},{"$f":"'Terre et action humaine'!E9","v":0},{"$f":"'Terre et action humaine'!H9","v":0},{"$f":"'Terre et action humaine'!K9","v":0},{"$f":"'Terre et action humaine'!N9","v":0},{"$f":"'Terre et action humaine'!Q9","v":0},{"$f":"'Terre et action humaine'!T9","v":0},{"$f":"'Terre et action humaine'!W9","v":0},{"$f":"'Terre et action humaine'!Z9","v":0}]
[{"$f":"'Terre et action humaine'!A10","v":0},{"$f":"'Terre et action humaine'!B10","v":0},{"$f":"'Terre et action humaine'!C10","v":0},{"$f":"'Terre et action humaine'!D10","v":0},{"$f":"'Terre et action humaine'!E10","v":0},{"$f":"'Terre et action humaine'!H10","v":0},{"$f":"'Terre et action humaine'!K10","v":0},{"$f":"'Terre et action humaine'!N10","v":0},{"$f":"'Terre et action humaine'!Q10","v":0},{"$f":"'Terre et action humaine'!T10","v":0},{"$f":"'Terre et action humaine'!W10","v":0},{"$f":"'Terre et action humaine'!Z10","v":0}]
[{"$f":"'Terre et action humaine'!A11","v":0},{"$f":"'Terre et action humaine'!B11","v":0},{"$f":"'Terre et action humaine'!C11","v":0},{"$f":"'Terre et action humaine'!D11","v":0},{"$f":"'Terre et action humaine'!E11","v":0},{"$f":"'Terre et action humaine'!H11","v":0},{"$f":"'Terre et action humaine'!K11","v":0},{"$f":"'Terre et action humaine'!N11","v":0},{"$f":"'Terre et action humaine'!Q11","v":0},{"$f":"'Terre et action humaine'!T11","v":0},{"$f":"'Terre et action humaine'!W11","v":0},{"$f":"'Terre et action humaine'!Z11","v":0}]
[{"$f":"'Terre et action humaine'!A12","v":0},{"$f":"'Terre et action humaine'!B12","v":0},{"$f":"'Terre et action humaine'!C12","v":0},{"$f":"'Terre et action humaine'!D12","v":0},{"$f":"'Terre et action humaine'!E12","v":0},{"$f":"'Terre et action humaine'!H12","v":0},{"$f":"'Terre et action humaine'!K12","v":0},{"$f":"'Terre et action humaine'!N12","v":0},{"$f":"'Terre et action humaine'!Q12","v":0},{"$f":"'Terre et action humaine'!T12","v":0},{"$f":"'Terre et action humaine'!W12","v":0},{"$f":"'Terre et action humaine'!Z12","v":0}]
[{"$f":"'Terre et action humaine'!A13","v":0},{"$f":"'Terre et action humaine'!B13","v":0},{"$f":"'Terre et action humaine'!C13","v":0},{"$f":"'Terre et action humaine'!D13","v":0},{"$f":"'Terre et action humaine'!E13","v":0},{"$f":"'Terre et action humaine'!H13","v":0},{"$f":"'Terre et action humaine'!K13","v":0},{"$f":"'Terre et action humaine'!N13","v":0},{"$f":"'Terre et action humaine'!Q13","v":0},{"$f":"'Terre et action humaine'!T13","v":0},{"$f":"'Terre et action humaine'!W13","v":0},{"$f":"'Terre et action humaine'!Z13","v":0}]
[{"$f":"'Terre et action humaine'!A14","v":0},{"$f":"'Terre et action humaine'!B14","v":0},{"$f":"'Terre et action humaine'!C14","v":0},{"$f":"'Terre et action humaine'!D14","v":0},{"$f":"'Terre et action humaine'!E14","v":0},{"$f":"'Terre et action humaine'!H14","v":0},{"$f":"'Terre et action humaine'!K14","v":0},{"$f":"'Terre et action humaine'!N14","v":0},{"$f":"'Terre et action humaine'!Q14","v":0},{"$f":"'Terre et action humaine'!T14","v":0},{"$f":"'Terre et action humaine'!W14","v":0},{"$f":"'Terre et action humaine'!Z14","v":0}]
[{"$f":"'Terre et action humaine'!A15","v":0},{"$f":"'Terre et action humaine'!B15","v":0},{"$f":"'Terre et action humaine'!C15","v":0},{"$f":"'Terre et action humaine'!D15","v":0},{"$f":"'Terre et action humaine'!E15","v":0},{"$f":"'Terre et action humaine'!H15","v":0},{"$f":"'Terre et action humaine'!K15","v":0},{"$f":"'Terre et action humaine'!N15","v":0},{"$f":"'Terre et action humaine'!Q15","v":0},{"$f":"'Terre et action humaine'!T15","v":0},{"$f":"'Terre et action humaine'!W15","v":0},{"$f":"'Terre et action humaine'!Z15","v":0}]
[{"$f":"'Terre et action humaine'!A16","v":0},{"$f":"'Terre et action humaine'!B16","v":0},{"$f":"'Terre et action humaine'!C16","v":0},{"$f":"'Terre et action humaine'!D16","v":0},{"$f":"'Terre et action humaine'!E16","v":0},{"$f":"'Terre et action humaine'!H16","v":0},{"$f":"'Terre et action humaine'!K16","v":0},{"$f":"'Terre et action humaine'!N16","v":0},{"$f":"'Terre et action humaine'!Q16","v":0},{"$f":"'Terre et action humaine'!T16","v":0},{"$f":"'Terre et action humaine'!W16","v":0},{"$f":"'Terre et action humaine'!Z16","v":0}]
[{"$f":"'Terre et action humaine'!A17","v":0},{"$f":"'Terre et action humaine'!B17","v":0},{"$f":"'Terre et action humaine'!C17","v":0},{"$f":"'Terre et action humaine'!D17","v":0},{"$f":"'Terre et action humaine'!E17","v":0},{"$f":"'Terre et action humaine'!H17","v":0},{"$f":"'Terre et action humaine'!K17","v":0},{"$f":"'Terre et action humaine'!N17","v":0},{"$f":"'Terre et action humaine'!Q17","v":0},{"$f":"'Terre et action humaine'!T17","v":0},{"$f":"'Terre et action humaine'!W17","v":0},{"$f":"'Terre et action humaine'!Z17","v":0}]
[{"$f":"'Terre et action humaine'!A18","v":0},{"$f":"'Terre et action humaine'!B18","v":0},{"$f":"'Terre et action humaine'!C18","v":0},{"$f":"'Terre et action humaine'!D18","v":0},{"$f":"'Terre et action humaine'!E18","v":0},{"$f":"'Terre et action humaine'!H18","v":0},{"$f":"'Terre et action humaine'!K18","v":0},{"$f":"'Terre et action humaine'!N18","v":0},{"$f":"'Terre et action humaine'!Q18","v":0},{"$f":"'Terre et action humaine'!T18","v":0},{"$f":"'Terre et action humaine'!W18","v":0},{"$f":"'Terre et action humaine'!Z18","v":0}]
[{"$f":"Vivant!A7","v":0},{"$f":"Vivant!B7","v":0},{"$f":"Vivant!C7","v":0},{"$f":"Vivant!D7","v":0},{"$f":"Vivant!E7","v":0},{"$f":"Vivant!H7","v":0},{"$f":"Vivant!K7","v":0},{"$f":"Vivant!N7","v":0},{"$f":"Vivant!Q7","v":0},{"$f":"Vivant!T7","v":0},{"$f":"Vivant!W7","v":0},{"$f":"Vivant!Z7","v":0}]
[{"$f":"Vivant!A8","v":0},{"$f":"Vivant!B8","v":0},{"$f":"Vivant!C8","v":0},{"$f":"Vivant!D8","v":0},{"$f":"Vivant!E8","v":0},{"$f":"Vivant!H8","v":0},{"$f":"Vivant!K8","v":0},{"$f":"Vivant!N8","v":0},{"$f":"Vivant!Q8","v":0},{"$f":"Vivant!T8","v":0},{"$f":"Vivant!W8","v":0},{"$f":"Vivant!Z8","v":0}]
[{"$f":"Vivant!A9","v":0},{"$f":"Vivant!B9","v":0},{"$f":"Vivant!C9","v":0},{"$f":"Vivant!D9","v":0},{"$f":"Vivant!E9","v":0},{"$f":"Vivant!H9","v":0},{"$f":"Vivant!K9","v":0},{"$f":"Vivant!N9","v":0},{"$f":"Vivant!Q9","v":0},{"$f":"Vivant!T9","v":0},{"$f":"Vivant!W9","v":0},{"$f":"Vivant!Z9","v":0}]
[{"$f":"Vivant!A10","v":0},{"$f":"Vivant!B10","v":0},{"$f":"Vivant!C11","v":0},{"$f":"Vivant!D10","v":0},{"$f":"Vivant!E10","v":0},{"$f":"Vivant!H10","v":0},{"$f":"Vivant!K10","v":0},{"$f":"Vivant!N10","v":0},{"$f":"Vivant!Q10","v":0},{"$f":"Vivant!T10","v":0},{"$f":"Vivant!W10","v":0},{"$f":"Vivant!Z10","v":0}]
[{"$f":"Vivant!A11","v":0},{"$f":"Vivant!B11","v":0},{"$f":"Vivant!C10","v":0},{"$f":"Vivant!D11","v":0},{"$f":"Vivant!E11","v":0},{"$f":"Vivant!H11","v":0},{"$f":"Vivant!K11","v":0},{"$f":"Vivant!N11","v":0},{"$f":"Vivant!Q11","v":0},{"$f":"Vivant!T11","v":0},{"$f":"Vivant!W11","v":0},{"$f":"Vivant!Z11","v":0}]
[{"$f":"Vivant!A12","v":0},{"$f":"Vivant!B12","v":0},{"$f":"Vivant!C11","v":0},{"$f":"Vivant!D12","v":0},{"$f":"Vivant!E12","v":0},{"$f":"Vivant!H12","v":0},{"$f":"Vivant!K12","v":0},{"$f":"Vivant!N12","v":0},{"$f":"Vivant!Q12","v":0},{"$f":"Vivant!T12","v":0},{"$f":"Vivant!W12","v":0},{"$f":"Vivant!Z12","v":0}]
[{"$f":"Vivant!A13","v":0},{"$f":"Vivant!B13","v":0},{"$f":"Vivant!C12","v":0},{"$f":"Vivant!D13","v":0},{"$f":"Vivant!E13","v":0},{"$f":"Vivant!H13","v":0},{"$f":"Vivant!K13","v":0},{"$f":"Vivant!N13","v":0},{"$f":"Vivant!Q13","v":0},{"$f":"Vivant!T13","v":0},{"$f":"Vivant!W13","v":0},{"$f":"Vivant!Z13","v":0}]
[{"$f":"Vivant!A14","v":0},{"$f":"Vivant!B14","v":0},{"$f":"Vivant!C14","v":0},{"$f":"Vivant!D14","v":0},{"$f":"Vivant!E14","v":0},{"$f":"Vivant!H14","v":0},{"$f":"Vivant!K14","v":0},{"$f":"Vivant!N14","v":0},{"$f":"Vivant!Q14","v":0},{"$f":"Vivant!T14","v":0},{"$f":"Vivant!W14","v":0},{"$f":"Vivant!Z14","v":0}]
[{"$f":"Vivant!A15","v":0},{"$f":"Vivant!B15","v":0},{"$f":"Vivant!C15","v":0},{"$f":"Vivant!D15","v":0},{"$f":"Vivant!E15","v":0},{"$f":"Vivant!H15","v":0},{"$f":"Vivant!K15","v":0},{"$f":"Vivant!N15","v":0},{"$f":"Vivant!Q15","v":0},{"$f":"Vivant!T15","v":0},{"$f":"Vivant!W15","v":0},{"$f":"Vivant!Z15","v":0}]
[{"$f":"Vivant!A16","v":0},{"$f":"Vivant!B16","v":0},{"$f":"Vivant!C16","v":0},{"$f":"Vivant!D16","v":0},{"$f":"Vivant!E16","v":0},{"$f":"Vivant!H16","v":0},{"$f":"Vivant!K16","v":0},{"$f":"Vivant!N16","v":0},{"$f":"Vivant!Q16","v":0},{"$f":"Vivant!T16","v":0},{"$f":"Vivant!W16","v":0},{"$f":"Vivant!Z16","v":0}]
[{"$f":"Vivant!A17","v":0},{"$f":"Vivant!B17","v":0},{"$f":"Vivant!C17","v":0},{"$f":"Vivant!D17","v":0},{"$f":"Vivant!E17","v":0},{"$f":"Vivant!H17","v":0},{"$f":"Vivant!K17","v":0},{"$f":"Vivant!N17","v":0},{"$f":"Vivant!Q17","v":0},{"$f":"Vivant!T17","v":0},{"$f":"Vivant!W17","v":0},{"$f":"Vivant!Z17","v":0}]
[{"$f":"Vivant!A18","v":0},{"$f":"Vivant!B18","v":0},{"$f":"Vivant!C18","v":0},{"$f":"Vivant!D18","v":0},{"$f":"Vivant!E18","v":0},{"$f":"Vivant!H18","v":0},{"$f":"Vivant!K18","v":0},{"$f":"Vivant!N18","v":0},{"$f":"Vivant!Q18","v":0},{"$f":"Vivant!T18","v":0},{"$f":"Vivant!W18","v":0},{"$f":"Vivant!Z18","v":0}]
[{"$f":"'Corps et Santé'!A7","v":0},{"$f":"'Corps et Santé'!B7","v":0},{"$f":"'Corps et Santé'!C7","v":0},{"$f":"'Corps et Santé'!D7","v":0},{"$f":"'Corps et Santé'!E7","v":0},{"$f":"'Corps et Santé'!H7","v":0},{"$f":"'Corps et Santé'!K7","v":0},{"$f":"'Corps et Santé'!N7","v":0},{"$f":"'Corps et Santé'!Q7","v":0},{"$f":"'Corps et Santé'!T7","v":0},{"$f":"'Corps et Santé'!W7","v":0},{"$f":"'Corps et Santé'!Z7","v":0}]
[{"$f":"'Corps et Santé'!A8","v":0},{"$f":"'Corps et Santé'!B8","v":0},{"$f":"'Corps et Santé'!C8","v":0},{"$f":"'Corps et Santé'!D8","v":0},{"$f":"'Corps et Santé'!E8","v":0},{"$f":"'Corps et Santé'!H8","v":0},{"$f":"'Corps et Santé'!K8","v":0},{"$f":"'Corps et Santé'!N8","v":0},{"$f":"'Corps et Santé'!Q8","v":0},{"$f":"'Corps et Santé'!T8","v":0},{"$f":"'Corps et Santé'!W8","v":0},{"$f":"'Corps et Santé'!Z8","v":0}]
[{"$f":"'Corps et Santé'!A9","v":0},{"$f":"'Corps et Santé'!B9","v":0},{"$f":"'Corps et Santé'!C9","v":0},{"$f":"'Corps et Santé'!D9","v":0},{"$f":"'Corps et Santé'!E9","v":0},{"$f":"'Corps et Santé'!H9","v":0},{"$f":"'Corps et Santé'!K9","v":0},{"$f":"'Corps et Santé'!N9","v":0},{"$f":"'Corps et Santé'!Q9","v":0},{"$f":"'Corps et Santé'!T9","v":0},{"$f":"'Corps et Santé'!W9","v":0},{"$f":"'Corps et Santé'!Z9","v":0}]
[{"$f":"'Corps et Santé'!A10","v":0},{"$f":"'Corps et Santé'!B10","v":0},{"$f":"'Corps et Santé'!C10","v":0},{"$f":"'Corps et Santé'!D10","v":0},{"$f":"'Corps et Santé'!E10","v":0},{"$f":"'Corps et Santé'!H10","v":0},{"$f":"'Corps et Santé'!K10","v":0},{"$f":"'Corps et Santé'!N10","v":0},{"$f":"'Corps et Santé'!Q10","v":0},{"$f":"'Corps et Santé'!T10","v":0},{"$f":"'Corps et Santé'!W10","v":0},{"$f":"'Corps et Santé'!Z10","v":0}]
[{"$f":"'Corps et Santé'!A11","v":0},{"$f":"'Corps et Santé'!B11","v":0},{"$f":"'Corps et Santé'!C11","v":0},{"$f":"'Corps et Santé'!D11","v":0},{"$f":"'Corps et Santé'!E11","v":0},{"$f":"'Corps et Santé'!H11","v":0},{"$f":"'Corps et Santé'!K11","v":0},{"$f":"'Corps et Santé'!N11","v":0},{"$f":"'Corps et Santé'!Q11","v":0},{"$f":"'Corps et Santé'!T11","v":0},{"$f":"'Corps et Santé'!W11","v":0},{"$f":"'Corps et Santé'!Z11","v":0}]
[{"$f":"'Corps et Santé'!A12","v":0},{"$f":"'Corps et Santé'!B12","v":0},{"$f":"'Corps et Santé'!C12","v":0},{"$f":"'Corps et Santé'!D12","v":0},{"$f":"'Corps et Santé'!E12","v":0},{"$f":"'Corps et Santé'!H12","v":0},{"$f":"'Corps et Santé'!K12","v":0},{"$f":"'Corps et Santé'!N12","v":0},{"$f":"'Corps et Santé'!Q12","v":0},{"$f":"'Corps et Santé'!T12","v":0},{"$f":"'Corps et Santé'!W12","v":0},{"$f":"'Corps et Santé'!Z12","v":0}]
[{"$f":"'Corps et Santé'!A13","v":0},{"$f":"'Corps et Santé'!B13","v":0},{"$f":"'Corps et Santé'!C13","v":0},{"$f":"'Corps et Santé'!D13","v":0},{"$f":"'Corps et Santé'!E13","v":0},{"$f":"'Corps et Santé'!H13","v":0},{"$f":"'Corps et Santé'!K13","v":0},{"$f":"'Corps et Santé'!N13","v":0},{"$f":"'Corps et Santé'!Q13","v":0},{"$f":"'Corps et Santé'!T13","v":0},{"$f":"'Corps et Santé'!W13","v":0},{"$f":"'Corps et Santé'!Z13","v":0}]
[{"$f":"'Corps et Santé'!A14","v":0},{"$f":"'Corps et Santé'!B14","v":0},{"$f":"'Corps et Santé'!C14","v":0},{"$f":"'Corps et Santé'!D14","v":0},{"$f":"'Corps et Santé'!E14","v":0},{"$f":"'Corps et Santé'!H14","v":0},{"$f":"'Corps et Santé'!K14","v":0},{"$f":"'Corps et Santé'!N14","v":0},{"$f":"'Corps et Santé'!Q14","v":0},{"$f":"'Corps et Santé'!T14","v":0},{"$f":"'Corps et Santé'!W14","v":0},{"$f":"'Corps et Santé'!Z14","v":0}]
[{"$f":"'Corps et Santé'!A15","v":0},{"$f":"'Corps et Santé'!B15","v":0},{"$f":"'Corps et Santé'!C15","v":0},{"$f":"'Corps et Santé'!D15","v":0},{"$f":"'Corps et Santé'!E15","v":0},{"$f":"'Corps et Santé'!H15","v":0},{"$f":"'Corps et Santé'!K15","v":0},{"$f":"'Corps et Santé'!N15","v":0},{"$f":"'Corps et Santé'!Q15","v":0},{"$f":"'Corps et Santé'!T15","v":0},{"$f":"'Corps et Santé'!W15","v":0},{"$f":"'Corps et Santé'!Z15","v":0}]
[{"$f":"'Corps et Santé'!A16","v":0},{"$f":"'Corps et Santé'!B16","v":0},{"$f":"'Corps et Santé'!C16","v":0},{"$f":"'Corps et Santé'!D16","v":0},{"$f":"'Corps et Santé'!E16","v":0},{"$f":"'Corps et Santé'!H16","v":0},{"$f":"'Corps et Santé'!K16","v":0},{"$f":"'Corps et Santé'!N16","v":0},{"$f":"'Corps et Santé'!Q16","v":0},{"$f":"'Corps et Santé'!T16","v":0},{"$f":"'Corps et Santé'!W16","v":0},{"$f":"'Corps et Santé'!Z16","v":0}]
[{"$f":"'Corps et Santé'!A17","v":0},{"$f":"'Corps et Santé'!B17","v":0},{"$f":"'Corps et Santé'!C17","v":0},{"$f":"'Corps et Santé'!D17","v":0},{"$f":"'Corps et Santé'!E17","v":0},{"$f":"'Corps et Santé'!H17","v":0},{"$f":"'Corps et Santé'!K17","v":0},{"$f":"'Corps et Santé'!N17","v":0},{"$f":"'Corps et Santé'!Q17","v":0},{"$f":"'Corps et Santé'!T17","v":0},{"$f":"'Corps et Santé'!W17","v":0},{"$f":"'Corps et Santé'!Z17","v":0}]
[{"$f":"'Corps et Santé'!A18","v":0},{"$f":"'Corps et Santé'!B18","v":0},{"$f":"'Corps et Santé'!C18","v":0},{"$f":"'Corps et Santé'!D18","v":0},{"$f":"'Corps et Santé'!E18","v":0},{"$f":"'Corps et Santé'!H18","v":0},{"$f":"'Corps et Santé'!K18","v":0},{"$f":"'Corps et Santé'!N18","v":0},{"$f":"'Corps et Santé'!Q18","v":0},{"$f":"'Corps et Santé'!T18","v":0},{"$f":"'Corps et Santé'!W18","v":0},{"$f":"'Corps et Santé'!Z18","v":0}]
{"$rows_empty":35}
[{"$nulls":4},"Nombre d'ES par domaine sur l'année",{"$f":"COUNTIFS($F$6:$F$41,\"ES\")","v":0},{"$f":"COUNTIFS($G$6:$G$41,\"ES\")","v":0},{"$f":"COUNTIFS($H$6:$H$41,\"ES\")","v":0},{"$f":"COUNTIFS($I$6:$I$41,\"ES\")","v":0},{"$f":"COUNTIFS($J$6:$J$41,\"ES\")","v":0},{"$f":"COUNTIFS($K$6:$K$41,\"ES\")","v":0},{"$f":"COUNTIFS($L$6:$L$41,\"ES\")","v":0}]

{"sheet":"Bilan C4_4ème","index":6,"n_rows":77,"n_cols":12,"rows_kept":77,"merged":[[0,0,2,4],[1,5,2,5],[1,6,2,6],[1,7,2,7],[1,8,2,10],[1,11,2,11],[3,3,3,4],[3,5,4,5],[3,6,4,6],[3,7,4,7],[3,8,4,8],[3,9,4,9],[3,10,4,10],[3,11,4,11]]}
["Organisation Bilan du travail envisagé sur la deuxième année scolaire du Cycle 4 en SVT : 4ème"]
[{"$nulls":5},{"$f":"'Listes déroulantes'!E1","v":"Domaine 1 du socle : pratiquer des langages pour penser et communiquer"},{"$f":"'Listes déroulantes'!F1","v":"Domaine 2 du socle :Les méthodes et les outils pour apprendre"},{"$f":"'Listes déroulantes'!G1","v":"Domaine 3 du socle : Formation de la personne et du citoyen"},{"$f":"'Listes déroulantes'!H1","v":"Domaine 4 du socle : Les systèmes techniques et naturels"},null,null,{"$f":"'Listes déroulantes'!K1","v":"Domaine 5 du socle : Représentation du monde et activité humaine"}]
[]
[{"$nulls":3},"Activités",null,{"$f":"'Listes déroulantes'!E2","v":"Pratiquer des langages (qualitatif) / Utiliser des outils numériques"},{"$f":"'Listes déroulantes'!F2","v":"Utiliser des outils et mobiliser des méthodes pour apprendre / Utiliser des outils numériques"},{"$f":"'Listes déroulantes'!G2","v":"Adopter un comportement éthique et responsable"},{"$f":"'Listes déroulantes'!H2","v":"Pratiquer des démarches\nscientifiques et technologiques / Pratiquer des langages (pertinence, cohérence…)"},{"$f":"'Listes déroulantes'!I2","v":"Concevoir, créer, réaliser"},{"$f":"'Listes déroulantes'!J2","v":"Utiliser des outils numériques"},{"$f":"'Listes déroulantes'!K2","v":"Se situer dans l'espace et dans le temps"}]
["semaine","Attendus de fin de cycle","Compétences associées aux connaissances de la thématique","nature de l'activité","Titre de l'activité et/ou\nTitre de la partie\nRemarques ou \"Autre à définir\""]
[{"$f":"'Terre et action humaine'!A20","v":0},{"$f":"'Terre et action humaine'!B20","v":0},{"$f":"'Terre et action humaine'!C20","v":0},{"$f":"'Terre et action humaine'!D20","v":0},{"$f":"'Terre et action humaine'!E20","v":0},{"$f":"'Terre et action humaine'!H20","v":0},{"$f":"'Terre et action humaine'!K20","v":0},{"$f":"'Terre et action humaine'!N20","v":0},{"$f":"'Terre et action humaine'!Q20","v":0},{"$f":"'Terre et action humaine'!T20","v":0},{"$f":"'Terre et action humaine'!W20","v":0},{"$f":"'Terre et action humaine'!Z20","v":0}]
[{"$f":"'Terre et action humaine'!A21","v":0},{"$f":"'Terre et action humaine'!B21","v":0},{"$f":"'Terre et action humaine'!C21","v":0},{"$f":"'Terre et action humaine'!D21","v":0},{"$f":"'Terre et action humaine'!E21","v":0},{"$f":"'Terre et action humaine'!H21","v":0},{"$f":"'Terre et action humaine'!K21","v":0},{"$f":"'Terre et action humaine'!N21","v":0},{"$f":"'Terre et action humaine'!Q21","v":0},{"$f":"'Terre et action humaine'!T21","v":0},{"$f":"'Terre et action humaine'!W21","v":0},{"$f":"'Terre et action humaine'!Z21","v":0}]
[{"$f":"'Terre et action humaine'!A22","v":0},{"$f":"'Terre et action humaine'!B22","v":0},{"$f":"'Terre et action humaine'!C22","v":0},{"$f":"'Terre et action humaine'!D22","v":0},{"$f":"'Terre et action humaine'!E22","v":0},{"$f":"'Terre et action humaine'!H22","v":0},{"$f":"'Terre et action humaine'!K22","v":0},{"$f":"'Terre et action humaine'!N22","v":0},{"$f":"'Terre et action humaine'!Q22","v":0},{"$f":"'Terre et action humaine'!T22","v":0},{"$f":"'Terre et action humaine'!W22","v":0},{"$f":"'Terre et action humaine'!Z22","v":0}]
[{"$f":"'Terre et action humaine'!A23","v":0},{"$f":"'Terre et action humaine'!B23","v":0},{"$f":"'Terre et action humaine'!C23","v":0},{"$f":"'Terre et action humaine'!D23","v":0},{"$f":"'Terre et action humaine'!E23","v":0},{"$f":"'Terre et action humaine'!H23","v":0},{"$f":"'Terre et action humaine'!K23","v":0},{"$f":"'Terre et action humaine'!N23","v":0},{"$f":"'Terre et action humaine'!Q23","v":0},{"$f":"'Terre et action humaine'!T23","v":0},{"$f":"'Terre et action humaine'!W23","v":0},{"$f":"'Terre et action humaine'!Z23","v":0}]
[{"$f":"'Terre et action humaine'!A24","v":0},{"$f":"'Terre et action humaine'!B24","v":0},{"$f":"'Terre et action humaine'!C24","v":0},{"$f":"'Terre et action humaine'!D24","v":0},{"$f":"'Terre et action humaine'!E24","v":0},{"$f":"'Terre et action humaine'!H24","v":0},{"$f":"'Terre et action humaine'!K24","v":0},{"$f":"'Terre et action humaine'!N24","v":0},{"$f":"'Terre et action humaine'!Q24","v":0},{"$f":"'Terre et action humaine'!T24","v":0},{"$f":"'Terre et action humaine'!W24","v":0},{"$f":"'Terre et action humaine'!Z24","v":0}]
[{"$f":"'Terre et action humaine'!A25","v":0},{"$f":"'Terre et action humaine'!B25","v":0},{"$f":"'Terre et action humaine'!C25","v":0},{"$f":"'Terre et action humaine'!D25","v":0},{"$f":"'Terre et action humaine'!E25","v":0},{"$f":"'Terre et action humaine'!H25","v":0},{"$f":"'Terre et action humaine'!K25","v":0},{"$f":"'Terre et action humaine'!N25","v":0},{"$f":"'Terre et action humaine'!Q25","v":0},{"$f":"'Terre et action humaine'!T25","v":0},{"$f":"'Terre et action humaine'!W25","v":0},{"$f":"'Terre et action humaine'!Z25","v":0}]
[{"$f":"'Terre et action humaine'!A26","v":0},{"$f":"'Terre et action humaine'!B26","v":0},{"$f":"'Terre et action humaine'!C26","v":0},{"$f":"'Terre et action humaine'!D26","v":0},{"$f":"'Terre et action humaine'!E26","v":0},{"$f":"'Terre et action humaine'!H26","v":0},{"$f":"'Terre et action humaine'!K26","v":0},{"$f":"'Terre et action humaine'!N26","v":0},{"$f":"'Terre et action humaine'!Q26","v":0},{"$f":"'Terre et action humaine'!T26","v":0},{"$f":"'Terre et action humaine'!W26","v":0},{"$f":"'Terre et action humaine'!Z26","v":0}]
[{"$f":"'Terre et action humaine'!A27","v":0},{"$f":"'Terre et action humaine'!B27","v":0},{"$f":"'Terre et action humaine'!C27","v":0},{"$f":"'Terre et action humaine'!D27","v":0},{"$f":"'Terre et action humaine'!E27","v":0},{"$f":"'Terre et action humaine'!H27","v":0},{"$f":"'Terre et action humaine'!K27","v":0},{"$f":"'Terre et action humaine'!N27","v":0},{"$f":"'Terre et action humaine'!Q27","v":0},{"$f":"'Terre et action humaine'!T27","v":0},{"$f":"'Terre et action humaine'!W27","v":0},{"$f":"'Terre et action humaine'!Z27","v":0}]
[{"$f":"'Terre et action humaine'!A28","v":0},{"$f":"'Terre et action humaine'!B28","v":0},{"$f":"'Terre et action humaine'!C28","v":0},{"$f":"'Terre et action humaine'!D28","v":0},{"$f":"'Terre et action humaine'!E28","v":0},{"$f":"'Terre et action humaine'!H28","v":0},{"$f":"'Terre et action humaine'!K28","v":0},{"$f":"'Terre et action humaine'!N28","v":0},{"$f":"'Terre et action humaine'!Q28","v":0},{"$f":"'Terre et action humaine'!T28","v":0},{"$f":"'Terre et action humaine'!W28","v":0},{"$f":"'Terre et action humaine'!Z28","v":0}]
[{"$f":"'Terre et action humaine'!A29","v":0},{"$f":"'Terre et action humaine'!B29","v":0},{"$f":"'Terre et action humaine'!C29","v":0},{"$f":"'Terre et action humaine'!D29","v":0},{"$f":"'Terre et action humaine'!E29","v":0},{"$f":"'Terre et action humaine'!H29","v":0},{"$f":"'Terre et action humaine'!K29","v":0},{"$f":"'Terre et action humaine'!N29","v":0},{"$f":"'Terre et action humaine'!Q29","v":0},{"$f":"'Terre et action humaine'!T29","v":0},{"$f":"'Terre et action humaine'!W29","v":0},{"$f":"'Terre et action humaine'!Z29","v":0}]
[{"$f":"'Terre et action humaine'!A30","v":0},{"$f":"'Terre et action humaine'!B30","v":0},{"$f":"'Terre et action humaine'!C30","v":0},{"$f":"'Terre et action humaine'!D30","v":0},{"$f":"'Terre et action humaine'!E30","v":0},{"$f":"'Terre et action humaine'!H30","v":0},{"$f":"'Terre et action humaine'!K30","v":0},{"$f":"'Terre et action humaine'!N30","v":0},{"$f":"'Terre et action humaine'!Q30","v":0},{"$f":"'Terre et action humaine'!T30","v":0},{"$f":"'Terre et action humaine'!W30","v":0},{"$f":"'Terre et action humaine'!Z30","v":0}]
[{"$f":"'Terre et action humaine'!A31","v":0},{"$f":"'Terre et action humaine'!B31","v":0},{"$f":"'Terre et action humaine'!C31","v":0},{"$f":"'Terre et action humaine'!D31","v":0},{"$f":"'Terre et action humaine'!E31","v":0},{"$f":"'Terre et action humaine'!H31","v":0},{"$f":"'Terre et action humaine'!K31","v":0},{"$f":"'Terre et action humaine'!N31","v":0},{"$f":"'Terre et action humaine'!Q31","v":0},{"$f":"'Terre et action humaine'!T31","v":0},{"$f":"'Terre et action humaine'!W31","v":0},{"$f":"'Terre et action humaine'!Z31","v":0}]
[{"$f":"Vivant!A20","v":0},{"$f":"Vivant!B20","v":0},{"$f":"Vivant!C20","v":0},{"$f":"Vivant!D20","v":0},{"$f":"Vivant!E20","v":0},{"$f":"Vivant!H20","v":0},{"$f":"Vivant!K20","v":0},{"$f":"Vivant!N20","v":0},{"$f":"Vivant!Q20","v":0},{"$f":"Vivant!T20","v":0},{"$f":"Vivant!W20","v":0},{"$f":"Vivant!Z20","v":0}]
[{"$f":"Vivant!A21","v":0},{"$f":"Vivant!B21","v":0},{"$f":"Vivant!C22","v":0},{"$f":"Vivant!D21","v":0},{"$f":"Vivant!E21","v":0},{"$f":"Vivant!H21","v":0},{"$f":"Vivant!K21","v":0},{"$f":"Vivant!N21","v":0},{"$f":"Vivant!Q21","v":0},{"$f":"Vivant!T21","v":0},{"$f":"Vivant!W21","v":0},{"$f":"Vivant!Z21","v":0}]
[{"$f":"Vivant!A22","v":0},{"$f":"Vivant!B22","v":0},{"$f":"Vivant!C21","v":0},{"$f":"Vivant!D22","v":0},{"$f":"Vivant!E22","v":0},{"$f":"Vivant!H22","v":0},{"$f":"Vivant!K22","v":0},{"$f":"Vivant!N22","v":0},{"$f":"Vivant!Q22","v":0},{"$f":"Vivant!T22","v":0},{"$f":"Vivant!W22","v":0},{"$f":"Vivant!Z22","v":0}]
[{"$f":"Vivant!A23","v":0},{"$f":"Vivant!B23","v":0},{"$f":"Vivant!C22","v":0},{"$f":"Vivant!D23","v":0},{"$f":"Vivant!E23","v":0},{"$f":"Vivant!H23","v":0},{"$f":"Vivant!K23","v":0},{"$f":"Vivant!N23","v":0},{"$f":"Vivant!Q23","v":0},{"$f":"Vivant!T23","v":0},{"$f":"Vivant!W23","v":0},{"$f":"Vivant!Z23","v":0}]
[{"$f":"Vivant!A24","v":0},{"$f":"Vivant!B24","v":0},{"$f":"Vivant!C23","v":0},{"$f":"Vivant!D24","v":0},{"$f":"Vivant!E24","v":0},{"$f":"Vivant!H24","v":0},{"$f":"Vivant!K24","v":0},{"$f":"Vivant!N24","v":0},{"$f":"Vivant!Q24","v":0},{"$f":"Vivant!T24","v":0},{"$f":"Vivant!W24","v":0},{"$f":"Vivant!Z24","v":0}]
[{"$f":"Vivant!A25","v":0},{"$f":"Vivant!B25","v":0},{"$f":"Vivant!C24","v":0},{"$f":"Vivant!D25","v":0},{"$f":"Vivant!E25","v":0},{"$f":"Vivant!H25","v":0},{"$f":"Vivant!K25","v":0},{"$f":"Vivant!N25","v":0},{"$f":"Vivant!Q25","v":0},{"$f":"Vivant!T25","v":0},{"$f":"Vivant!W25","v":0},{"$f":"Vivant!Z25","v":0}]
[{"$f":"Vivant!A26","v":0},{"$f":"Vivant!B26","v":0},{"$f":"Vivant!C25","v":0},{"$f":"Vivant!D26","v":0},{"$f":"Vivant!E26","v":0},{"$f":"Vivant!H26","v":0},{"$f":"Vivant!K26","v":0},{"$f":"Vivant!N26","v":0},{"$f":"Vivant!Q26","v":0},{"$f":"Vivant!T26","v":0},{"$f":"Vivant!W26","v":0},{"$f":"Vivant!Z26","v":0}]
[{"$f":"Vivant!A27","v":0},{"$f":"Vivant!B27","v":0},{"$f":"Vivant!C27","v":0},{"$f":"Vivant!D27","v":0},{"$f":"Vivant!E27","v":0},{"$f":"Vivant!H27","v":0},{"$f":"Vivant!K27","v":0},{"$f":"Vivant!N27","v":0},{"$f":"Vivant!Q27","v":0},{"$f":"Vivant!T27","v":0},{"$f":"Vivant!W27","v":0},{"$f":"Vivant!Z27","v":0}]
[{"$f":"Vivant!A28","v":0},{"$f":"Vivant!B28","v":0},{"$f":"Vivant!C28","v":0},{"$f":"Vivant!D28","v":0},{"$f":"Vivant!E28","v":0},{"$f":"Vivant!H28","v":0},{"$f":"Vivant!K28","v":0},{"$f":"Vivant!N28","v":0},{"$f":"Vivant!Q28","v":0},{"$f":"Vivant!T28","v":0},{"$f":"Vivant!W28","v":0},{"$f":"Vivant!Z28","v":0}]
[{"$f":"Vivant!A29","v":0},{"$f":"Vivant!B29","v":0},{"$f":"Vivant!C29","v":0},{"$f":"Vivant!D29","v":0},{"$f":"Vivant!E29","v":0},{"$f":"Vivant!H29","v":0},{"$f":"Vivant!K29","v":0},{"$f":"Vivant!N29","v":0},{"$f":"Vivant!Q29","v":0},{"$f":"Vivant!T29","v":0},{"$f":"Vivant!W29","v":0},{"$f":"Vivant!Z29","v":0}]
[{"$f":"Vivant!A30","v":0},{"$f":"Vivant!B30","v":0},{"$f":"Vivant!C30","v":0},{"$f":"Vivant!D30","v":0},{"$f":"Vivant!E30","v":0},{"$f":"Vivant!H30","v":0},{"$f":"Vivant!K30","v":0},{"$f":"Vivant!N30","v":0},{"$f":"Vivant!Q30","v":0},{"$f":"Vivant!T30","v":0},{"$f":"Vivant!W30","v":0},{"$f":"Vivant!Z30","v":0}]
[{"$f":"Vivant!A31","v":0},{"$f":"Vivant!B31","v":0},{"$f":"Vivant!C31","v":0},{"$f":"Vivant!D31","v":0},{"$f":"Vivant!E31","v":0},{"$f":"Vivant!H31","v":0},{"$f":"Vivant!K31","v":0},{"$f":"Vivant!N31","v":0},{"$f":"Vivant!Q31","v":0},{"$f":"Vivant!T31","v":0},{"$f":"Vivant!W31","v":0},{"$f":"Vivant!Z31","v":0}]
[{"$f":"'Corps et Santé'!A20","v":0},{"$f":"'Corps et Santé'!B20","v":0},{"$f":"'Corps et Santé'!C20","v":0},{"$f":"'Corps et Santé'!D20","v":0},{"$f":"'Corps et Santé'!E20","v":0},{"$f":"'Corps et Santé'!H20","v":0},{"$f":"'Corps et Santé'!K20","v":0},{"$f":"'Corps et Santé'!N20","v":0},{"$f":"'Corps et Santé'!Q20","v":0},{"$f":"'Corps et Santé'!T20","v":0},{"$f":"'Corps et Santé'!W20","v":0},{"$f":"'Corps et Santé'!Z20","v":0}]
[{"$f":"'Corps et Santé'!A21","v":0},{"$f":"'Corps et Santé'!B21","v":0},{"$f":"'Corps et Santé'!C22","v":0},{"$f":"'Corps et Santé'!D21","v":0},{"$f":"'Corps et Santé'!E21","v":0},{"$f":"'Corps et Santé'!H21","v":0},{"$f":"'Corps et Santé'!K21","v":0},{"$f":"'Corps et Santé'!N21","v":0},{"$f":"'Corps et Santé'!Q21","v":0},{"$f":"'Corps et Santé'!T21","v":0},{"$f":"'Corps et Santé'!W21","v":0},{"$f":"'Corps et Santé'!Z21","v":0}]
[{"$f":"'Corps et Santé'!A22","v":0},{"$f":"'Corps et Santé'!B22","v":0},{"$f":"'Corps et Santé'!C21","v":0},{"$f":"'Corps et Santé'!D22","v":0},{"$f":"'Corps et Santé'!E22","v":0},{"$f":"'Corps et Santé'!H22","v":0},{"$f":"'Corps et Santé'!K22","v":0},{"$f":"'Corps et Santé'!N22","v":0},{"$f":"'Corps et Santé'!Q22","v":0},{"$f":"'Corps et Santé'!T22","v":0},{"$f":"'Corps et Santé'!W22","v":0},{"$f":"'Corps et Santé'!Z22","v":0}]
[{"$f":"'Corps et Santé'!A23","v":0},{"$f":"'Corps et Santé'!B23","v":0},{"$f":"'Corps et Santé'!C22","v":0},{"$f":"'Corps et Santé'!D23","v":0},{"$f":"'Corps et Santé'!E23","v":0},{"$f":"'Corps et Santé'!H23","v":0},{"$f":"'Corps et Santé'!K23","v":0},{"$f":"'Corps et Santé'!N23","v":0},{"$f":"'Corps et Santé'!Q23","v":0},{"$f":"'Corps et Santé'!T23","v":0},{"$f":"'Corps et Santé'!W23","v":0},{"$f":"'Corps et Santé'!Z23","v":0}]
[{"$f":"'Corps et Santé'!A24","v":0},{"$f":"'Corps et Santé'!B24","v":0},{"$f":"'Corps et Santé'!C24","v":0},{"$f":"'Corps et Santé'!D24","v":0},{"$f":"'Corps et Santé'!E24","v":0},{"$f":"'Corps et Santé'!H24","v":0},{"$f":"'Corps et Santé'!K24","v":0},{"$f":"'Corps et Santé'!N24","v":0},{"$f":"'Corps et Santé'!Q24","v":0},{"$f":"'Corps et Santé'!T24","v":0},{"$f":"'Corps et Santé'!W24","v":0},{"$f":"'Corps et Santé'!Z24","v":0}]
[{"$f":"'Corps et Santé'!A25","v":0},{"$f":"'Corps et Santé'!B25","v":0},{"$f":"'Corps et Santé'!C25","v":0},{"$f":"'Corps et Santé'!D25","v":0},{"$f":"'Corps et Santé'!E25","v":0},{"$f":"'Corps et Santé'!H25","v":0},{"$f":"'Corps et Santé'!K25","v":0},{"$f":"'Corps et Santé'!N25","v":0},{"$f":"'Corps et Santé'!Q25","v":0},{"$f":"'Corps et Santé'!T25","v":0},{"$f":"'Corps et Santé'!W25","v":0},{"$f":"'Corps et Santé'!Z25","v":0}]
[{"$f":"'Corps et Santé'!A26","v":0},{"$f":"'Corps et Santé'!B26","v":0},{"$f":"'Corps et Santé'!C26","v":0},{"$f":"'Corps et Santé'!D26","v":0},{"$f":"'Corps et Santé'!E26","v":0},{"$f":"'Corps et Santé'!H26","v":0},{"$f":"'Corps et Santé'!K26","v":0},{"$f":"'Corps et Santé'!N26","v":0},{"$f":"'Corps et Santé'!Q26","v":0},{"$f":"'Corps et Santé'!T26","v":0},{"$f":"'Corps et Santé'!W26","v":0},{"$f":"'Corps et Santé'!Z26","v":0}]
[{"$f":"'Corps et Santé'!A27","v":0},{"$f":"'Corps et Santé'!B27","v":0},{"$f":"'Corps et Santé'!C27","v":0},{"$f":"'Corps et Santé'!D27","v":0},{"$f":"'Corps et Santé'!E27","v":0},{"$f":"'Corps et Santé'!H27","v":0},{"$f":"'Corps et Santé'!K27","v":0},{"$f":"'Corps et Santé'!N27","v":0},{"$f":"'Corps et Santé'!Q27","v":0},{"$f":"'Corps et Santé'!T27","v":0},{"$f":"'Corps et Santé'!W27","v":0},{"$f":"'Corps et Santé'!Z27","v":0}]
[{"$f":"'Corps et Santé'!A28","v":0},{"$f":"'Corps et Santé'!B28","v":0},{"$f":"'Corps et Santé'!C28","v":0},{"$f":"'Corps et Santé'!D28","v":0},{"$f":"'Corps et Santé'!E28","v":0},{"$f":"'Corps et Santé'!H28","v":0},{"$f":"'Corps et Santé'!K28","v":0},{"$f":"'Corps et Santé'!N28","v":0},{"$f":"'Corps et Santé'!Q28","v":0},{"$f":"'Corps et Santé'!T28","v":0},{"$f":"'Corps et Santé'!W28","v":0},{"$f":"'Corps et Santé'!Z28","v":0}]
[{"$f":"'Corps et Santé'!A29","v":0},{"$f":"'Corps et Santé'!B29","v":0},{"$f":"'Corps et Santé'!C29","v":0},{"$f":"'Corps et Santé'!D29","v":0},{"$f":"'Corps et Santé'!E29","v":0},{"$f":"'Corps et Santé'!H29","v":0},{"$f":"'Corps et Santé'!K29","v":0},{"$f":"'Corps et Santé'!N29","v":0},{"$f":"'Corps et Santé'!Q29","v":0},{"$f":"'Corps et Santé'!T29","v":0},{"$f":"'Corps et Santé'!W29","v":0},{"$f":"'Corps et Santé'!Z29","v":0}]
[{"$f":"'Corps et Santé'!A30","v":0},{"$f":"'Corps et Santé'!B30","v":0},{"$f":"'Corps et Santé'!C30","v":0},{"$f":"'Corps et Santé'!D30","v":0},{"$f":"'Corps et Santé'!E30","v":0},{"$f":"'Corps et Santé'!H30","v":0},{"$f":"'Corps et Santé'!K30","v":0},{"$f":"'Corps et Santé'!N30","v":0},{"$f":"'Corps et Santé'!Q30","v":0},{"$f":"'Corps et Santé'!T30","v":0},{"$f":"'Corps et Santé'!W30","v":0},{"$f":"'Corps et Santé'!Z30","v":0}]
[{"$f":"'Corps et Santé'!A31","v":0},{"$f":"'Corps et Santé'!B31","v":0},{"$f":"'Corps et Santé'!C31","v":0},{"$f":"'Corps et Santé'!D31","v":0},{"$f":"'Corps et Santé'!E31","v":0},{"$f":"'Corps et Santé'!H31","v":0},{"$f":"'Corps et Santé'!K31","v":0},{"$f":"'Corps et Santé'!N31","v":0},{"$f":"'Corps et Santé'!Q31","v":0},{"$f":"'Corps et Santé'!T31","v":0},{"$f":"'Corps et Santé'!W31","v":0},{"$f":"'Corps et Santé'!Z31","v":0}]
{"$rows_empty":35}
[{"$nulls":4},"Nombre d'ES par domaine sur l'année",{"$f":"COUNTIFS($F$6:$F$41,\"ES\")","v":0},{"$f":"COUNTIFS($G$6:$G$41,\"ES\")","v":0},{"$f":"COUNTIFS($H$6:$H$41,\"ES\")","v":0},{"$f":"COUNTIFS($I$6:$I$41,\"ES\")","v":0},{"$f":"COUNTIFS($J$6:$J$41,\"ES\")","v":0},{"$f":"COUNTIFS($K$6:$K$41,\"ES\")","v":0},{"$f":"COUNTIFS($L$6:$L$41,\"ES\")","v":0}]

{"sheet":"Sauvegarde Organisation bilan","index":7,"n_rows":112,"n_cols":10,"rows_kept":112,"hidden":true,"merged":[[0,0,2,3],[3,2,3,3],[3,4,3,9]]}
["Organisation Bilan du travail envisagé sur la deuxième année scolaire du Cycle 4 en SVT : 4ème"]
[]
[]
[null,null,"Activités",null,"compétences évaluées"]
["semaine","Attendus de fin de cycle","nature de l'activité","Titre de l'activité et/ou\nTitre de la partie\nRemarques","pratiquer des démarches ","concevoir","utiliser des outils pour apprendre","pratiquer des langages","utiliser des outils numériques","Adopter un comportement  responsable"]
[{"$f":"'Terre et action humaine'!A7","v":0},{"$f":"'Terre et action humaine'!C7","v":0},{"$f":"'Terre et action humaine'!D7","v":0},{"$f":"'Terre et action humaine'!E7","v":0},{"$f":"'Terre et action humaine'!H7","v":0},{"$f":"'Terre et action humaine'!K7","v":0},{"$f":"'Terre et action humaine'!N7","v":0},{"$f":"'Terre et action humaine'!Q7","v":0},{"$f":"'Terre et action humaine'!T7","v":0},{"$f":"'Terre et action humaine'!Z7","v":0}]
[{"$f":"'Terre et action humaine'!A8","v":0},{"$f":"'Terre et action humaine'!C8","v":0},{"$f":"'Terre et action humaine'!D8","v":0},{"$f":"'Terre et action humaine'!E8","v":0},{"$f":"'Terre et action humaine'!H8","v":0},{"$f":"'Terre et action humaine'!K8","v":0},{"$f":"'Terre et action humaine'!N8","v":0},{"$f":"'Terre et action humaine'!Q8","v":0},{"$f":"'Terre et action humaine'!T8","v":0},{"$f":"'Terre et action humaine'!Z8","v":0}]
[{"$f":"'Terre et action humaine'!A9","v":0},{"$f":"'Terre et action humaine'!C9","v":0},{"$f":"'Terre et action humaine'!D9","v":0},{"$f":"'Terre et action humaine'!E9","v":0},{"$f":"'Terre et action humaine'!H9","v":0},{"$f":"'Terre et action humaine'!K9","v":0},{"$f":"'Terre et action humaine'!N9","v":0},{"$f":"'Terre et action humaine'!Q9","v":0},{"$f":"'Terre et action humaine'!T9","v":0},{"$f":"'Terre et action humaine'!Z9","v":0}]
[{"$f":"'Terre et action humaine'!A10","v":0},{"$f":"'Terre et action humaine'!C10","v":0},{"$f":"'Terre et action humaine'!D10","v":0},{"$f":"'Terre et action humaine'!E10","v":0},{"$f":"'Terre et action humaine'!H10","v":0},{"$f":"'Terre et action humaine'!K10","v":0},{"$f":"'Terre et action humaine'!N10","v":0},{"$f":"'Terre et action humaine'!Q10","v":0},{"$f":"'Terre et action humaine'!T10","v":0},{"$f":"'Terre et action humaine'!Z10","v":0}]
[{"$f":"'Terre et action humaine'!A11","v":0},{"$f":"'Terre et action humaine'!C11","v":0},{"$f":"'Terre et action humaine'!D11","v":0},{"$f":"'Terre et action humaine'!E11","v":0},{"$f":"'Terre et action humaine'!H11","v":0},{"$f":"'Terre et action humaine'!K11","v":0},{"$f":"'Terre et action humaine'!N11","v":0},{"$f":"'Terre et action humaine'!Q11","v":0},{"$f":"'Terre et action humaine'!T11","v":0},{"$f":"'Terre et action humaine'!Z11","v":0}]
[{"$f":"'Terre et action humaine'!A12","v":0},{"$f":"'Terre et action humaine'!C12","v":0},{"$f":"'Terre et action humaine'!D12","v":0},{"$f":"'Terre et action humaine'!E12","v":0},{"$f":"'Terre et action humaine'!H12","v":0},{"$f":"'Terre et action humaine'!K12","v":0},{"$f":"'Terre et action humaine'!N12","v":0},{"$f":"'Terre et action humaine'!Q12","v":0},{"$f":"'Terre et action humaine'!T12","v":0},{"$f":"'Terre et action humaine'!Z12","v":0}]
[{"$f":"'Terre et action humaine'!A13","v":0},{"$f":"'Terre et action humaine'!C13","v":0},{"$f":"'Terre et action humaine'!D13","v":0},{"$f":"'Terre et action humaine'!E13","v":0},{"$f":"'Terre et action humaine'!H13","v":0},{"$f":"'Terre et action humaine'!K13","v":0},{"$f":"'Terre et action humaine'!N13","v":0},{"$f":"'Terre et action humaine'!Q13","v":0},{"$f":"'Terre et action humaine'!T13","v":0},{"$f":"'Terre et action humaine'!Z13","v":0}]
[{"$f":"'Terre et action humaine'!A14","v":0},{"$f":"'Terre et action humaine'!C14","v":0},{"$f":"'Terre et action humaine'!D14","v":0},{"$f":"'Terre et action humaine'!E14","v":0},{"$f":"'Terre et action humaine'!H14","v":0},{"$f":"'Terre et action humaine'!K14","v":0},{"$f":"'Terre et action humaine'!N14","v":0},{"$f":"'Terre et action humaine'!Q14","v":0},{"$f":"'Terre et action humaine'!T14","v":0},{"$f":"'Terre et action humaine'!Z14","v":0}]
[{"$f":"'Terre et action humaine'!A15","v":0},{"$f":"'Terre et action humaine'!C15","v":0},{"$f":"'Terre et action humaine'!D15","v":0},{"$f":"'Terre et action humaine'!E15","v":0},{"$f":"'Terre et action humaine'!H15","v":0},{"$f":"'Terre et action humaine'!K15","v":0},{"$f":"'Terre et action humaine'!N15","v":0},{"$f":"'Terre et action humaine'!Q15","v":0},{"$f":"'Terre et action humaine'!T15","v":0},{"$f":"'Terre et action humaine'!Z15","v":0}]
[{"$f":"'Terre et action humaine'!A16","v":0},{"$f":"'Terre et action humaine'!C16","v":0},{"$f":"'Terre et action humaine'!D16","v":0},{"$f":"'Terre et action humaine'!E16","v":0},{"$f":"'Terre et action humaine'!H16","v":0},{"$f":"'Terre et action humaine'!K16","v":0},{"$f":"'Terre et action humaine'!N16","v":0},{"$f":"'Terre et action humaine'!Q16","v":0},{"$f":"'Terre et action humaine'!T16","v":0},{"$f":"'Terre et action humaine'!Z16","v":0}]
[{"$f":"'Terre et action humaine'!A17","v":0},{"$f":"'Terre et action humaine'!C17","v":0},{"$f":"'Terre et action humaine'!D17","v":0},{"$f":"'Terre et action humaine'!E17","v":0},{"$f":"'Terre et action humaine'!H17","v":0},{"$f":"'Terre et action humaine'!K17","v":0},{"$f":"'Terre et action humaine'!N17","v":0},{"$f":"'Terre et action humaine'!Q17","v":0},{"$f":"'Terre et action humaine'!T17","v":0},{"$f":"'Terre et action humaine'!Z17","v":0}]
[{"$f":"'Terre et action humaine'!A18","v":0},{"$f":"'Terre et action humaine'!C18","v":0},{"$f":"'Terre et action humaine'!D18","v":0},{"$f":"'Terre et action humaine'!E18","v":0},{"$f":"'Terre et action humaine'!H18","v":0},{"$f":"'Terre et action humaine'!K18","v":0},{"$f":"'Terre et action humaine'!N18","v":0},{"$f":"'Terre et action humaine'!Q18","v":0},{"$f":"'Terre et action humaine'!T18","v":0},{"$f":"'Terre et action humaine'!Z18","v":0}]
[{"$f":"'Terre et action humaine'!A20","v":0},{"$f":"'Terre et action humaine'!C20","v":0},{"$f":"'Terre et action humaine'!D20","v":0},{"$f":"'Terre et action humaine'!E20","v":0},{"$f":"'Terre et action humaine'!H20","v":0},{"$f":"'Terre et action humaine'!K20","v":0},{"$f":"'Terre et action humaine'!N20","v":0},{"$f":"'Terre et action humaine'!Q20","v":0},{"$f":"'Terre et action humaine'!T20","v":0},{"$f":"'Terre et action humaine'!Z20","v":0}]
[{"$f":"'Terre et action humaine'!A21","v":0},{"$f":"'Terre et action humaine'!C22","v":0},{"$f":"'Terre et action humaine'!D21","v":0},{"$f":"'Terre et action humaine'!E21","v":0},{"$f":"'Terre et action humaine'!H21","v":0},{"$f":"'Terre et action humaine'!K21","v":0},{"$f":"'Terre et action humaine'!N21","v":0},{"$f":"'Terre et action humaine'!Q21","v":0},{"$f":"'Terre et action humaine'!T21","v":0},{"$f":"'Terre et action humaine'!Z21","v":0}]
[{"$f":"'Terre et action humaine'!A22","v":0},{"$f":"'Terre et action humaine'!C21","v":0},{"$f":"'Terre et action humaine'!D22","v":0},{"$f":"'Terre et action humaine'!E22","v":0},{"$f":"'Terre et action humaine'!H22","v":0},{"$f":"'Terre et action humaine'!K22","v":0},{"$f":"'Terre et action humaine'!N22","v":0},{"$f":"'Terre et action humaine'!Q22","v":0},{"$f":"'Terre et action humaine'!T22","v":0},{"$f":"'Terre et action humaine'!Z22","v":0}]
[{"$f":"'Terre et action humaine'!A23","v":0},{"$f":"'Terre et action humaine'!#REF!","v":{"$error":"#REF!"}},{"$f":"'Terre et action humaine'!D23","v":0},{"$f":"'Terre et action humaine'!E23","v":0},{"$f":"'Terre et action humaine'!H23","v":0},{"$f":"'Terre et action humaine'!K23","v":0},{"$f":"'Terre et action humaine'!N23","v":0},{"$f":"'Terre et action humaine'!Q23","v":0},{"$f":"'Terre et action humaine'!T23","v":0},{"$f":"'Terre et action humaine'!Z23","v":0}]
[{"$f":"'Terre et action humaine'!A24","v":0},{"$f":"'Terre et action humaine'!C24","v":0},{"$f":"'Terre et action humaine'!D24","v":0},{"$f":"'Terre et action humaine'!E24","v":0},{"$f":"'Terre et action humaine'!H24","v":0},{"$f":"'Terre et action humaine'!K24","v":0},{"$f":"'Terre et action humaine'!N24","v":0},{"$f":"'Terre et action humaine'!Q24","v":0},{"$f":"'Terre et action humaine'!T24","v":0},{"$f":"'Terre et action humaine'!Z24","v":0}]
[{"$f":"'Terre et action humaine'!A25","v":0},{"$f":"'Terre et action humaine'!C25","v":0},{"$f":"'Terre et action humaine'!D25","v":0},{"$f":"'Terre et action humaine'!E25","v":0},{"$f":"'Terre et action humaine'!H25","v":0},{"$f":"'Terre et action humaine'!K25","v":0},{"$f":"'Terre et action humaine'!N25","v":0},{"$f":"'Terre et action humaine'!Q25","v":0},{"$f":"'Terre et action humaine'!T25","v":0},{"$f":"'Terre et action humaine'!Z25","v":0}]
[{"$f":"'Terre et action humaine'!A26","v":0},{"$f":"'Terre et action humaine'!C26","v":0},{"$f":"'Terre et action humaine'!D26","v":0},{"$f":"'Terre et action humaine'!E26","v":0},{"$f":"'Terre et action humaine'!H26","v":0},{"$f":"'Terre et action humaine'!K26","v":0},{"$f":"'Terre et action humaine'!N26","v":0},{"$f":"'Terre et action humaine'!Q26","v":0},{"$f":"'Terre et action humaine'!T26","v":0},{"$f":"'Terre et action humaine'!Z26","v":0}]
[{"$f":"'Terre et action humaine'!A27","v":0},{"$f":"'Terre et action humaine'!C27","v":0},{"$f":"'Terre et action humaine'!D27","v":0},{"$f":"'Terre et action humaine'!E27","v":0},{"$f":"'Terre et action humaine'!H27","v":0},{"$f":"'Terre et action humaine'!K27","v":0},{"$f":"'Terre et action humaine'!N27","v":0},{"$f":"'Terre et action humaine'!Q27","v":0},{"$f":"'Terre et action humaine'!T27","v":0},{"$f":"'Terre et action humaine'!Z27","v":0}]
[{"$f":"'Terre et action humaine'!A28","v":0},{"$f":"'Terre et action humaine'!C28","v":0},{"$f":"'Terre et action humaine'!D28","v":0},{"$f":"'Terre et action humaine'!E28","v":0},{"$f":"'Terre et action humaine'!H28","v":0},{"$f":"'Terre et action humaine'!K28","v":0},{"$f":"'Terre et action humaine'!N28","v":0},{"$f":"'Terre et action humaine'!Q28","v":0},{"$f":"'Terre et action humaine'!T28","v":0},{"$f":"'Terre et action humaine'!Z28","v":0}]
[{"$f":"'Terre et action humaine'!A29","v":0},{"$f":"'Terre et action humaine'!C29","v":0},{"$f":"'Terre et action humaine'!D29","v":0},{"$f":"'Terre et action humaine'!E29","v":0},{"$f":"'Terre et action humaine'!H29","v":0},{"$f":"'Terre et action humaine'!K29","v":0},{"$f":"'Terre et action humaine'!N29","v":0},{"$f":"'Terre et action humaine'!Q29","v":0},{"$f":"'Terre et action humaine'!T29","v":0},{"$f":"'Terre et action humaine'!Z29","v":0}]
[{"$f":"'Terre et action humaine'!A31","v":0},{"$f":"'Terre et action humaine'!C31","v":0},{"$f":"'Terre et action humaine'!D31","v":0},{"$f":"'Terre et action humaine'!E31","v":0},{"$f":"'Terre et action humaine'!H31","v":0},{"$f":"'Terre et action humaine'!K31","v":0},{"$f":"'Terre et action humaine'!N31","v":0},{"$f":"'Terre et action humaine'!Q31","v":0},{"$f":"'Terre et action humaine'!T31","v":0},{"$f":"'Terre et action humaine'!Z31","v":0}]
[{"$f":"'Terre et action humaine'!A33","v":0},{"$f":"'Terre et action humaine'!C33","v":0},{"$f":"'Terre et action humaine'!D33","v":0},{"$f":"'Terre et action humaine'!E33","v":0},{"$f":"'Terre et action humaine'!H33","v":0},{"$f":"'Terre et action humaine'!K33","v":0},{"$f":"'Terre et action humaine'!N33","v":0},{"$f":"'Terre et action humaine'!Q33","v":0},{"$f":"'Terre et action humaine'!T33","v":0},{"$f":"'Terre et action humaine'!Z33","v":0}]
[{"$f":"'Terre et action humaine'!A34","v":0},{"$f":"'Terre et action humaine'!C34","v":0},{"$f":"'Terre et action humaine'!D34","v":0},{"$f":"'Terre et action humaine'!E34","v":0},{"$f":"'Terre et action humaine'!H34","v":0},{"$f":"'Terre et action humaine'!K34","v":0},{"$f":"'Terre et action humaine'!N34","v":0},{"$f":"'Terre et action humaine'!Q34","v":0},{"$f":"'Terre et action humaine'!T34","v":0},{"$f":"'Terre et action humaine'!Z34","v":0}]
[{"$f":"'Terre et action humaine'!A35","v":0},{"$f":"'Terre et action humaine'!C35","v":0},{"$f":"'Terre et action humaine'!D35","v":0},{"$f":"'Terre et action humaine'!E35","v":0},{"$f":"'Terre et action humaine'!H35","v":0},{"$f":"'Terre et action humaine'!K35","v":0},{"$f":"'Terre et action humaine'!N35","v":0},{"$f":"'Terre et action humaine'!Q35","v":0},{"$f":"'Terre et action humaine'!T35","v":0},{"$f":"'Terre et action humaine'!Z35","v":0}]
[{"$f":"'Terre et action humaine'!A36","v":0},{"$f":"'Terre et action humaine'!C36","v":0},{"$f":"'Terre et action humaine'!D36","v":0},{"$f":"'Terre et action humaine'!E36","v":0},{"$f":"'Terre et action humaine'!H36","v":0},{"$f":"'Terre et action humaine'!K36","v":0},{"$f":"'Terre et action humaine'!N36","v":0},{"$f":"'Terre et action humaine'!Q36","v":0},{"$f":"'Terre et action humaine'!T36","v":0},{"$f":"'Terre et action humaine'!Z36","v":0}]
[{"$f":"'Terre et action humaine'!A37","v":0},{"$f":"'Terre et action humaine'!C37","v":0},{"$f":"'Terre et action humaine'!D37","v":0},{"$f":"'Terre et action humaine'!E37","v":0},{"$f":"'Terre et action humaine'!H37","v":0},{"$f":"'Terre et action humaine'!K37","v":0},{"$f":"'Terre et action humaine'!N37","v":0},{"$f":"'Terre et action humaine'!Q37","v":0},{"$f":"'Terre et action humaine'!T37","v":0},{"$f":"'Terre et action humaine'!Z37","v":0}]
[{"$f":"'Terre et action humaine'!A38","v":0},{"$f":"'Terre et action humaine'!C38","v":0},{"$f":"'Terre et action humaine'!D38","v":0},{"$f":"'Terre et action humaine'!E38","v":0},{"$f":"'Terre et action humaine'!H38","v":0},{"$f":"'Terre et action humaine'!K38","v":0},{"$f":"'Terre et action humaine'!N38","v":0},{"$f":"'Terre et action humaine'!Q38","v":0},{"$f":"'Terre et action humaine'!T38","v":0},{"$f":"'Terre et action humaine'!Z38","v":0}]
[{"$f":"'Terre et action humaine'!A39","v":0},{"$f":"'Terre et action humaine'!C39","v":0},{"$f":"'Terre et action humaine'!D39","v":0},{"$f":"'Terre et action humaine'!E39","v":0},{"$f":"'Terre et action humaine'!H39","v":0},{"$f":"'Terre et action humaine'!K39","v":0},{"$f":"'Terre et action humaine'!N39","v":0},{"$f":"'Terre et action humaine'!Q39","v":0},{"$f":"'Terre et action humaine'!T39","v":0},{"$f":"'Terre et action humaine'!Z39","v":0}]
[{"$f":"'Terre et action humaine'!A40","v":0},{"$f":"'Terre et action humaine'!C40","v":0},{"$f":"'Terre et action humaine'!D40","v":0},{"$f":"'Terre et action humaine'!E40","v":0},{"$f":"'Terre et action humaine'!H40","v":0},{"$f":"'Terre et action humaine'!K40","v":0},{"$f":"'Terre et action humaine'!N40","v":0},{"$f":"'Terre et action humaine'!Q40","v":0},{"$f":"'Terre et action humaine'!T40","v":0},{"$f":"'Terre et action humaine'!Z40","v":0}]
[{"$f":"'Terre et action humaine'!A41","v":0},{"$f":"'Terre et action humaine'!C41","v":0},{"$f":"'Terre et action humaine'!D41","v":0},{"$f":"'Terre et action humaine'!E41","v":0},{"$f":"'Terre et action humaine'!H41","v":0},{"$f":"'Terre et action humaine'!K41","v":0},{"$f":"'Terre et action humaine'!N41","v":0},{"$f":"'Terre et action humaine'!Q41","v":0},{"$f":"'Terre et action humaine'!T41","v":0},{"$f":"'Terre et action humaine'!Z41","v":0}]
[{"$f":"'Terre et action humaine'!A42","v":0},{"$f":"'Terre et action humaine'!C42","v":0},{"$f":"'Terre et action humaine'!D42","v":0},{"$f":"'Terre et action humaine'!E42","v":0},{"$f":"'Terre et action humaine'!H42","v":0},{"$f":"'Terre et action humaine'!K42","v":0},{"$f":"'Terre et action humaine'!N42","v":0},{"$f":"'Terre et action humaine'!Q42","v":0},{"$f":"'Terre et action humaine'!T42","v":0},{"$f":"'Terre et action humaine'!Z42","v":0}]
[{"$f":"'Terre et action humaine'!A43","v":0},{"$f":"'Terre et action humaine'!C43","v":0},{"$f":"'Terre et action humaine'!D43","v":0},{"$f":"'Terre et action humaine'!E43","v":0},{"$f":"'Terre et action humaine'!H43","v":0},{"$f":"'Terre et action humaine'!K43","v":0},{"$f":"'Terre et action humaine'!N43","v":0},{"$f":"'Terre et action humaine'!Q43","v":0},{"$f":"'Terre et action humaine'!T43","v":0},{"$f":"'Terre et action humaine'!Z43","v":0}]
[{"$f":"'Terre et action humaine'!A44","v":0},{"$f":"'Terre et action humaine'!C44","v":0},{"$f":"'Terre et action humaine'!D44","v":0},{"$f":"'Terre et action humaine'!E44","v":0},{"$f":"'Terre et action humaine'!H44","v":0},{"$f":"'Terre et action humaine'!K44","v":0},{"$f":"'Terre et action humaine'!N44","v":0},{"$f":"'Terre et action humaine'!Q44","v":0},{"$f":"'Terre et action humaine'!T44","v":0},{"$f":"'Terre et action humaine'!Z44","v":0}]
[{"$f":"Vivant!A7","v":0},{"$f":"Vivant!B7","v":0},{"$f":"Vivant!D7","v":0},{"$f":"Vivant!E7","v":0},{"$f":"Vivant!H7","v":0},{"$f":"Vivant!K7","v":0},{"$f":"Vivant!N7","v":0},{"$f":"Vivant!Q7","v":0},{"$f":"Vivant!T7","v":0},{"$f":"Vivant!W7","v":0}]
[{"$f":"Vivant!A8","v":0},{"$f":"Vivant!B8","v":0},{"$f":"Vivant!D8","v":0},{"$f":"Vivant!E8","v":0},{"$f":"Vivant!H8","v":0},{"$f":"Vivant!K8","v":0},{"$f":"Vivant!N8","v":0},{"$f":"Vivant!Q8","v":0},{"$f":"Vivant!T8","v":0},{"$f":"Vivant!W8","v":0}]
[{"$f":"Vivant!A9","v":0},{"$f":"Vivant!B9","v":0},{"$f":"Vivant!D9","v":0},{"$f":"Vivant!E9","v":0},{"$f":"Vivant!H9","v":0},{"$f":"Vivant!K9","v":0},{"$f":"Vivant!N9","v":0},{"$f":"Vivant!Q9","v":0},{"$f":"Vivant!T9","v":0},{"$f":"Vivant!W9","v":0}]
[{"$f":"Vivant!A10","v":0},{"$f":"Vivant!B10","v":0},{"$f":"Vivant!D10","v":0},{"$f":"Vivant!E10","v":0},{"$f":"Vivant!H10","v":0},{"$f":"Vivant!K10","v":0},{"$f":"Vivant!N10","v":0},{"$f":"Vivant!Q10","v":0},{"$f":"Vivant!T10","v":0},{"$f":"Vivant!W10","v":0}]
[{"$f":"Vivant!A11","v":0},{"$f":"Vivant!B11","v":0},{"$f":"Vivant!D11","v":0},{"$f":"Vivant!E11","v":0},{"$f":"Vivant!H11","v":0},{"$f":"Vivant!K11","v":0},{"$f":"Vivant!N11","v":0},{"$f":"Vivant!Q11","v":0},{"$f":"Vivant!T11","v":0},{"$f":"Vivant!W11","v":0}]
[{"$f":"Vivant!A12","v":0},{"$f":"Vivant!B12","v":0},{"$f":"Vivant!D12","v":0},{"$f":"Vivant!E12","v":0},{"$f":"Vivant!H12","v":0},{"$f":"Vivant!K12","v":0},{"$f":"Vivant!N12","v":0},{"$f":"Vivant!Q12","v":0},{"$f":"Vivant!T12","v":0},{"$f":"Vivant!W12","v":0}]
[{"$f":"Vivant!A13","v":0},{"$f":"Vivant!B13","v":0},{"$f":"Vivant!D13","v":0},{"$f":"Vivant!E13","v":0},{"$f":"Vivant!H13","v":0},{"$f":"Vivant!K13","v":0},{"$f":"Vivant!N13","v":0},{"$f":"Vivant!Q13","v":0},{"$f":"Vivant!T13","v":0},{"$f":"Vivant!W13","v":0}]
[{"$f":"Vivant!A14","v":0},{"$f":"Vivant!B14","v":0},{"$f":"Vivant!D14","v":0},{"$f":"Vivant!E14","v":0},{"$f":"Vivant!H14","v":0},{"$f":"Vivant!K14","v":0},{"$f":"Vivant!N14","v":0},{"$f":"Vivant!Q14","v":0},{"$f":"Vivant!T14","v":0},{"$f":"Vivant!W14","v":0}]
[{"$f":"Vivant!A15","v":0},{"$f":"Vivant!B15","v":0},{"$f":"Vivant!D15","v":0},{"$f":"Vivant!E15","v":0},{"$f":"Vivant!H15","v":0},{"$f":"Vivant!K15","v":0},{"$f":"Vivant!N15","v":0},{"$f":"Vivant!Q15","v":0},{"$f":"Vivant!T15","v":0},{"$f":"Vivant!W15","v":0}]
[{"$f":"Vivant!A16","v":0},{"$f":"Vivant!B16","v":0},{"$f":"Vivant!D16","v":0},{"$f":"Vivant!E16","v":0},{"$f":"Vivant!H16","v":0},{"$f":"Vivant!K16","v":0},{"$f":"Vivant!N16","v":0},{"$f":"Vivant!Q16","v":0},{"$f":"Vivant!T16","v":0},{"$f":"Vivant!W16","v":0}]
[{"$f":"Vivant!A17","v":0},{"$f":"Vivant!B17","v":0},{"$f":"Vivant!D17","v":0},{"$f":"Vivant!E17","v":0},{"$f":"Vivant!H17","v":0},{"$f":"Vivant!K17","v":0},{"$f":"Vivant!N17","v":0},{"$f":"Vivant!Q17","v":0},{"$f":"Vivant!T17","v":0},{"$f":"Vivant!W17","v":0}]
[{"$f":"Vivant!A18","v":0},{"$f":"Vivant!B18","v":0},{"$f":"Vivant!D18","v":0},{"$f":"Vivant!E18","v":0},{"$f":"Vivant!H18","v":0},{"$f":"Vivant!K18","v":0},{"$f":"Vivant!N18","v":0},{"$f":"Vivant!Q18","v":0},{"$f":"Vivant!T18","v":0},{"$f":"Vivant!W18","v":0}]
[{"$f":"Vivant!A20","v":0},{"$f":"Vivant!B20","v":0},{"$f":"Vivant!D20","v":0},{"$f":"Vivant!E20","v":0},{"$f":"Vivant!H20","v":0},{"$f":"Vivant!K20","v":0},{"$f":"Vivant!N20","v":0},{"$f":"Vivant!Q20","v":0},{"$f":"Vivant!T20","v":0},{"$f":"Vivant!W20","v":0}]
[{"$f":"Vivant!A21","v":0},{"$f":"Vivant!B21","v":0},{"$f":"Vivant!D21","v":0},{"$f":"Vivant!E21","v":0},{"$f":"Vivant!H21","v":0},{"$f":"Vivant!K21","v":0},{"$f":"Vivant!N21","v":0},{"$f":"Vivant!Q21","v":0},{"$f":"Vivant!T21","v":0},{"$f":"Vivant!W21","v":0}]
[{"$f":"Vivant!A22","v":0},{"$f":"Vivant!B22","v":0},{"$f":"Vivant!D22","v":0},{"$f":"Vivant!E22","v":0},{"$f":"Vivant!H22","v":0},{"$f":"Vivant!K22","v":0},{"$f":"Vivant!N22","v":0},{"$f":"Vivant!Q22","v":0},{"$f":"Vivant!T22","v":0},{"$f":"Vivant!W22","v":0}]
[{"$f":"Vivant!A23","v":0},{"$f":"Vivant!B23","v":0},{"$f":"Vivant!D23","v":0},{"$f":"Vivant!E23","v":0},{"$f":"Vivant!H23","v":0},{"$f":"Vivant!K23","v":0},{"$f":"Vivant!N23","v":0},{"$f":"Vivant!Q23","v":0},{"$f":"Vivant!T23","v":0},{"$f":"Vivant!W23","v":0}]
[{"$f":"Vivant!A24","v":0},{"$f":"Vivant!B24","v":0},{"$f":"Vivant!D24","v":0},{"$f":"Vivant!E24","v":0},{"$f":"Vivant!H24","v":0},{"$f":"Vivant!K24","v":0},{"$f":"Vivant!N24","v":0},{"$f":"Vivant!Q24","v":0},{"$f":"Vivant!T24","v":0},{"$f":"Vivant!W24","v":0}]
[{"$f":"Vivant!A25","v":0},{"$f":"Vivant!B25","v":0},{"$f":"Vivant!D25","v":0},{"$f":"Vivant!E25","v":0},{"$f":"Vivant!H25","v":0},{"$f":"Vivant!K25","v":0},{"$f":"Vivant!N25","v":0},{"$f":"Vivant!Q25","v":0},{"$f":"Vivant!T25","v":0},{"$f":"Vivant!W25","v":0}]
[{"$f":"Vivant!A26","v":0},{"$f":"Vivant!B26","v":0},{"$f":"Vivant!D26","v":0},{"$f":"Vivant!E26","v":0},{"$f":"Vivant!H26","v":0},{"$f":"Vivant!K26","v":0},{"$f":"Vivant!N26","v":0},{"$f":"Vivant!Q26","v":0},{"$f":"Vivant!T26","v":0},{"$f":"Vivant!W26","v":0}]
[{"$f":"Vivant!A27","v":0},{"$f":"Vivant!B27","v":0},{"$f":"Vivant!D27","v":0},{"$f":"Vivant!E27","v":0},{"$f":"Vivant!H27","v":0},{"$f":"Vivant!K27","v":0},{"$f":"Vivant!N27","v":0},{"$f":"Vivant!Q27","v":0},{"$f":"Vivant!T27","v":0},{"$f":"Vivant!W27","v":0}]
[{"$f":"Vivant!A28","v":0},{"$f":"Vivant!B28","v":0},{"$f":"Vivant!D28","v":0},{"$f":"Vivant!E28","v":0},{"$f":"Vivant!H28","v":0},{"$f":"Vivant!K28","v":0},{"$f":"Vivant!N28","v":0},{"$f":"Vivant!Q28","v":0},{"$f":"Vivant!T28","v":0},{"$f":"Vivant!W28","v":0}]
[{"$f":"Vivant!A29","v":0},{"$f":"Vivant!B29","v":0},{"$f":"Vivant!D29","v":0},{"$f":"Vivant!E29","v":0},{"$f":"Vivant!H29","v":0},{"$f":"Vivant!K29","v":0},{"$f":"Vivant!N29","v":0},{"$f":"Vivant!Q29","v":0},{"$f":"Vivant!T29","v":0},{"$f":"Vivant!W29","v":0}]
[{"$f":"Vivant!A30","v":0},{"$f":"Vivant!B30","v":0},{"$f":"Vivant!D30","v":0},{"$f":"Vivant!E30","v":0},{"$f":"Vivant!H30","v":0},{"$f":"Vivant!K30","v":0},{"$f":"Vivant!N30","v":0},{"$f":"Vivant!Q30","v":0},{"$f":"Vivant!T30","v":0},{"$f":"Vivant!W30","v":0}]
[{"$f":"Vivant!A31","v":0},{"$f":"Vivant!B31","v":0},{"$f":"Vivant!D31","v":0},{"$f":"Vivant!E31","v":0},{"$f":"Vivant!H31","v":0},{"$f":"Vivant!K31","v":0},{"$f":"Vivant!N31","v":0},{"$f":"Vivant!Q31","v":0},{"$f":"Vivant!T31","v":0},{"$f":"Vivant!W31","v":0}]
[{"$f":"Vivant!A33","v":0},{"$f":"Vivant!B33","v":0},{"$f":"Vivant!D33","v":0},{"$f":"Vivant!E33","v":0},{"$f":"Vivant!H33","v":0},{"$f":"Vivant!K33","v":0},{"$f":"Vivant!N33","v":0},{"$f":"Vivant!Q33","v":0},{"$f":"Vivant!T33","v":0},{"$f":"Vivant!W33","v":0}]
[{"$f":"Vivant!A34","v":0},{"$f":"Vivant!B34","v":0},{"$f":"Vivant!D34","v":0},{"$f":"Vivant!E34","v":0},{"$f":"Vivant!H34","v":0},{"$f":"Vivant!K34","v":0},{"$f":"Vivant!N34","v":0},{"$f":"Vivant!Q34","v":0},{"$f":"Vivant!T34","v":0},{"$f":"Vivant!W34","v":0}]
[{"$f":"Vivant!A35","v":0},{"$f":"Vivant!B35","v":0},{"$f":"Vivant!D35","v":0},{"$f":"Vivant!E35","v":0},{"$f":"Vivant!H35","v":0},{"$f":"Vivant!K35","v":0},{"$f":"Vivant!N35","v":0},{"$f":"Vivant!Q35","v":0},{"$f":"Vivant!T35","v":0},{"$f":"Vivant!W35","v":0}]
[{"$f":"Vivant!A36","v":0},{"$f":"Vivant!B36","v":0},{"$f":"Vivant!D36","v":0},{"$f":"Vivant!E36","v":0},{"$f":"Vivant!H36","v":0},{"$f":"Vivant!K36","v":0},{"$f":"Vivant!N36","v":0},{"$f":"Vivant!Q36","v":0},{"$f":"Vivant!T36","v":0},{"$f":"Vivant!W36","v":0}]
[{"$f":"Vivant!A37","v":0},{"$f":"Vivant!B37","v":0},{"$f":"Vivant!D37","v":0},{"$f":"Vivant!E37","v":0},{"$f":"Vivant!H37","v":0},{"$f":"Vivant!K37","v":0},{"$f":"Vivant!N37","v":0},{"$f":"Vivant!Q37","v":0},{"$f":"Vivant!T37","v":0},{"$f":"Vivant!W37","v":0}]
[{"$f":"Vivant!A38","v":0},{"$f":"Vivant!B38","v":0},{"$f":"Vivant!D38","v":0},{"$f":"Vivant!E38","v":0},{"$f":"Vivant!H38","v":0},{"$f":"Vivant!K38","v":0},{"$f":"Vivant!N38","v":0},{"$f":"Vivant!Q38","v":0},{"$f":"Vivant!T38","v":0},{"$f":"Vivant!W38","v":0}]
[{"$f":"Vivant!A39","v":0},{"$f":"Vivant!B39","v":0},{"$f":"Vivant!D39","v":0},{"$f":"Vivant!E39","v":0},{"$f":"Vivant!H39","v":0},{"$f":"Vivant!K39","v":0},{"$f":"Vivant!N39","v":0},{"$f":"Vivant!Q39","v":0},{"$f":"Vivant!T39","v":0},{"$f":"Vivant!W39","v":0}]
[{"$f":"Vivant!A40","v":0},{"$f":"Vivant!B40","v":0},{"$f":"Vivant!D40","v":0},{"$f":"Vivant!E40","v":0},{"$f":"Vivant!H40","v":0},{"$f":"Vivant!K40","v":0},{"$f":"Vivant!N40","v":0},{"$f":"Vivant!Q40","v":0},{"$f":"Vivant!T40","v":0},{"$f":"Vivant!W40","v":0}]
[{"$f":"Vivant!A41","v":0},{"$f":"Vivant!B41","v":0},{"$f":"Vivant!D41","v":0},{"$f":"Vivant!E41","v":0},{"$f":"Vivant!H41","v":0},{"$f":"Vivant!K41","v":0},{"$f":"Vivant!N41","v":0},{"$f":"Vivant!Q41","v":0},{"$f":"Vivant!T41","v":0},{"$f":"Vivant!W41","v":0}]
[{"$f":"Vivant!A42","v":0},{"$f":"Vivant!B42","v":0},{"$f":"Vivant!D42","v":0},{"$f":"Vivant!E42","v":0},{"$f":"Vivant!H42","v":0},{"$f":"Vivant!K42","v":0},{"$f":"Vivant!N42","v":0},{"$f":"Vivant!Q42","v":0},{"$f":"Vivant!T42","v":0},{"$f":"Vivant!W42","v":0}]
[{"$f":"Vivant!A43","v":0},{"$f":"Vivant!B43","v":0},{"$f":"Vivant!D43","v":0},{"$f":"Vivant!E43","v":0},{"$f":"Vivant!H43","v":0},{"$f":"Vivant!K43","v":0},{"$f":"Vivant!N43","v":0},{"$f":"Vivant!Q43","v":0},{"$f":"Vivant!T43","v":0},{"$f":"Vivant!W43","v":0}]
[{"$f":"Vivant!A44","v":0},{"$f":"Vivant!B44","v":0},{"$f":"Vivant!D44","v":0},{"$f":"Vivant!E44","v":0},{"$f":"Vivant!H44","v":0},{"$f":"Vivant!K44","v":0},{"$f":"Vivant!N44","v":0},{"$f":"Vivant!Q44","v":0},{"$f":"Vivant!T44","v":0},{"$f":"Vivant!W44","v":0}]
[{"$f":"'Corps et Santé'!A7","v":0},{"$f":"'Corps et Santé'!B7","v":0},{"$f":"'Corps et Santé'!D7","v":0},{"$f":"'Corps et Santé'!E7","v":0},{"$f":"'Corps et Santé'!H7","v":0},{"$f":"'Corps et Santé'!K7","v":0},{"$f":"'Corps et Santé'!N7","v":0},{"$f":"'Corps et Santé'!Q7","v":0},{"$f":"'Corps et Santé'!T7","v":0},{"$f":"'Corps et Santé'!W7","v":0}]
[{"$f":"'Corps et Santé'!A8","v":0},{"$f":"'Corps et Santé'!B8","v":0},{"$f":"'Corps et Santé'!D8","v":0},{"$f":"'Corps et Santé'!E8","v":0},{"$f":"'Corps et Santé'!H8","v":0},{"$f":"'Corps et Santé'!K8","v":0},{"$f":"'Corps et Santé'!N8","v":0},{"$f":"'Corps et Santé'!Q8","v":0},{"$f":"'Corps et Santé'!T8","v":0},{"$f":"'Corps et Santé'!W8","v":0}]
[{"$f":"'Corps et Santé'!A9","v":0},{"$f":"'Corps et Santé'!B9","v":0},{"$f":"'Corps et Santé'!D9","v":0},{"$f":"'Corps et Santé'!E9","v":0},{"$f":"'Corps et Santé'!H9","v":0},{"$f":"'Corps et Santé'!K9","v":0},{"$f":"'Corps et Santé'!N9","v":0},{"$f":"'Corps et Santé'!Q9","v":0},{"$f":"'Corps et Santé'!T9","v":0},{"$f":"'Corps et Santé'!W9","v":0}]
[{"$f":"'Corps et Santé'!A10","v":0},{"$f":"'Corps et Santé'!B10","v":0},{"$f":"'Corps et Santé'!D10","v":0},{"$f":"'Corps et Santé'!E10","v":0},{"$f":"'Corps et Santé'!H10","v":0},{"$f":"'Corps et Santé'!K10","v":0},{"$f":"'Corps et Santé'!N10","v":0},{"$f":"'Corps et Santé'!Q10","v":0},{"$f":"'Corps et Santé'!T10","v":0},{"$f":"'Corps et Santé'!W10","v":0}]
[{"$f":"'Corps et Santé'!A11","v":0},{"$f":"'Corps et Santé'!B11","v":0},{"$f":"'Corps et Santé'!D11","v":0},{"$f":"'Corps et Santé'!E11","v":0},{"$f":"'Corps et Santé'!H11","v":0},{"$f":"'Corps et Santé'!K11","v":0},{"$f":"'Corps et Santé'!N11","v":0},{"$f":"'Corps et Santé'!Q11","v":0},{"$f":"'Corps et Santé'!T11","v":0},{"$f":"'Corps et Santé'!W11","v":0}]
[{"$f":"'Corps et Santé'!A12","v":0},{"$f":"'Corps et Santé'!B12","v":0},{"$f":"'Corps et Santé'!D12","v":0},{"$f":"'Corps et Santé'!E12","v":0},{"$f":"'Corps et Santé'!H12","v":0},{"$f":"'Corps et Santé'!K12","v":0},{"$f":"'Corps et Santé'!N12","v":0},{"$f":"'Corps et Santé'!Q12","v":0},{"$f":"'Corps et Santé'!T12","v":0},{"$f":"'Corps et Santé'!W12","v":0}]
[{"$f":"'Corps et Santé'!A13","v":0},{"$f":"'Corps et Santé'!B13","v":0},{"$f":"'Corps et Santé'!D13","v":0},{"$f":"'Corps et Santé'!E13","v":0},{"$f":"'Corps et Santé'!H13","v":0},{"$f":"'Corps et Santé'!K13","v":0},{"$f":"'Corps et Santé'!N13","v":0},{"$f":"'Corps et Santé'!Q13","v":0},{"$f":"'Corps et Santé'!T13","v":0},{"$f":"'Corps et Santé'!W13","v":0}]
[{"$f":"'Corps et Santé'!A14","v":0},{"$f":"'Corps et Santé'!B14","v":0},{"$f":"'Corps et Santé'!D14","v":0},{"$f":"'Corps et Santé'!E14","v":0},{"$f":"'Corps et Santé'!H14","v":0},{"$f":"'Corps et Santé'!K14","v":0},{"$f":"'Corps et Santé'!N14","v":0},{"$f":"'Corps et Santé'!Q14","v":0},{"$f":"'Corps et Santé'!T14","v":0},{"$f":"'Corps et Santé'!W14","v":0}]
[{"$f":"'Corps et Santé'!A15","v":0},{"$f":"'Corps et Santé'!B15","v":0},{"$f":"'Corps et Santé'!D15","v":0},{"$f":"'Corps et Santé'!E15","v":0},{"$f":"'Corps et Santé'!H15","v":0},{"$f":"'Corps et Santé'!K15","v":0},{"$f":"'Corps et Santé'!N15","v":0},{"$f":"'Corps et Santé'!Q15","v":0},{"$f":"'Corps et Santé'!T15","v":0},{"$f":"'Corps et Santé'!W15","v":0}]
[{"$f":"'Corps et Santé'!A16","v":0},{"$f":"'Corps et Santé'!B16","v":0},{"$f":"'Corps et Santé'!D16","v":0},{"$f":"'Corps et Santé'!E16","v":0},{"$f":"'Corps et Santé'!H16","v":0},{"$f":"'Corps et Santé'!K16","v":0},{"$f":"'Corps et Santé'!N16","v":0},{"$f":"'Corps et Santé'!Q16","v":0},{"$f":"'Corps et Santé'!T16","v":0},{"$f":"'Corps et Santé'!W16","v":0}]
[{"$f":"'Corps et Santé'!A17","v":0},{"$f":"'Corps et Santé'!B17","v":0},{"$f":"'Corps et Santé'!D17","v":0},{"$f":"'Corps et Santé'!E17","v":0},{"$f":"'Corps et Santé'!H17","v":0},{"$f":"'Corps et Santé'!K17","v":0},{"$f":"'Corps et Santé'!N17","v":0},{"$f":"'Corps et Santé'!Q17","v":0},{"$f":"'Corps et Santé'!T17","v":0},{"$f":"'Corps et Santé'!W17","v":0}]
[{"$f":"'Corps et Santé'!A18","v":0},{"$f":"'Corps et Santé'!B18","v":0},{"$f":"'Corps et Santé'!D18","v":0},{"$f":"'Corps et Santé'!E18","v":0},{"$f":"'Corps et Santé'!H18","v":0},{"$f":"'Corps et Santé'!K18","v":0},{"$f":"'Corps et Santé'!N18","v":0},{"$f":"'Corps et Santé'!Q18","v":0},{"$f":"'Corps et Santé'!T18","v":0},{"$f":"'Corps et Santé'!W18","v":0}]
[{"$f":"'Corps et Santé'!A20","v":0},{"$f":"'Corps et Santé'!B20","v":0},{"$f":"'Corps et Santé'!D20","v":0},{"$f":"'Corps et Santé'!E20","v":0},{"$f":"'Corps et Santé'!H20","v":0},{"$f":"'Corps et Santé'!K20","v":0},{"$f":"'Corps et Santé'!N20","v":0},{"$f":"'Corps et Santé'!Q20","v":0},{"$f":"'Corps et Santé'!T20","v":0},{"$f":"'Corps et Santé'!W20","v":0}]
[{"$f":"'Corps et Santé'!A21","v":0},{"$f":"'Corps et Santé'!B21","v":0},{"$f":"'Corps et Santé'!D21","v":0},{"$f":"'Corps et Santé'!E21","v":0},{"$f":"'Corps et Santé'!H21","v":0},{"$f":"'Corps et Santé'!K21","v":0},{"$f":"'Corps et Santé'!N21","v":0},{"$f":"'Corps et Santé'!Q21","v":0},{"$f":"'Corps et Santé'!T21","v":0},{"$f":"'Corps et Santé'!W21","v":0}]
[{"$f":"'Corps et Santé'!A22","v":0},{"$f":"'Corps et Santé'!B22","v":0},{"$f":"'Corps et Santé'!D22","v":0},{"$f":"'Corps et Santé'!E22","v":0},{"$f":"'Corps et Santé'!H22","v":0},{"$f":"'Corps et Santé'!K22","v":0},{"$f":"'Corps et Santé'!N22","v":0},{"$f":"'Corps et Santé'!Q22","v":0},{"$f":"'Corps et Santé'!T22","v":0},{"$f":"'Corps et Santé'!W22","v":0}]
[{"$f":"'Corps et Santé'!A23","v":0},{"$f":"'Corps et Santé'!B23","v":0},{"$f":"'Corps et Santé'!D23","v":0},{"$f":"'Corps et Santé'!E23","v":0},{"$f":"'Corps et Santé'!H23","v":0},{"$f":"'Corps et Santé'!K23","v":0},{"$f":"'Corps et Santé'!N23","v":0},{"$f":"'Corps et Santé'!Q23","v":0},{"$f":"'Corps et Santé'!T23","v":0},{"$f":"'Corps et Santé'!W23","v":0}]
[{"$f":"'Corps et Santé'!A24","v":0},{"$f":"'Corps et Santé'!B24","v":0},{"$f":"'Corps et Santé'!D24","v":0},{"$f":"'Corps et Santé'!E24","v":0},{"$f":"'Corps et Santé'!H24","v":0},{"$f":"'Corps et Santé'!K24","v":0},{"$f":"'Corps et Santé'!N24","v":0},{"$f":"'Corps et Santé'!Q24","v":0},{"$f":"'Corps et Santé'!T24","v":0},{"$f":"'Corps et Santé'!W24","v":0}]
[{"$f":"'Corps et Santé'!A25","v":0},{"$f":"'Corps et Santé'!B25","v":0},{"$f":"'Corps et Santé'!D25","v":0},{"$f":"'Corps et Santé'!E25","v":0},{"$f":"'Corps et Santé'!H25","v":0},{"$f":"'Corps et Santé'!K25","v":0},{"$f":"'Corps et Santé'!N25","v":0},{"$f":"'Corps et Santé'!Q25","v":0},{"$f":"'Corps et Santé'!T25","v":0},{"$f":"'Corps et Santé'!W25","v":0}]
[{"$f":"'Corps et Santé'!A26","v":0},{"$f":"'Corps et Santé'!B26","v":0},{"$f":"'Corps et Santé'!D26","v":0},{"$f":"'Corps et Santé'!E26","v":0},{"$f":"'Corps et Santé'!H26","v":0},{"$f":"'Corps et Santé'!K26","v":0},{"$f":"'Corps et Santé'!N26","v":0},{"$f":"'Corps et Santé'!Q26","v":0},{"$f":"'Corps et Santé'!T26","v":0},{"$f":"'Corps et Santé'!W26","v":0}]
[{"$f":"'Corps et Santé'!A27","v":0},{"$f":"'Corps et Santé'!B27","v":0},{"$f":"'Corps et Santé'!D27","v":0},{"$f":"'Corps et Santé'!E27","v":0},{"$f":"'Corps et Santé'!H27","v":0},{"$f":"'Corps et Santé'!K27","v":0},{"$f":"'Corps et Santé'!N27","v":0},{"$f":"'Corps et Santé'!Q27","v":0},{"$f":"'Corps et Santé'!T27","v":0},{"$f":"'Corps et Santé'!W27","v":0}]
[{"$f":"'Corps et Santé'!A28","v":0},{"$f":"'Corps et Santé'!B28","v":0},{"$f":"'Corps et Santé'!D28","v":0},{"$f":"'Corps et Santé'!E28","v":0},{"$f":"'Corps et Santé'!H28","v":0},{"$f":"'Corps et Santé'!K28","v":0},{"$f":"'Corps et Santé'!N28","v":0},{"$f":"'Corps et Santé'!Q28","v":0},{"$f":"'Corps et Santé'!T28","v":0},{"$f":"'Corps et Santé'!W28","v":0}]
[{"$f":"'Corps et Santé'!A29","v":0},{"$f":"'Corps et Santé'!B29","v":0},{"$f":"'Corps et Santé'!D29","v":0},{"$f":"'Corps et Santé'!E29","v":0},{"$f":"'Corps et Santé'!H29","v":0},{"$f":"'Corps et Santé'!K29","v":0},{"$f":"'Corps et Santé'!N29","v":0},{"$f":"'Corps et Santé'!Q29","v":0},{"$f":"'Corps et Santé'!T29","v":0},{"$f":"'Corps et Santé'!W29","v":0}]
[{"$f":"'Corps et Santé'!A30","v":0},{"$f":"'Corps et Santé'!B30","v":0},{"$f":"'Corps et Santé'!D30","v":0},{"$f":"'Corps et Santé'!E30","v":0},{"$f":"'Corps et Santé'!H30","v":0},{"$f":"'Corps et Santé'!K30","v":0},{"$f":"'Corps et Santé'!N30","v":0},{"$f":"'Corps et Santé'!Q30","v":0},{"$f":"'Corps et Santé'!T30","v":0},{"$f":"'Corps et Santé'!W30","v":0}]
[{"$f":"'Corps et Santé'!A31","v":0},{"$f":"'Corps et Santé'!B31","v":0},{"$f":"'Corps et Santé'!D31","v":0},{"$f":"'Corps et Santé'!E31","v":0},{"$f":"'Corps et Santé'!H31","v":0},{"$f":"'Corps et Santé'!K31","v":0},{"$f":"'Corps et Santé'!N31","v":0},{"$f":"'Corps et Santé'!Q31","v":0},{"$f":"'Corps et Santé'!T31","v":0},{"$f":"'Corps et Santé'!W31","v":0}]
[{"$f":"'Corps et Santé'!A33","v":0},{"$f":"'Corps et Santé'!B33","v":0},{"$f":"'Corps et Santé'!D33","v":0},{"$f":"'Corps et Santé'!E33","v":0},{"$f":"'Corps et Santé'!H33","v":0},{"$f":"'Corps et Santé'!K33","v":0},{"$f":"'Corps et Santé'!N33","v":0},{"$f":"'Corps et Santé'!Q33","v":0},{"$f":"'Corps et Santé'!T33","v":0},{"$f":"'Corps et Santé'!W33","v":0}]
[{"$f":"'Corps et Santé'!A34","v":0},{"$f":"'Corps et Santé'!B34","v":0},{"$f":"'Corps et Santé'!D34","v":0},{"$f":"'Corps et Santé'!E34","v":0},{"$f":"'Corps et Santé'!H34","v":0},{"$f":"'Corps et Santé'!K34","v":0},{"$f":"'Corps et Santé'!N34","v":0},{"$f":"'Corps et Santé'!Q34","v":0},{"$f":"'Corps et Santé'!T34","v":0},{"$f":"'Corps et Santé'!W34","v":0}]
[{"$f":"'Corps et Santé'!A35","v":0},{"$f":"'Corps et Santé'!B35","v":0},{"$f":"'Corps et Santé'!D35","v":0},{"$f":"'Corps et Santé'!E35","v":0},{"$f":"'Corps et Santé'!H35","v":0},{"$f":"'Corps et Santé'!K35","v":0},{"$f":"'Corps et Santé'!N35","v":0},{"$f":"'Corps et Santé'!Q35","v":0},{"$f":"'Corps et Santé'!T35","v":0},{"$f":"'Corps et Santé'!W35","v":0}]
[{"$f":"'Corps et Santé'!A36","v":0},{"$f":"'Corps et Santé'!B36","v":0},{"$f":"'Corps et Santé'!D36","v":0},{"$f":"'Corps et Santé'!E36","v":0},{"$f":"'Corps et Santé'!H36","v":0},{"$f":"'Corps et Santé'!K36","v":0},{"$f":"'Corps et Santé'!N36","v":0},{"$f":"'Corps et Santé'!Q36","v":0},{"$f":"'Corps et Santé'!T36","v":0},{"$f":"'Corps et Santé'!W36","v":0}]
[{"$f":"'Corps et Santé'!A37","v":0},{"$f":"'Corps et Santé'!B37","v":0},{"$f":"'Corps et Santé'!D37","v":0},{"$f":"'Corps et Santé'!E37","v":0},{"$f":"'Corps et Santé'!H37","v":0},{"$f":"'Corps et Santé'!K37","v":0},{"$f":"'Corps et Santé'!N37","v":0},{"$f":"'Corps et Santé'!Q37","v":0},{"$f":"'Corps et Santé'!T37","v":0},{"$f":"'Corps et Santé'!W37","v":0}]
[{"$f":"'Corps et Santé'!A38","v":0},{"$f":"'Corps et Santé'!B38","v":0},{"$f":"'Corps et Santé'!D38","v":0},{"$f":"'Corps et Santé'!E38","v":0},{"$f":"'Corps et Santé'!H38","v":0},{"$f":"'Corps et Santé'!K38","v":0},{"$f":"'Corps et Santé'!N38","v":0},{"$f":"'Corps et Santé'!Q38","v":0},{"$f":"'Corps et Santé'!T38","v":0},{"$f":"'Corps et Santé'!W38","v":0}]
[{"$f":"'Corps et Santé'!A39","v":0},{"$f":"'Corps et Santé'!B39","v":0},{"$f":"'Corps et Santé'!D39","v":0},{"$f":"'Corps et Santé'!E39","v":0},{"$f":"'Corps et Santé'!H39","v":0},{"$f":"'Corps et Santé'!K39","v":0},{"$f":"'Corps et Santé'!N39","v":0},{"$f":"'Corps et Santé'!Q39","v":0},{"$f":"'Corps et Santé'!T39","v":0},{"$f":"'Corps et Santé'!W39","v":0}]
[{"$f":"'Corps et Santé'!A40","v":0},{"$f":"'Corps et Santé'!B40","v":0},{"$f":"'Corps et Santé'!D40","v":0},{"$f":"'Corps et Santé'!E40","v":0},{"$f":"'Corps et Santé'!H40","v":0},{"$f":"'Corps et Santé'!K40","v":0},{"$f":"'Corps et Santé'!N40","v":0},{"$f":"'Corps et Santé'!Q40","v":0},{"$f":"'Corps et Santé'!T40","v":0},{"$f":"'Corps et Santé'!W40","v":0}]
[{"$f":"'Corps et Santé'!A41","v":0},{"$f":"'Corps et Santé'!B41","v":0},{"$f":"'Corps et Santé'!D41","v":0},{"$f":"'Corps et Santé'!E41","v":0},{"$f":"'Corps et Santé'!H41","v":0},{"$f":"'Corps et Santé'!K41","v":0},{"$f":"'Corps et Santé'!N41","v":0},{"$f":"'Corps et Santé'!Q41","v":0},{"$f":"'Corps et Santé'!T41","v":0},{"$f":"'Corps et Santé'!W41","v":0}]
[{"$f":"'Corps et Santé'!A42","v":0},{"$f":"'Corps et Santé'!B42","v":0},{"$f":"'Corps et Santé'!D42","v":0},{"$f":"'Corps et Santé'!E42","v":0},{"$f":"'Corps et Santé'!H42","v":0},{"$f":"'Corps et Santé'!K42","v":0},{"$f":"'Corps et Santé'!N42","v":0},{"$f":"'Corps et Santé'!Q42","v":0},{"$f":"'Corps et Santé'!T42","v":0},{"$f":"'Corps et Santé'!W42","v":0}]
[{"$f":"'Corps et Santé'!A43","v":0},{"$f":"'Corps et Santé'!B43","v":0},{"$f":"'Corps et Santé'!D43","v":0},{"$f":"'Corps et Santé'!E43","v":0},{"$f":"'Corps et Santé'!H43","v":0},{"$f":"'Corps et Santé'!K43","v":0},{"$f":"'Corps et Santé'!N43","v":0},{"$f":"'Corps et Santé'!Q43","v":0},{"$f":"'Corps et Santé'!T43","v":0},{"$f":"'Corps et Santé'!W43","v":0}]
[{"$f":"'Corps et Santé'!A44","v":0},{"$f":"'Corps et Santé'!B44","v":0},{"$f":"'Corps et Santé'!D44","v":0},{"$f":"'Corps et Santé'!E44","v":0},{"$f":"'Corps et Santé'!H44","v":0},{"$f":"'Corps et Santé'!K44","v":0},{"$f":"'Corps et Santé'!N44","v":0},{"$f":"'Corps et Santé'!Q44","v":0},{"$f":"'Corps et Santé'!T44","v":0},{"$f":"'Corps et Santé'!W44","v":0}]

{"sheet":"Bilan C4_3ème","index":8,"n_rows":77,"n_cols":12,"rows_kept":77,"merged":[[0,0,2,4],[1,5,2,5],[1,6,2,6],[1,7,2,7],[1,8,2,10],[1,11,2,11],[3,3,3,4],[3,5,4,5],[3,6,4,6],[3,7,4,7],[3,8,4,8],[3,9,4,9],[3,10,4,10],[3,11,4,11]]}
["Organisation Bilan du travail envisagé sur la troisième année scolaire du Cycle 4 en SVT : 3ème"]
[{"$nulls":5},{"$f":"'Listes déroulantes'!E1","v":"Domaine 1 du socle : pratiquer des langages pour penser et communiquer"},{"$f":"'Listes déroulantes'!F1","v":"Domaine 2 du socle :Les méthodes et les outils pour apprendre"},{"$f":"'Listes déroulantes'!G1","v":"Domaine 3 du socle : Formation de la personne et du citoyen"},{"$f":"'Listes déroulantes'!H1","v":"Domaine 4 du socle : Les systèmes techniques et naturels"},null,null,{"$f":"'Listes déroulantes'!K1","v":"Domaine 5 du socle : Représentation du monde et activité humaine"}]
[]
[{"$nulls":3},"Activités",null,{"$f":"'Listes déroulantes'!E2","v":"Pratiquer des langages (qualitatif) / Utiliser des outils numériques"},{"$f":"'Listes déroulantes'!F2","v":"Utiliser des outils et mobiliser des méthodes pour apprendre / Utiliser des outils numériques"},{"$f":"'Listes déroulantes'!G2","v":"Adopter un comportement éthique et responsable"},{"$f":"'Listes déroulantes'!H2","v":"Pratiquer des démarches\nscientifiques et technologiques / Pratiquer des langages (pertinence, cohérence…)"},{"$f":"'Listes déroulantes'!I2","v":"Concevoir, créer, réaliser"},{"$f":"'Listes déroulantes'!J2","v":"Utiliser des outils numériques"},{"$f":"'Listes déroulantes'!K2","v":"Se situer dans l'espace et dans le temps"}]
["semaine","Attendus de fin de cycle","Compétences associées aux connaissances de la thématique","nature de l'activité","Titre de l'activité et/ou\nTitre de la partie\nRemarques ou \"Autre à définir\""]
[{"$f":"'Terre et action humaine'!A33","v":0},{"$f":"'Terre et action humaine'!B33","v":0},{"$f":"'Terre et action humaine'!C33","v":0},{"$f":"'Terre et action humaine'!D33","v":0},{"$f":"'Terre et action humaine'!E33","v":0},{"$f":"'Terre et action humaine'!H33","v":0},{"$f":"'Terre et action humaine'!K33","v":0},{"$f":"'Terre et action humaine'!N33","v":0},{"$f":"'Terre et action humaine'!Q33","v":0},{"$f":"'Terre et action humaine'!T33","v":0},{"$f":"'Terre et action humaine'!W33","v":0},{"$f":"'Terre et action humaine'!Z33","v":0}]
[{"$f":"'Terre et action humaine'!A34","v":0},{"$f":"'Terre et action humaine'!B34","v":0},{"$f":"'Terre et action humaine'!C34","v":0},{"$f":"'Terre et action humaine'!D34","v":0},{"$f":"'Terre et action humaine'!E34","v":0},{"$f":"'Terre et action humaine'!H34","v":0},{"$f":"'Terre et action humaine'!K34","v":0},{"$f":"'Terre et action humaine'!N34","v":0},{"$f":"'Terre et action humaine'!Q34","v":0},{"$f":"'Terre et action humaine'!T34","v":0},{"$f":"'Terre et action humaine'!W34","v":0},{"$f":"'Terre et action humaine'!Z34","v":0}]
[{"$f":"'Terre et action humaine'!A35","v":0},{"$f":"'Terre et action humaine'!B35","v":0},{"$f":"'Terre et action humaine'!C35","v":0},{"$f":"'Terre et action humaine'!D35","v":0},{"$f":"'Terre et action humaine'!E35","v":0},{"$f":"'Terre et action humaine'!H35","v":0},{"$f":"'Terre et action humaine'!K35","v":0},{"$f":"'Terre et action humaine'!N35","v":0},{"$f":"'Terre et action humaine'!Q35","v":0},{"$f":"'Terre et action humaine'!T35","v":0},{"$f":"'Terre et action humaine'!W35","v":0},{"$f":"'Terre et action humaine'!Z35","v":0}]
[{"$f":"'Terre et action humaine'!A36","v":0},{"$f":"'Terre et action humaine'!B36","v":0},{"$f":"'Terre et action humaine'!C36","v":0},{"$f":"'Terre et action humaine'!D36","v":0},{"$f":"'Terre et action humaine'!E36","v":0},{"$f":"'Terre et action humaine'!H36","v":0},{"$f":"'Terre et action humaine'!K36","v":0},{"$f":"'Terre et action humaine'!N36","v":0},{"$f":"'Terre et action humaine'!Q36","v":0},{"$f":"'Terre et action humaine'!T36","v":0},{"$f":"'Terre et action humaine'!W36","v":0},{"$f":"'Terre et action humaine'!Z36","v":0}]
[{"$f":"'Terre et action humaine'!A37","v":0},{"$f":"'Terre et action humaine'!B37","v":0},{"$f":"'Terre et action humaine'!C37","v":0},{"$f":"'Terre et action humaine'!D37","v":0},{"$f":"'Terre et action humaine'!E37","v":0},{"$f":"'Terre et action humaine'!H37","v":0},{"$f":"'Terre et action humaine'!K37","v":0},{"$f":"'Terre et action humaine'!N37","v":0},{"$f":"'Terre et action humaine'!Q37","v":0},{"$f":"'Terre et action humaine'!T37","v":0},{"$f":"'Terre et action humaine'!W37","v":0},{"$f":"'Terre et action humaine'!Z37","v":0}]
[{"$f":"'Terre et action humaine'!A38","v":0},{"$f":"'Terre et action humaine'!B38","v":0},{"$f":"'Terre et action humaine'!C38","v":0},{"$f":"'Terre et action humaine'!D38","v":0},{"$f":"'Terre et action humaine'!E38","v":0},{"$f":"'Terre et action humaine'!H38","v":0},{"$f":"'Terre et action humaine'!K38","v":0},{"$f":"'Terre et action humaine'!N38","v":0},{"$f":"'Terre et action humaine'!Q38","v":0},{"$f":"'Terre et action humaine'!T38","v":0},{"$f":"'Terre et action humaine'!W38","v":0},{"$f":"'Terre et action humaine'!Z38","v":0}]
[{"$f":"'Terre et action humaine'!A39","v":0},{"$f":"'Terre et action humaine'!B39","v":0},{"$f":"'Terre et action humaine'!C39","v":0},{"$f":"'Terre et action humaine'!D39","v":0},{"$f":"'Terre et action humaine'!E39","v":0},{"$f":"'Terre et action humaine'!H39","v":0},{"$f":"'Terre et action humaine'!K39","v":0},{"$f":"'Terre et action humaine'!N39","v":0},{"$f":"'Terre et action humaine'!Q39","v":0},{"$f":"'Terre et action humaine'!T39","v":0},{"$f":"'Terre et action humaine'!W39","v":0},{"$f":"'Terre et action humaine'!Z39","v":0}]
[{"$f":"'Terre et action humaine'!A40","v":0},{"$f":"'Terre et action humaine'!B40","v":0},{"$f":"'Terre et action humaine'!C40","v":0},{"$f":"'Terre et action humaine'!D40","v":0},{"$f":"'Terre et action humaine'!E40","v":0},{"$f":"'Terre et action humaine'!H40","v":0},{"$f":"'Terre et action humaine'!K40","v":0},{"$f":"'Terre et action humaine'!N40","v":0},{"$f":"'Terre et action humaine'!Q40","v":0},{"$f":"'Terre et action humaine'!T40","v":0},{"$f":"'Terre et action humaine'!W40","v":0},{"$f":"'Terre et action humaine'!Z40","v":0}]
[{"$f":"'Terre et action humaine'!A41","v":0},{"$f":"'Terre et action humaine'!B41","v":0},{"$f":"'Terre et action humaine'!C41","v":0},{"$f":"'Terre et action humaine'!D41","v":0},{"$f":"'Terre et action humaine'!E41","v":0},{"$f":"'Terre et action humaine'!H41","v":0},{"$f":"'Terre et action humaine'!K41","v":0},{"$f":"'Terre et action humaine'!N41","v":0},{"$f":"'Terre et action humaine'!Q41","v":0},{"$f":"'Terre et action humaine'!T41","v":0},{"$f":"'Terre et action humaine'!W41","v":0},{"$f":"'Terre et action humaine'!Z41","v":0}]
[{"$f":"'Terre et action humaine'!A42","v":0},{"$f":"'Terre et action humaine'!B42","v":0},{"$f":"'Terre et action humaine'!C42","v":0},{"$f":"'Terre et action humaine'!D42","v":0},{"$f":"'Terre et action humaine'!E42","v":0},{"$f":"'Terre et action humaine'!H42","v":0},{"$f":"'Terre et action humaine'!K42","v":0},{"$f":"'Terre et action humaine'!N42","v":0},{"$f":"'Terre et action humaine'!Q42","v":0},{"$f":"'Terre et action humaine'!T42","v":0},{"$f":"'Terre et action humaine'!W42","v":0},{"$f":"'Terre et action humaine'!Z42","v":0}]
[{"$f":"'Terre et action humaine'!A43","v":0},{"$f":"'Terre et action humaine'!B43","v":0},{"$f":"'Terre et action humaine'!C43","v":0},{"$f":"'Terre et action humaine'!D43","v":0},{"$f":"'Terre et action humaine'!E43","v":0},{"$f":"'Terre et action humaine'!H43","v":0},{"$f":"'Terre et action humaine'!K43","v":0},{"$f":"'Terre et action humaine'!N43","v":0},{"$f":"'Terre et action humaine'!Q43","v":0},{"$f":"'Terre et action humaine'!T43","v":0},{"$f":"'Terre et action humaine'!W43","v":0},{"$f":"'Terre et action humaine'!Z43","v":0}]
[{"$f":"'Terre et action humaine'!A44","v":0},{"$f":"'Terre et action humaine'!B44","v":0},{"$f":"'Terre et action humaine'!C44","v":0},{"$f":"'Terre et action humaine'!D44","v":0},{"$f":"'Terre et action humaine'!E44","v":0},{"$f":"'Terre et action humaine'!H44","v":0},{"$f":"'Terre et action humaine'!K44","v":0},{"$f":"'Terre et action humaine'!N44","v":0},{"$f":"'Terre et action humaine'!Q44","v":0},{"$f":"'Terre et action humaine'!T44","v":0},{"$f":"'Terre et action humaine'!W44","v":0},{"$f":"'Terre et action humaine'!Z44","v":0}]
[{"$f":"Vivant!A33","v":0},{"$f":"Vivant!B33","v":0},{"$f":"Vivant!C33","v":0},{"$f":"Vivant!D33","v":0},{"$f":"Vivant!E33","v":0},{"$f":"Vivant!H33","v":0},{"$f":"Vivant!K33","v":0},{"$f":"Vivant!N33","v":0},{"$f":"Vivant!Q33","v":0},{"$f":"Vivant!T33","v":0},{"$f":"Vivant!W33","v":0},{"$f":"Vivant!Z33","v":0}]
[{"$f":"Vivant!A34","v":0},{"$f":"Vivant!B34","v":0},{"$f":"Vivant!C34","v":0},{"$f":"Vivant!D34","v":0},{"$f":"Vivant!E34","v":0},{"$f":"Vivant!H34","v":0},{"$f":"Vivant!K34","v":0},{"$f":"Vivant!N34","v":0},{"$f":"Vivant!Q34","v":0},{"$f":"Vivant!T34","v":0},{"$f":"Vivant!W34","v":0},{"$f":"Vivant!Z34","v":0}]
[{"$f":"Vivant!A35","v":0},{"$f":"Vivant!B35","v":0},{"$f":"Vivant!C35","v":0},{"$f":"Vivant!D35","v":0},{"$f":"Vivant!E35","v":0},{"$f":"Vivant!H35","v":0},{"$f":"Vivant!K35","v":0},{"$f":"Vivant!N35","v":0},{"$f":"Vivant!Q35","v":0},{"$f":"Vivant!T35","v":0},{"$f":"Vivant!W35","v":0},{"$f":"Vivant!Z35","v":0}]
[{"$f":"Vivant!A36","v":0},{"$f":"Vivant!B36","v":0},{"$f":"Vivant!C36","v":0},{"$f":"Vivant!D36","v":0},{"$f":"Vivant!E36","v":0},{"$f":"Vivant!H36","v":0},{"$f":"Vivant!K36","v":0},{"$f":"Vivant!N36","v":0},{"$f":"Vivant!Q36","v":0},{"$f":"Vivant!T36","v":0},{"$f":"Vivant!W36","v":0},{"$f":"Vivant!Z36","v":0}]
[{"$f":"Vivant!A37","v":0},{"$f":"Vivant!B37","v":0},{"$f":"Vivant!C37","v":0},{"$f":"Vivant!D37","v":0},{"$f":"Vivant!E37","v":0},{"$f":"Vivant!H37","v":0},{"$f":"Vivant!K37","v":0},{"$f":"Vivant!N37","v":0},{"$f":"Vivant!Q37","v":0},{"$f":"Vivant!T37","v":0},{"$f":"Vivant!W37","v":0},{"$f":"Vivant!Z37","v":0}]
[{"$f":"Vivant!A38","v":0},{"$f":"Vivant!B38","v":0},{"$f":"Vivant!C38","v":0},{"$f":"Vivant!D38","v":0},{"$f":"Vivant!E38","v":0},{"$f":"Vivant!H38","v":0},{"$f":"Vivant!K38","v":0},{"$f":"Vivant!N38","v":0},{"$f":"Vivant!Q38","v":0},{"$f":"Vivant!T38","v":0},{"$f":"Vivant!W38","v":0},{"$f":"Vivant!Z38","v":0}]
[{"$f":"Vivant!A39","v":0},{"$f":"Vivant!B39","v":0},{"$f":"Vivant!C39","v":0},{"$f":"Vivant!D39","v":0},{"$f":"Vivant!E39","v":0},{"$f":"Vivant!H39","v":0},{"$f":"Vivant!K39","v":0},{"$f":"Vivant!N39","v":0},{"$f":"Vivant!Q39","v":0},{"$f":"Vivant!T39","v":0},{"$f":"Vivant!W39","v":0},{"$f":"Vivant!Z39","v":0}]
[{"$f":"Vivant!A40","v":0},{"$f":"Vivant!B40","v":0},{"$f":"Vivant!C40","v":0},{"$f":"Vivant!D40","v":0},{"$f":"Vivant!E40","v":0},{"$f":"Vivant!H40","v":0},{"$f":"Vivant!K40","v":0},{"$f":"Vivant!N40","v":0},{"$f":"Vivant!Q40","v":0},{"$f":"Vivant!T40","v":0},{"$f":"Vivant!W40","v":0},{"$f":"Vivant!Z40","v":0}]
[{"$f":"Vivant!A41","v":0},{"$f":"Vivant!B41","v":0},{"$f":"Vivant!C41","v":0},{"$f":"Vivant!D41","v":0},{"$f":"Vivant!E41","v":0},{"$f":"Vivant!H41","v":0},{"$f":"Vivant!K41","v":0},{"$f":"Vivant!N41","v":0},{"$f":"Vivant!Q41","v":0},{"$f":"Vivant!T41","v":0},{"$f":"Vivant!W41","v":0},{"$f":"Vivant!Z41","v":0}]
[{"$f":"Vivant!A42","v":0},{"$f":"Vivant!B42","v":0},{"$f":"Vivant!C42","v":0},{"$f":"Vivant!D42","v":0},{"$f":"Vivant!E42","v":0},{"$f":"Vivant!H42","v":0},{"$f":"Vivant!K42","v":0},{"$f":"Vivant!N42","v":0},{"$f":"Vivant!Q42","v":0},{"$f":"Vivant!T42","v":0},{"$f":"Vivant!W42","v":0},{"$f":"Vivant!Z42","v":0}]
[{"$f":"Vivant!A43","v":0},{"$f":"Vivant!B43","v":0},{"$f":"Vivant!C43","v":0},{"$f":"Vivant!D43","v":0},{"$f":"Vivant!E43","v":0},{"$f":"Vivant!H43","v":0},{"$f":"Vivant!K43","v":0},{"$f":"Vivant!N43","v":0},{"$f":"Vivant!Q43","v":0},{"$f":"Vivant!T43","v":0},{"$f":"Vivant!W43","v":0},{"$f":"Vivant!Z43","v":0}]
[{"$f":"Vivant!A44","v":0},{"$f":"Vivant!B44","v":0},{"$f":"Vivant!C44","v":0},{"$f":"Vivant!D44","v":0},{"$f":"Vivant!E44","v":0},{"$f":"Vivant!H44","v":0},{"$f":"Vivant!K44","v":0},{"$f":"Vivant!N44","v":0},{"$f":"Vivant!Q44","v":0},{"$f":"Vivant!T44","v":0},{"$f":"Vivant!W44","v":0},{"$f":"Vivant!Z44","v":0}]
[{"$f":"'Corps et Santé'!A33","v":0},{"$f":"'Corps et Santé'!B33","v":0},{"$f":"'Corps et Santé'!C33","v":0},{"$f":"'Corps et Santé'!D33","v":0},{"$f":"'Corps et Santé'!E33","v":0},{"$f":"'Corps et Santé'!H33","v":0},{"$f":"'Corps et Santé'!K33","v":0},{"$f":"'Corps et Santé'!N33","v":0},{"$f":"'Corps et Santé'!Q33","v":0},{"$f":"'Corps et Santé'!T33","v":0},{"$f":"'Corps et Santé'!W33","v":0},{"$f":"'Corps et Santé'!Z33","v":0}]
[{"$f":"'Corps et Santé'!A34","v":0},{"$f":"'Corps et Santé'!B34","v":0},{"$f":"'Corps et Santé'!C34","v":0},{"$f":"'Corps et Santé'!D34","v":0},{"$f":"'Corps et Santé'!E34","v":0},{"$f":"'Corps et Santé'!H34","v":0},{"$f":"'Corps et Santé'!K34","v":0},{"$f":"'Corps et Santé'!N34","v":0},{"$f":"'Corps et Santé'!Q34","v":0},{"$f":"'Corps et Santé'!T34","v":0},{"$f":"'Corps et Santé'!W34","v":0},{"$f":"'Corps et Santé'!Z34","v":0}]
[{"$f":"'Corps et Santé'!A35","v":0},{"$f":"'Corps et Santé'!B35","v":0},{"$f":"'Corps et Santé'!C35","v":0},{"$f":"'Corps et Santé'!D35","v":0},{"$f":"'Corps et Santé'!E35","v":0},{"$f":"'Corps et Santé'!H35","v":0},{"$f":"'Corps et Santé'!K35","v":0},{"$f":"'Corps et Santé'!N35","v":0},{"$f":"'Corps et Santé'!Q35","v":0},{"$f":"'Corps et Santé'!T35","v":0},{"$f":"'Corps et Santé'!W35","v":0},{"$f":"'Corps et Santé'!Z35","v":0}]
[{"$f":"'Corps et Santé'!A36","v":0},{"$f":"'Corps et Santé'!B36","v":0},{"$f":"'Corps et Santé'!C36","v":0},{"$f":"'Corps et Santé'!D36","v":0},{"$f":"'Corps et Santé'!E36","v":0},{"$f":"'Corps et Santé'!H36","v":0},{"$f":"'Corps et Santé'!K36","v":0},{"$f":"'Corps et Santé'!N36","v":0},{"$f":"'Corps et Santé'!Q36","v":0},{"$f":"'Corps et Santé'!T36","v":0},{"$f":"'Corps et Santé'!W36","v":0},{"$f":"'Corps et Santé'!Z36","v":0}]
[{"$f":"'Corps et Santé'!A37","v":0},{"$f":"'Corps et Santé'!B37","v":0},{"$f":"'Corps et Santé'!C37","v":0},{"$f":"'Corps et Santé'!D37","v":0},{"$f":"'Corps et Santé'!E37","v":0},{"$f":"'Corps et Santé'!H37","v":0},{"$f":"'Corps et Santé'!K37","v":0},{"$f":"'Corps et Santé'!N37","v":0},{"$f":"'Corps et Santé'!Q37","v":0},{"$f":"'Corps et Santé'!T37","v":0},{"$f":"'Corps et Santé'!W37","v":0},{"$f":"'Corps et Santé'!Z37","v":0}]
[{"$f":"'Corps et Santé'!A38","v":0},{"$f":"'Corps et Santé'!B38","v":0},{"$f":"'Corps et Santé'!C38","v":0},{"$f":"'Corps et Santé'!D38","v":0},{"$f":"'Corps et Santé'!E38","v":0},{"$f":"'Corps et Santé'!H38","v":0},{"$f":"'Corps et Santé'!K38","v":0},{"$f":"'Corps et Santé'!N38","v":0},{"$f":"'Corps et Santé'!Q38","v":0},{"$f":"'Corps et Santé'!T38","v":0},{"$f":"'Corps et Santé'!W38","v":0},{"$f":"'Corps et Santé'!Z38","v":0}]
[{"$f":"'Corps et Santé'!A39","v":0},{"$f":"'Corps et Santé'!B39","v":0},{"$f":"'Corps et Santé'!C39","v":0},{"$f":"'Corps et Santé'!D39","v":0},{"$f":"'Corps et Santé'!E39","v":0},{"$f":"'Corps et Santé'!H39","v":0},{"$f":"'Corps et Santé'!K39","v":0},{"$f":"'Corps et Santé'!N39","v":0},{"$f":"'Corps et Santé'!Q39","v":0},{"$f":"'Corps et Santé'!T39","v":0},{"$f":"'Corps et Santé'!W39","v":0},{"$f":"'Corps et Santé'!Z39","v":0}]
[{"$f":"'Corps et Santé'!A40","v":0},{"$f":"'Corps et Santé'!B40","v":0},{"$f":"'Corps et Santé'!C40","v":0},{"$f":"'Corps et Santé'!D40","v":0},{"$f":"'Corps et Santé'!E40","v":0},{"$f":"'Corps et Santé'!H40","v":0},{"$f":"'Corps et Santé'!K40","v":0},{"$f":"'Corps et Santé'!N40","v":0},{"$f":"'Corps et Santé'!Q40","v":0},{"$f":"'Corps et Santé'!T40","v":0},{"$f":"'Corps et Santé'!W40","v":0},{"$f":"'Corps et Santé'!Z40","v":0}]
[{"$f":"'Corps et Santé'!A41","v":0},{"$f":"'Corps et Santé'!B41","v":0},{"$f":"'Corps et Santé'!C41","v":0},{"$f":"'Corps et Santé'!D41","v":0},{"$f":"'Corps et Santé'!E41","v":0},{"$f":"'Corps et Santé'!H41","v":0},{"$f":"'Corps et Santé'!K41","v":0},{"$f":"'Corps et Santé'!N41","v":0},{"$f":"'Corps et Santé'!Q41","v":0},{"$f":"'Corps et Santé'!T41","v":0},{"$f":"'Corps et Santé'!W41","v":0},{"$f":"'Corps et Santé'!Z41","v":0}]
[{"$f":"'Corps et Santé'!A42","v":0},{"$f":"'Corps et Santé'!B42","v":0},{"$f":"'Corps et Santé'!C42","v":0},{"$f":"'Corps et Santé'!D42","v":0},{"$f":"'Corps et Santé'!E42","v":0},{"$f":"'Corps et Santé'!H42","v":0},{"$f":"'Corps et Santé'!K42","v":0},{"$f":"'Corps et Santé'!N42","v":0},{"$f":"'Corps et Santé'!Q42","v":0},{"$f":"'Corps et Santé'!T42","v":0},{"$f":"'Corps et Santé'!W42","v":0},{"$f":"'Corps et Santé'!Z42","v":0}]
[{"$f":"'Corps et Santé'!A43","v":0},{"$f":"'Corps et Santé'!B43","v":0},{"$f":"'Corps et Santé'!C43","v":0},{"$f":"'Corps et Santé'!D43","v":0},{"$f":"'Corps et Santé'!E43","v":0},{"$f":"'Corps et Santé'!H43","v":0},{"$f":"'Corps et Santé'!K43","v":0},{"$f":"'Corps et Santé'!N43","v":0},{"$f":"'Corps et Santé'!Q43","v":0},{"$f":"'Corps et Santé'!T43","v":0},{"$f":"'Corps et Santé'!W43","v":0},{"$f":"'Corps et Santé'!Z43","v":0}]
[{"$f":"'Corps et Santé'!A44","v":0},{"$f":"'Corps et Santé'!B44","v":0},{"$f":"'Corps et Santé'!C44","v":0},{"$f":"'Corps et Santé'!D44","v":0},{"$f":"'Corps et Santé'!E44","v":0},{"$f":"'Corps et Santé'!H44","v":0},{"$f":"'Corps et Santé'!K44","v":0},{"$f":"'Corps et Santé'!N44","v":0},{"$f":"'Corps et Santé'!Q44","v":0},{"$f":"'Corps et Santé'!T44","v":0},{"$f":"'Corps et Santé'!W44","v":0},{"$f":"'Corps et Santé'!Z44","v":0}]
{"$rows_empty":35}
[{"$nulls":4},"Nombre d'ES par domaine sur l'année",{"$f":"COUNTIFS($F$6:$F$41,\"ES\")","v":0},{"$f":"COUNTIFS($G$6:$G$41,\"ES\")","v":0},{"$f":"COUNTIFS($H$6:$H$41,\"ES\")","v":0},{"$f":"COUNTIFS($I$6:$I$41,\"ES\")","v":0},{"$f":"COUNTIFS($J$6:$J$41,\"ES\")","v":0},{"$f":"COUNTIFS($K$6:$K$41,\"ES\")","v":0},{"$f":"COUNTIFS($L$6:$L$41,\"ES\")","v":0}]

{"sheet":"Listes déroulantes","index":9,"n_rows":13,"n_cols":11,"rows_kept":13,"hidden":true,"merged":[[0,7,0,9],[12,4,12,10]]}
[{"$nulls":4},"Domaine 1 du socle : pratiquer des langages pour penser et communiquer","Domaine 2 du socle :Les méthodes et les outils pour apprendre","Domaine 3 du socle : Formation de la personne et du citoyen","Domaine 4 du socle : Les systèmes techniques et naturels",null,null,"Domaine 5 du socle : Représentation du monde et activité humaine"]
["activite C_4","evaluation",null,null,"Pratiquer des langages (qualitatif) / Utiliser des outils numériques","Utiliser des outils et mobiliser des méthodes pour apprendre / Utiliser des outils numériques","Adopter un comportement éthique et responsable","Pratiquer des démarches\nscientifiques et technologiques / Pratiquer des langages (pertinence, cohérence…)","Concevoir, créer, réaliser","Utiliser des outils numériques","Se situer dans l'espace et dans le temps"]
["Activité expérimentale","ES",null,null,"Communiquer à l'ORAL dans un langage scientifiquement approprié ","Organiser son travail (par ex. pour mettre en œuvre un protocole expérimental).","Distinguer ce qui relève d’une croyance ou d’une idée et ce qui constitue un savoir scientifique","Formuler une question ou un problème scientifique.","Concevoir un protocole. ","Utiliser des logiciels d’acquisition de données","Situer l’espèce humaine dans l’évolution des espèces."]
["Activité documentaire","ED",null,null,"Communiquer à l'ECRIT dans un langage scientifiquement approprié ","Savoir garder trace de ses recherches : à l’oral","Identifier les impacts (bénéfices et nuisances) des activités humaines sur l’environnement à différentes échelles. ","Proposer une ou des hypothèses pour résoudre un problème ou une question.","Mettre en œuvre un protocole. ","Utiliser des logiciels de simulation","Appréhender différentes échelles de temps géologique et biologique (ex : histoire de la Terre ; apparition de la vie, évolution et extinction des espèces vivantes…)."]
["Activité mixte (documentaire et expérimentale) sans être une tâche complexe","EF",null,null,"Lire et exploiter des données présentées sous différentes formes : schémas, tableaux, graphiques, cartes heuristiques, …","Savoir garder trace de ses recherches : à l’écrit","Comprendre les responsabilités individuelle et collective en matière de préservation des ressources de la planète (biodiversité, ressources minérales et ressources énergétiques) et de santé. ","Concevoir des expériences pour tester une ou des hypothèses (au lycée on parlera de stratégie)","Autre à définir","Utiliser des bases de données","Appréhender différentes échelles spatiales d’un même phénomène/d’une même fonction (ex : nutrition : niveau de l’organisme, niveau des organes et niveau cellulaire)."]
["Tâche complexe","Auto-évaluation",null,null,"Passer d’une représentation à une autre","Coopérer, collaborer","Participer à l’élaboration de règles de sécurité et les appliquer au laboratoire et sur le terrain.","Utiliser des instruments d’observation, de mesures et des techniques de préparation et de collecte (afin de pratiquer des démarches et pas uniquement pour savoir \"utiliser\")",null,"Autre à définir","Identifier par l’histoire des sciences et des techniques comment se construit un savoir scientifique."]
["Débat","Aucune",null,null,"Choisir une représentation adaptée à la situation de travail","Utiliser de façon réfléchie les outils numériques : simulation, acquisition et traitement de données","Autre à définir","Interpréter des résultats et en tirer des conclusions. ",null,null,"Autre à définir"]
["Travail sur l'oral ",{"$nulls":3},"Autre à définir","Conduire une recherche d’informations sur internet pertinentente (lien avec un problème scientifique, mots-clés, évaluation de la fiabilité des sources et la validité́ des résultats….) ",null,"Communiquer sur ses démarches, ses résultats et ses choix, en argumentant. (pertinence, cohérence, compéltude)"]
["EPI",{"$nulls":4},"Identifier des notions, des outils et des techniques, ou des modèles simples pour répondre à une consigne",null,"Identifier et choisir des notions, des outils et des techniques, ou des modèles simples pour mettre en œuvre une démarche scientifique."]
["Projet pédagogique",{"$nulls":4},"Autre à définir",null,"Autre à définir"]
["Sortie/Voyage"]
["Phase bilan d'apprentissages"]
["Autre à définir",{"$nulls":3},"Ces compétences énoncées ne sont pas travaillées pour elles-mêmes mais activées dans les trois thématiques énoncées ci-dessus."]

{"sheet":"AFC et Compétences","index":10,"n_rows":43,"n_cols":2,"rows_kept":43,"hidden":true,"merged":[[1,0,1,1],[16,0,16,1]]}
[]
["Attendus de fin de cycle"]
[{"$f":"\" AFC_C4_T1\"","v":" AFC_C4_T1"}," Explorer et expliquer certains phénomènes géologiques liés au fonctionnement de la Terre."]
[{"$f":"\" AFC_C4_T1\"","v":" AFC_C4_T1"}," Explorer et expliquer certains éléments de météorologie et de climatologie."]
[" AFC_C4_T1"," Identifier les principaux impacts de l’action humaine, bénéfices et risques, à la surface de la planète "]
[" AFC_C4_T1"," Envisager ou justifier des comportements responsables face à l’environnement et à la préservation des ressources limitées de la planète."]
[{"$f":"\" AFC_C4_T2\"","v":" AFC_C4_T2"}," Expliquer l’organisation du monde vivant, sa structure et son dynamisme à différentes échelles d’espace et de temps. "]
[{"$f":"\" AFC_C4_T2\"","v":" AFC_C4_T2"}," Expliquer la nutrition des organismes par une mise en relation de différents faits et en établissant des relations de causalité"]
[" AFC_C4_T2"," Expliquer la dynamique des populations par une mise en relation de différents faits et en établissant des relations de causalité"]
[" AFC_C4_T2"," Expliquer la classification du vivant par une mise en relation de différents faits et en établissant des relations de causalité"]
[" AFC_C4_T2"," Expliquer la biodiversité (diversité des espèces) par une mise en relation de différents faits et en établissant des relations de causalité"]
[" AFC_C4_T2"," Expliquer la diversité génétique des individus par une mise en relation de différents faits et en établissant des relations de causalité"]
[" AFC_C4_T2"," Expliquer l’évolution des êtres vivants par une mise en relation de différents faits et en établissant des relations de causalité"]
[{"$f":"\" AFC_C4_T3\"","v":" AFC_C4_T3"}," Expliquer  quelques  processus  biologiques  impliqués  dans  le  fonctionnement  de  l’organisme  humain, jusqu’au niveau moléculaire : activités musculaire, nerveuse et cardio-vasculaire, activité cérébrale, alimentation et digestion, relations avec le monde microbien, reproduction et sexualité. "]
[{"$f":"\" AFC_C4_T3\"","v":" AFC_C4_T3"}," Relier la connaissance de ces processus biologiques aux enjeux liés aux comportements responsables "]
[]
["Compétences associées aux thématiques"]
[{"$f":"\"Comp C4T1\"","v":"Comp C4T1"}," La Terre dans le système solaire"]
[{"$f":"\"Comp C4T1\"","v":"Comp C4T1"}," Expliquer quelques phénomènes géologiques à partir du contexte géodynamique global"]
[{"$f":"\"Comp C4T1\"","v":"Comp C4T1"}," Expliquer quelques phénomènes météorologiques et climatiques. "]
[{"$f":"\"Comp C4T1\"","v":"Comp C4T1"}," Relier les connaissances scientifiques sur les risques naturels (ex. séismes, cyclones, inondations) ainsi que ceux liés aux activités humaines (pollution de l’air et des mers, réchauffement climatique…) aux mesures de prévention (quand c’est possible), de protection, d’adaptation, ou d’atténuation."]
["Comp C4T1"," Caractériser quelques-uns des principaux enjeux de l’exploitation d’une ressource naturelle par l’être humain, en lien avec quelques grandes questions de société."]
["Comp C4T1"," Comprendre et expliquer les choix en matière de gestion de ressources naturelles à différentes échelles."]
["Comp C4T1"," Expliquer comment une activité humaine peut modifier l’organisation et le fonctionnement des écosystèmes en lien avec quelques questions environnementales globales."]
["Comp C4T1"," Proposer des argumentations sur les impacts générés par le rythme, la nature (bénéfices/nuisances), l’importance et la variabilité des actions de l’être humain sur l’environnement."]
[{"$f":"\"Comp C4T2\"","v":"Comp C4T2"}," Relier les besoins des cellules animales et le rôle des systèmes de transport dans l’organisme."]
[{"$f":"\"Comp C4T2\"","v":"Comp C4T2"}," Relier les besoins des cellules d’une plante chlorophyllienne, les lieux de production ou de prélèvement de matière et de stockage et les systèmes de transport au sein de la plante."]
["Comp C4T2"," Relier des éléments de biologie de la reproduction sexuée et asexuée des êtres vivants et l’influence du milieu sur la survie des individus, à la dynamique des populations."]
["Comp C4T2"," Relier l’étude des relations de parenté entre les êtres vivants, et l’évolution."]
["Comp C4T2"," Expliquer  sur  quoi  reposent  la  diversité  et  la stabilité génétique des individus."]
["Comp C4T2"," Expliquer comment les phénotypes sont déterminés par les génotypes et par l’action de l’environnement."]
["Comp C4T2"," Relier, comme des processus dynamiques,  la diversité génétique et la biodiversité."]
["Comp C4T2"," Mettre  en  évidence  des  faits  d’évolution  des espèces et donner des arguments en faveur de quelques mécanismes de l’évolution."]
[{"$f":"\"Comp C4T3\"","v":"Comp C4T3"}," Expliquer  comment  le  système  nerveux  et  le système  cardiovasculaire  interviennent  lors d’un effort musculaire, en identifiant les capacités et les limites de l’organisme."]
[{"$f":"\"Comp C4T3\"","v":"Comp C4T3"}," Mettre en évidence le rôle du cerveau dans la réception et l’intégration d’informations multiples."]
["Comp C4T3"," Relier  quelques  comportements  à  leurs  effets sur le fonctionnement du système nerveux."]
["Comp C4T3"," Expliquer le devenir des aliments dans le tube digestif."]
["Comp C4T3"," Relier la nature des aliments et leurs apports qualitatifs et quantitatifs pour comprendre l’importance de l’alimentation pour l’organisme (besoins nutritionnels)."]
["Comp C4T3"," Relier le monde microbien hébergé par notre organisme et son fonctionnement."]
["Comp C4T3"," Expliquer les réactions qui permettent  à l’organisme de se préserver des micro-organismes pathogènes."]
["Comp C4T3"," Argumenter l’intérêt des politiques de prévention et de lutte contre la contamination et/ou l’infection."]
["Comp C4T3"," Relier le fonctionnement des appareils reproducteurs à partir de la puberté aux principes de la maîtrise de la reproduction."]
["Comp C4T3"," Expliquer sur quoi reposent les comportements responsables dans le domaine de la sexualité : fertilité, grossesse, respect de l’autre, choix raisonné de la procréation, contraception, prévention des infections sexuellement transmissibles. "]

{"sheet":"Représentations graphiques","index":11,"n_rows":0,"n_cols":0,"rows_kept":0,"hidden":true}